Workbook

Sheet Uitleg
A1: 04:28:45
A2: Omdat ik de opgaven voor horizontaal en verticaal niet in een cel van het rooster bekom.
A3: Het is dus meer een kruiswoordraadsel met anagram geworden.
A4: Men dient de letters in de lichtgroene(vanaf 301 gele) cellen van boven naar beneden
A5: onder het rooster te plaatsen(het anagram).
A6: Alleen in de eerste opgave geven deze letters al een woord.
A7: Al de andere tot nu toe het anagram.
A8: Het Zweeds raadsel komt van de krant "Het Nieuwsblad".
A9: Veek plezier ermee.
A11: Selecteer een opgave tot en met de letter L en plak deze op Blad 1.(ook de gele cel)
A12: Selecteer vervolgens de opgaven Horizontaal en Verticaal en plak deze ook op Blad 1.
A14: Rechts zelfde werkwijze als bij het Kruiswoordraadsel(opletten andere kolommen)

Sheet Blad1
AG1: Opgave: | AH1: Formule: | AI1: Opgave: | AJ1: Formule: | AK1: Opgave: | AL1: Formule: | AM1: Opgave: | AN1: Formule: | AO1: Opgave: | AP1: Formule: | AQ1: Opgave: | AR1: Formule: | AS1: Opgave: | AT1: Formule: | AU1: Opgave: | AV1: Formule: | AW1: Opgave: | AX1: Formule: | AY1: Opgave: | AZ1: Formule:
R2: Horizontaal: | AG2: 1 | AH2: B3:L10 | AI2: 26 | AJ2: =LEFT(AH2,1)&MID(AH2,2,1)+350&":"&MID(AH2,4,1)&MID(AH2,5,2)+350 -> B353:L360 | AK2: 51 | AL2: =LEFT(AJ2,1)&MID(AJ2,2,3)+350&":"&MID(AJ2,6,1)&MID(AJ2,7,3)+350 -> B703:L710 | AM2: 76 | AN2: =LEFT(AL2,1)&MID(AL2,2,3)+350&":"&MID(AL2,6,1)&MID(AL2,7,3)+350 -> B1053:L1060 | AO2: 101 | AP2: =LEFT(AN2,1)&MID(AN2,2,4)+350&":"&MID(AN2,7,1)&MID(AN2,8,4)+350 -> B1403:L1410 | AQ2: 126 | AR2: =LEFT(AP2,1)&MID(AP2,2,4)+350&":"&MID(AP2,7,1)&MID(AP2,8,4)+350 -> B1753:L1760 | AS2: 151 | AT2: =LEFT(AR2,1)&MID(AR2,2,4)+350&":"&MID(AR2,7,1)&MID(AR2,8,4)+350 -> B2103:L2110 | AU2: 176 | AV2: =LEFT(AT2,1)&MID(AT2,2,4)+350&":"&MID(AT2,7,1)&MID(AT2,8,4)+350 -> B2453:L2460 | AW2: 201 | AX2: =LEFT(AV2,1)&MID(AV2,2,4)+350&":"&MID(AV2,7,1)&MID(AV2,8,4)+350 -> B2803:L2810 | AY2: 226 | AZ2: =LEFT(AX2,1)&MID(AX2,2,4)+350&":"&MID(AX2,7,1)&MID(AX2,8,4)+350 -> B3153:L3160 | BF2: A3:I11 | BG2: =LEFT(BF2,1)&MID(BF2,2,1)+350&":"&MID(BF2,4,1)&MID(BF2,5,2)+350 -> A353:I361 | BH2: LINKS(BF2;1)&DEEL(BF2;2;1)+350&":"&DEEL(BF2;4;1)&DEEL(BF2;5;2)+350
A3: 1 | M3: 1 | R3: 1 | AG3: 2 | AH3: B14:L21 | AI3: 27 | AJ3: =LEFT(AH3,1)&MID(AH3,2,2)+350&":"&MID(AH3,5,1)&MID(AH3,6,2)+350 -> B364:L371 | AK3: 52 | AL3: =LEFT(AJ3,1)&MID(AJ3,2,3)+350&":"&MID(AJ3,6,1)&MID(AJ3,7,3)+350 -> B714:L721 | AM3: 77 | AN3: =LEFT(AL3,1)&MID(AL3,2,3)+350&":"&MID(AL3,6,1)&MID(AL3,7,3)+350 -> B1064:L1071 | AO3: 102 | AP3: =LEFT(AN3,1)&MID(AN3,2,4)+350&":"&MID(AN3,7,1)&MID(AN3,8,4)+350 -> B1414:L1421 | AQ3: 127 | AR3: =LEFT(AP3,1)&MID(AP3,2,4)+350&":"&MID(AP3,7,1)&MID(AP3,8,4)+350 -> B1764:L1771 | AS3: 152 | AT3: =LEFT(AR3,1)&MID(AR3,2,4)+350&":"&MID(AR3,7,1)&MID(AR3,8,4)+350 -> B2114:L2121 | AU3: 177 | AV3: =LEFT(AT3,1)&MID(AT3,2,4)+350&":"&MID(AT3,7,1)&MID(AT3,8,4)+350 -> B2464:L2471 | AW3: 202 | AX3: =LEFT(AV3,1)&MID(AV3,2,4)+350&":"&MID(AV3,7,1)&MID(AV3,8,4)+350 -> B2814:L2821 | AY3: 227 | AZ3: =LEFT(AX3,1)&MID(AX3,2,4)+350&":"&MID(AX3,7,1)&MID(AX3,8,4)+350 -> B3164:L3171 | BF3: A15:I23 | BG3: =LEFT(BF3,1)&MID(BF3,2,2)+350&":"&MID(BF3,5,1)&MID(BF3,6,2)+350 -> A365:I373 | BH3: LINKS(BF3;1)&DEEL(BF3;2;2)+350&":"&DEEL(BF3;4;1)&DEEL(BF3;5;2)+350
A4: 2 | M4: 2 | R4: 2 | AG4: 3 | AH4: B25:L32 | AI4: 28 | AJ4: =LEFT(AH4,1)&MID(AH4,2,2)+350&":"&MID(AH4,5,1)&MID(AH4,6,2)+350 -> B375:L382 | AK4: 53 | AL4: B725:L732 | AM4: 78 | AN4: B1075:L1082 | AO4: 103 | AP4: B1425:L1432 | AQ4: 128 | AR4: B1775:L1782 | AS4: 153 | AT4: B2125:L2132 | AU4: 178 | AV4: B2475:L2482 | AW4: 203 | AX4: B2825:L2832 | AY4: 228 | AZ4: B3175:L3182 | BF4: A99:I107 | BG4: =LEFT(BF4,1)&MID(BF4,2,2)+350&":"&MID(BF4,5,1)&MID(BF4,6,3)+350 -> A449:I457 | BH4: LINKS(BF4;1)&DEEL(BF4;2;2)+350&":"&DEEL(BF4;5;1)&DEEL(BF4;6;3)+350
A5: 3 | M5: 3 | R5: 3 | AG5: 4 | AH5: B36:L43 | AI5: 29 | AJ5: B386:L393 | AK5: 54 | AL5: B736:L743 | AM5: 79 | AN5: B1086:L1093 | AO5: 104 | AP5: B1436:L1443 | AQ5: 129 | AR5: B1786:L1793 | AS5: 154 | AT5: B2136:L2143 | AU5: 179 | AV5: B2486:L2493 | AW5: 204 | AX5: B2836:L2843 | AY5: 229 | AZ5: B3186:L3193 | BF5: A111:I119 | BG5: =LEFT(BF5,1)&MID(BF5,2,3)+350&":"&MID(BF5,6,1)&MID(BF5,7,3)+350 -> A461:I469 | BH5: LINKS(BF5;1)&DEEL(BF5;2;3)+350&":"&DEEL(BF5;6;1)&DEEL(BF5;7;3)+350
A6: 4 | M6: 4 | R6: 4 | AG6: 5 | AH6: B47:L54 | AI6: 30 | AJ6: B397:L404 | AK6: 55 | AL6: B747:L754 | AM6: 80 | AN6: B1097:L1104 | AO6: 105 | AP6: B1447:L1454 | AQ6: 130 | AR6: B1797:L1804 | AS6: 155 | AT6: B2147:L2154 | AU6: 180 | AV6: B2497:L2504 | AW6: 205 | AX6: B2847:L2854 | AY6: 230 | AZ6: B3197:L3204 | BF6: A999:I1007 | BG6: =LEFT(BF6,1)&MID(BF6,2,3)+350&":"&MID(BF6,6,1)&MID(BF6,7,4)+350 -> A1349:I1357 | BH6: LINKS(BF6;1)&DEEL(BF6;2;3)+350&":"&DEEL(BF6;6;1)&DEEL(BF6;7;4)+350
A7: 5 | M7: 5 | R7: 5 | AG7: 6 | AH7: B58:L65 | AI7: 31 | AJ7: B408:L415 | AK7: 56 | AL7: B758:L765 | AM7: 81 | AN7: B1108:L1115 | AO7: 106 | AP7: B1458:L1465 | AQ7: 131 | AR7: B1808:L1815 | AS7: 156 | AT7: B2158:L2165 | AU7: 181 | AV7: B2508:L2515 | AW7: 206 | AX7: B2858:L2865 | AY7: 231 | AZ7: B3208:L3215 | BF7: A1011:I1019 | BG7: =LEFT(BF7,1)&MID(BF7,2,4)+350&":"&MID(BF7,7,1)&MID(BF7,8,4)+350 -> A1361:I1369 | BH7: LINKS(BF7;1)&DEEL(BF7;2;4)+350&":"&DEEL(BF7;7;1)&DEEL(BF7;8;4)+350
A8: 6 | M8: 6 | R8: 6 | AG8: 7 | AH8: B69:L76 | AI8: 32 | AJ8: B419:L426 | AK8: 57 | AL8: B769:L776 | AM8: 82 | AN8: B1119:L1126 | AO8: 107 | AP8: B1469:L1476 | AQ8: 132 | AR8: B1819:L1826 | AS8: 157 | AT8: B2169:L2176 | AU8: 182 | AV8: B2519:L2526 | AW8: 207 | AX8: B2869:L2876 | AY8: 232 | AZ8: B3219:L3226 | BF8: A10011:I10019 | BG8: =LEFT(BF8,1)&MID(BF8,2,5)+350&":"&MID(BF8,8,1)&MID(BF8,9,5)+350 -> A10361:I10369 | BH8: LINKS(BF8;1)&DEEL(BF8;2;5)+350&":"&DEEL(BF8;8;1)&DEEL(BF8;9;5)+350
A9: 7 | M9: 7 | R9: 7 | AG9: 8 | AH9: B80:L87 | AI9: 33 | AJ9: B430:L437 | AK9: 58 | AL9: B780:L787 | AM9: 83 | AN9: B1130:L1137 | AO9: 108 | AP9: B1480:L1487 | AQ9: 133 | AR9: B1830:L1837 | AS9: 158 | AT9: B2180:L2187 | AU9: 183 | AV9: B2530:L2537 | AW9: 208 | AX9: B2880:L2887 | AY9: 233 | AZ9: B3230:L3237 | BF9: A9998:I10008 | BG9: =LEFT(BF9,1)&MID(BF9,2,4)+300&":"&MID(BF9,7,1)&MID(BF9,8,5)+300 -> A10298:I10308 | BH9: LINKS(BF9;1)&DEEL(BF9;2;4)+350&":"&DEEL(BF9;7;1)&DEEL(BF9;8;5)+350
A10: 8 | M10: 8 | R10: 8 | AG10: 9 | AH10: B91:L98 | AI10: 34 | AJ10: B441:L448 | AK10: 59 | AL10: B791:L798 | AM10: 84 | AN10: B1141:L1148 | AO10: 109 | AP10: B1491:L1498 | AQ10: 134 | AR10: B1841:L1848 | AS10: 159 | AT10: B2191:L2198 | AU10: 184 | AV10: B2541:L2548 | AW10: 209 | AX10: B2891:L2898 | AY10: 234 | AZ10: B3241:L3248
A11: 9 | M11: 9 | R11: 9 | AG11: 10 | AH11: B102:L109 | AI11: 35 | AJ11: =LEFT(AH11,1)&MID(AH11,2,3)+350&":"&MID(AH11,6,1)&MID(AH11,7,3)+350 -> B452:L459 | AK11: 60 | AL11: B802:L809 | AM11: 85 | AN11: B1152:L1159 | AO11: 110 | AP11: B1502:L1509 | AQ11: 135 | AR11: B1852:L1859 | AS11: 160 | AT11: B2202:L2209 | AU11: 185 | AV11: B2552:L2559 | AW11: 210 | AX11: B2902:L2909 | AY11: 235 | AZ11: B3252:L3259
A12: 10 | M12: 10 | R12: 10 | AG12: 11 | AH12: B113:L120 | AI12: 36 | AJ12: =LEFT(AH12,1)&MID(AH12,2,3)+350&":"&MID(AH12,6,1)&MID(AH12,7,3)+350 -> B463:L470 | AK12: 61 | AL12: B813:L820 | AM12: 86 | AN12: B1163:L1170 | AO12: 111 | AP12: B1513:L1520 | AQ12: 136 | AR12: B1863:L1870 | AS12: 161 | AT12: B2213:L2220 | AU12: 186 | AV12: B2563:L2570 | AW12: 211 | AX12: B2913:L2920 | AY12: 236 | AZ12: B3263:L3270
A13: 11 | M13: 11 | R13: 11 | AG13: 12 | AH13: B124:L131 | AI13: 37 | AJ13: B474:L481 | AK13: 62 | AL13: B824:L831 | AM13: 87 | AN13: B1174:L1181 | AO13: 112 | AP13: B1524:L1531 | AQ13: 137 | AR13: B1874:L1881 | AS13: 162 | AT13: B2224:L2231 | AU13: 187 | AV13: B2574:L2581 | AW13: 212 | AX13: B2924:L2931 | AY13: 237 | AZ13: B3274:L3281
R14: Verticaal: | AG14: 13 | AH14: B135:l142 | AI14: 38 | AJ14: B485:l492 | AK14: 63 | AL14: B835:l842 | AM14: 88 | AN14: B1185:l1192 | AO14: 113 | AP14: B1535:l1542 | AQ14: 138 | AR14: B1885:l1892 | AS14: 163 | AT14: B2235:l2242 | AU14: 188 | AV14: B2585:l2592 | AW14: 213 | AX14: B2935:l2942 | AY14: 238 | AZ14: B3285:l3292
M15: A | R15: A | AG15: 14 | AH15: B146:L153 | AI15: 39 | AJ15: B496:L503 | AK15: 64 | AL15: B846:L853 | AM15: 89 | AN15: B1196:L1203 | AO15: 114 | AP15: B1546:L1553 | AQ15: 139 | AR15: B1896:L1903 | AS15: 164 | AT15: B2246:L2253 | AU15: 189 | AV15: B2596:L2603 | AW15: 214 | AX15: B2946:L2953 | AY15: 239 | AZ15: B3296:L3303
M16: B | R16: B | AG16: 15 | AH16: B157:L164 | AI16: 40 | AJ16: B507:L514 | AK16: 65 | AL16: B857:L864 | AM16: 90 | AN16: B1207:L1214 | AO16: 115 | AP16: B1557:L1564 | AQ16: 140 | AR16: B1907:L1914 | AS16: 165 | AT16: B2257:L2264 | AU16: 190 | AV16: B2607:L2614 | AW16: 215 | AX16: B2957:L2964 | AY16: 240 | AZ16: B3307:L3314
D17: Controleer hieronder Uw antwoord en raadsel. | M17: C | R17: C | AG17: 16 | AH17: B168:L175 | AI17: 41 | AJ17: B518:L525 | AK17: 66 | AL17: B868:L875 | AM17: 91 | AN17: B1218:L1225 | AO17: 116 | AP17: B1568:L1575 | AQ17: 141 | AR17: B1918:L1925 | AS17: 166 | AT17: B2268:L2275 | AU17: 191 | AV17: B2618:L2625 | AW17: 216 | AX17: B2968:L2975 | AY17: 241 | AZ17: B3318:L3325
D18: Eerst alles invullen natuurlijk. | M18: D | R18: D | AG18: 17 | AH18: B179:L186 | AI18: 42 | AJ18: B529:L536 | AK18: 67 | AL18: B879:L886 | AM18: 92 | AN18: B1229:L1236 | AO18: 117 | AP18: B1579:L1586 | AQ18: 142 | AR18: B1929:L1936 | AS18: 167 | AT18: B2279:L2286 | AU18: 192 | AV18: B2629:L2636 | AW18: 217 | AX18: B2979:L2986 | AY18: 242 | AZ18: B3329:L3336
M19: E | R19: E | AG19: 18 | AH19: B190:L200 | AI19: 43 | AJ19: B540:L550 | AK19: 68 | AL19: B890:L900 | AM19: 93 | AN19: B1240:L1250 | AO19: 118 | AP19: B1590:L1600 | AQ19: 143 | AR19: B1940:L1950 | AS19: 168 | AT19: B2290:L2300 | AU19: 193 | AV19: B2640:L2650 | AW19: 218 | AX19: B2990:L3000 | AY19: 243 | AZ19: B3340:L3350
M20: F | R20: F | AG20: 19 | AH20: B204:L214 | AI20: 44 | AJ20: B554:L564 | AK20: 69 | AL20: B904:L914 | AM20: 94 | AN20: B1254:L1264 | AO20: 119 | AP20: B1604:L1614 | AQ20: 144 | AR20: B1954:L1964 | AS20: 169 | AT20: B2304:L2314 | AU20: 194 | AV20: B2654:L2664 | AW20: 219 | AX20: B3004:L3014 | AY20: 244 | AZ20: B3354:L3364
M21: G | R21: G | AG21: 20 | AH21: B218:L228 | AI21: 45 | AJ21: B568:L578 | AK21: 70 | AL21: B918:L928 | AM21: 95 | AN21: B1268:L1278 | AO21: 120 | AP21: B1618:L1628 | AQ21: 145 | AR21: B1968:L1978 | AS21: 170 | AT21: B2318:L2328 | AU21: 195 | AV21: B2668:L2678 | AW21: 220 | AX21: B3018:L3028 | AY21: 245 | AZ21: B3368:L3378
M22: H | R22: H | AG22: 21 | AH22: B232:L242 | AI22: 46 | AJ22: B582:L592 | AK22: 71 | AL22: B932:L942 | AM22: 96 | AN22: B1282:L1292 | AO22: 121 | AP22: B1632:L1642 | AQ22: 146 | AR22: B1982:L1992 | AS22: 171 | AT22: B2332:L2342 | AU22: 196 | AV22: B2682:L2692 | AW22: 221 | AX22: B3032:L3042 | AY22: 246 | AZ22: B3382:L3392
F23: Typ in D23 het nummer v/d opgave | M23: I | R23: I | AG23: 22 | AH23: B246:L256 | AI23: 47 | AJ23: B596:L606 | AK23: 72 | AL23: B946:L956 | AM23: 97 | AN23: B1296:L1306 | AO23: 122 | AP23: B1646:L1656 | AQ23: 147 | AR23: B1996:L2006 | AS23: 172 | AT23: B2346:L2356 | AU23: 197 | AV23: B2696:L2706 | AW23: 222 | AX23: B3046:L3056 | AY23: 247 | AZ23: B3396:L3406
D24: =IF(D23="","",VLOOKUP(D23,Oplossingen!A1:D701,3,0)) ->  | F24: Resultaat anagram | M24: J | R24: J | AG24: 23 | AH24: B260:L270 | AI24: 48 | AJ24: B610:L620 | AK24: 73 | AL24: B960:L970 | AM24: 98 | AN24: B1310:L1320 | AO24: 123 | AP24: B1660:L1670 | AQ24: 148 | AR24: B2010:L2020 | AS24: 173 | AT24: B2360:L2370 | AU24: 198 | AV24: B2710:L2720 | AW24: 223 | AX24: B3060:L3070 | AY24: 248 | AZ24: B3410:L3420
D25: De formules telkens aanpassen | M25: K | R25: K | AG25: 24 | AH25: B274:L284 | AI25: 49 | AJ25: B624:L634 | AK25: 74 | AL25: B974:L984 | AM25: 99 | AN25: B1324:L1334 | AO25: 124 | AP25: B1674:L1684 | AQ25: 149 | AR25: B2024:L2034 | AS25: 174 | AT25: B2374:L2384 | AU25: 199 | AV25: B2724:L2734 | AW25: 224 | AX25: B3074:L3084 | AY25: 249 | AZ25: B3424:L3434
D26: =IF(MIN(--(SUBSTITUTE(B3:L10,"#","")='Oplos Kruis'!B3:L10))=1,"Volledig juist","Er zitten nog fouten in") -> Er zitten nog fouten in | M26: L | R26: L | AG26: 25 | AH26: B288:L298 | AI26: 50 | AJ26: B638:L648 | AK26: 75 | AL26: B988:L998 | AM26: 100 | AN26: B1338:L1348 | AO26: 125 | AP26: B1688:L1698 | AQ26: 150 | AR26: B2038:L2048 | AS26: 175 | AT26: B2388:L2398 | AU26: 200 | AV26: B2738:L2748 | AW26: 225 | AX26: B3088:L3098 | AY26: 250 | AZ26: B3438:L3448
AG28: Opgave: | AH28: Formule: | AI28: Opgave: | AJ28: Formule: | AK28: Opgave: | AL28: Formule: | AM28: Opgave: | AN28: Formule: | AO28: Opgave: | AP28: Formule: | AQ28: Opgave: | AR28: Formule: | AS28: Opgave: | AT28: Formule: | AU28: Opgave: | AV28: Formule: | AW28: Opgave: | AX28: Formule: | AY28: Opgave: | AZ28: Formule:
AG29: 251 | AH29: B3452:L3462 | AI29: 276 | AJ29: =LEFT(AH29,1)&MID(AH29,2,4)+350&":"&MID(AH29,7,1)&MID(AH29,8,4)+350 -> B3802:L3812 | AK29: 301 | AL29: =LEFT(AJ29,1)&MID(AJ29,2,4)+350&":"&MID(AJ29,7,1)&MID(AJ29,8,4)+350 -> B4152:L4162 | AM29: 326 | AN29: =LEFT(AL29,1)&MID(AL29,2,4)+350&":"&MID(AL29,7,1)&MID(AL29,8,4)+350 -> B4502:L4512 | AO29: 351 | AP29: =LEFT(AN29,1)&MID(AN29,2,4)+350&":"&MID(AN29,7,1)&MID(AN29,8,4)+350 -> B4852:L4862 | AQ29: 376 | AR29: =LEFT(AP29,1)&MID(AP29,2,4)+350&":"&MID(AP29,7,1)&MID(AP29,8,4)+350 -> B5202:L5212 | AS29: 401 | AT29: =LEFT(AR29,1)&MID(AR29,2,4)+350&":"&MID(AR29,7,1)&MID(AR29,8,4)+350 -> B5552:L5562 | AU29: 426 | AV29: =LEFT(AT29,1)&MID(AT29,2,4)+350&":"&MID(AT29,7,1)&MID(AT29,8,4)+350 -> B5902:L5912 | AW29: 451 | AX29: =LEFT(AV29,1)&MID(AV29,2,4)+350&":"&MID(AV29,7,1)&MID(AV29,8,4)+350 -> B6252:L6262 | AY29: 476 | AZ29: =LEFT(AX29,1)&MID(AX29,2,4)+350&":"&MID(AX29,7,1)&MID(AX29,8,4)+350 -> B6602:L6612
AG30: 252 | AH30: B3466:L3476 | AI30: 277 | AJ30: =LEFT(AH30,1)&MID(AH30,2,4)+350&":"&MID(AH30,7,1)&MID(AH30,8,4)+350 -> B3816:L3826 | AK30: 302 | AL30: =LEFT(AJ30,1)&MID(AJ30,2,4)+350&":"&MID(AJ30,7,1)&MID(AJ30,8,4)+350 -> B4166:L4176 | AM30: 327 | AN30: =LEFT(AL30,1)&MID(AL30,2,4)+350&":"&MID(AL30,7,1)&MID(AL30,8,4)+350 -> B4516:L4526 | AO30: 352 | AP30: =LEFT(AN30,1)&MID(AN30,2,4)+350&":"&MID(AN30,7,1)&MID(AN30,8,4)+350 -> B4866:L4876 | AQ30: 377 | AR30: =LEFT(AP30,1)&MID(AP30,2,4)+350&":"&MID(AP30,7,1)&MID(AP30,8,4)+350 -> B5216:L5226 | AS30: 402 | AT30: =LEFT(AR30,1)&MID(AR30,2,4)+350&":"&MID(AR30,7,1)&MID(AR30,8,4)+350 -> B5566:L5576 | AU30: 427 | AV30: =LEFT(AT30,1)&MID(AT30,2,4)+350&":"&MID(AT30,7,1)&MID(AT30,8,4)+350 -> B5916:L5926 | AW30: 452 | AX30: =LEFT(AV30,1)&MID(AV30,2,4)+350&":"&MID(AV30,7,1)&MID(AV30,8,4)+350 -> B6266:L6276 | AY30: 477 | AZ30: =LEFT(AX30,1)&MID(AX30,2,4)+350&":"&MID(AX30,7,1)&MID(AX30,8,4)+350 -> B6616:L6626
AG31: 253 | AH31: B3480:L3490 | AI31: 278 | AJ31: B3830:L3840 | AK31: 303 | AL31: B4180:L4190 | AM31: 328 | AN31: B4530:L4540 | AO31: 353 | AP31: B4880:L4890 | AQ31: 378 | AR31: B5230:L5240 | AS31: 403 | AT31: B5580:L5590 | AU31: 428 | AV31: B5930:L5940 | AW31: 453 | AX31: B6280:L6290 | AY31: 478 | AZ31: B6630:L6640
AG32: 254 | AH32: B3494:L3504 | AI32: 279 | AJ32: B3844:L3854 | AK32: 304 | AL32: B4194:L4204 | AM32: 329 | AN32: B4544:L4554 | AO32: 354 | AP32: B4894:L4904 | AQ32: 379 | AR32: B5244:L5254 | AS32: 404 | AT32: B5594:L5604 | AU32: 429 | AV32: B5944:L5954 | AW32: 454 | AX32: B6294:L6304 | AY32: 479 | AZ32: B6644:L6654
AG33: 255 | AH33: B3508:L3518 | AI33: 280 | AJ33: B3858:L3868 | AK33: 305 | AL33: B4208:L4218 | AM33: 330 | AN33: B4558:L4568 | AO33: 355 | AP33: B4908:L4918 | AQ33: 380 | AR33: B5258:L5268 | AS33: 405 | AT33: B5608:L5618 | AU33: 430 | AV33: B5958:L5968 | AW33: 455 | AX33: B6308:L6318 | AY33: 480 | AZ33: B6658:L6668
AG34: 256 | AH34: B3522:L3532 | AI34: 281 | AJ34: B3872:L3882 | AK34: 306 | AL34: B4222:L4232 | AM34: 331 | AN34: B4572:L4582 | AO34: 356 | AP34: B4922:L4932 | AQ34: 381 | AR34: B5272:L5282 | AS34: 406 | AT34: B5622:L5632 | AU34: 431 | AV34: B5972:L5982 | AW34: 456 | AX34: B6322:L6332 | AY34: 481 | AZ34: B6672:L6682
AG35: 257 | AH35: B3536:L3546 | AI35: 282 | AJ35: B3886:L3896 | AK35: 307 | AL35: B4236:L4246 | AM35: 332 | AN35: B4586:L4596 | AO35: 357 | AP35: B4936:L4946 | AQ35: 382 | AR35: B5286:L5296 | AS35: 407 | AT35: B5636:L5646 | AU35: 432 | AV35: B5986:L5996 | AW35: 457 | AX35: B6336:L6346 | AY35: 482 | AZ35: B6686:L6696
AG36: 258 | AH36: B3550:L3560 | AI36: 283 | AJ36: B3900:L3910 | AK36: 308 | AL36: B4250:L4260 | AM36: 333 | AN36: B4600:L4610 | AO36: 358 | AP36: B4950:L4960 | AQ36: 383 | AR36: B5300:L5310 | AS36: 408 | AT36: B5650:L5660 | AU36: 433 | AV36: B6000:L6010 | AW36: 458 | AX36: B6350:L6360 | AY36: 483 | AZ36: B6700:L6710
AG37: 259 | AH37: B3564:L3574 | AI37: 284 | AJ37: B3914:L3924 | AK37: 309 | AL37: B4264:L4274 | AM37: 334 | AN37: B4614:L4624 | AO37: 359 | AP37: B4964:L4974 | AQ37: 384 | AR37: B5314:L5324 | AS37: 409 | AT37: B5664:L5674 | AU37: 434 | AV37: B6014:L6024 | AW37: 459 | AX37: B6364:L6374 | AY37: 484 | AZ37: B6714:L6724
AG38: 260 | AH38: B3578:L3588 | AI38: 285 | AJ38: B3928:L3938 | AK38: 310 | AL38: B4278:L4288 | AM38: 335 | AN38: B4628:L4638 | AO38: 360 | AP38: B4978:L4988 | AQ38: 385 | AR38: B5328:L5338 | AS38: 410 | AT38: B5678:L5688 | AU38: 435 | AV38: B6028:L6038 | AW38: 460 | AX38: B6378:L6388 | AY38: 485 | AZ38: B6728:L6738
AG39: 261 | AH39: B3592:L3602 | AI39: 286 | AJ39: B3942:L3952 | AK39: 311 | AL39: B4292:L4302 | AM39: 336 | AN39: B4642:L4652 | AO39: 361 | AP39: B4992:L5002 | AQ39: 386 | AR39: B5342:L5352 | AS39: 411 | AT39: B5692:L5702 | AU39: 436 | AV39: B6042:L6052 | AW39: 461 | AX39: B6392:L6402 | AY39: 486 | AZ39: B6742:L6752
AG40: 262 | AH40: B3606:L3616 | AI40: 287 | AJ40: B3956:L3966 | AK40: 312 | AL40: B4306:L4316 | AM40: 337 | AN40: B4656:L4666 | AO40: 362 | AP40: B5006:L5016 | AQ40: 387 | AR40: B5356:L5366 | AS40: 412 | AT40: B5706:L5716 | AU40: 437 | AV40: B6056:L6066 | AW40: 462 | AX40: B6406:L6416 | AY40: 487 | AZ40: B6756:L6766
AG41: 263 | AH41: B3620:L3630 | AI41: 288 | AJ41: B3970:L3980 | AK41: 313 | AL41: B4320:L4330 | AM41: 338 | AN41: B4670:L4680 | AO41: 363 | AP41: B5020:L5030 | AQ41: 388 | AR41: B5370:L5380 | AS41: 413 | AT41: B5720:L5730 | AU41: 438 | AV41: B6070:L6080 | AW41: 463 | AX41: B6420:L6430 | AY41: 488 | AZ41: B6770:L6780
AG42: 264 | AH42: B3634:L3644 | AI42: 289 | AJ42: B3984:L3994 | AK42: 314 | AL42: B4334:L4344 | AM42: 339 | AN42: B4684:L4694 | AO42: 364 | AP42: B5034:L5044 | AQ42: 389 | AR42: B5384:L5394 | AS42: 414 | AT42: B5734:L5744 | AU42: 439 | AV42: B6084:L6094 | AW42: 464 | AX42: B6434:L6444 | AY42: 489 | AZ42: B6784:L6794
AG43: 265 | AH43: B3648:L3658 | AI43: 290 | AJ43: B3998:L4008 | AK43: 315 | AL43: B4348:L4358 | AM43: 340 | AN43: B4698:L4708 | AO43: 365 | AP43: B5048:L5058 | AQ43: 390 | AR43: B5398:L5408 | AS43: 415 | AT43: B5748:L5758 | AU43: 440 | AV43: B6098:L6108 | AW43: 465 | AX43: B6448:L6458 | AY43: 490 | AZ43: B6798:L6808
AG44: 266 | AH44: B3662:L3672 | AI44: 291 | AJ44: B4012:L4022 | AK44: 316 | AL44: B4362:L4372 | AM44: 341 | AN44: B4712:L4722 | AO44: 366 | AP44: B5062:L5072 | AQ44: 391 | AR44: B5412:L5422 | AS44: 416 | AT44: B5762:L5772 | AU44: 441 | AV44: B6112:L6122 | AW44: 466 | AX44: B6462:L6472 | AY44: 491 | AZ44: B6812:L6822
AG45: 267 | AH45: B3676:L3686 | AI45: 292 | AJ45: B4026:L4036 | AK45: 317 | AL45: B4376:L4386 | AM45: 342 | AN45: B4726:L4736 | AO45: 367 | AP45: B5076:L5086 | AQ45: 392 | AR45: B5426:L5436 | AS45: 417 | AT45: B5776:L5786 | AU45: 442 | AV45: B6126:L6136 | AW45: 467 | AX45: B6476:L6486 | AY45: 492 | AZ45: B6826:L6836
AG46: 268 | AH46: B3690:L3700 | AI46: 293 | AJ46: B4040:L4050 | AK46: 318 | AL46: B4390:L4400 | AM46: 343 | AN46: B4740:L4750 | AO46: 368 | AP46: B5090:L5100 | AQ46: 393 | AR46: B5440:L5450 | AS46: 418 | AT46: B5790:L5800 | AU46: 443 | AV46: B6140:L6150 | AW46: 468 | AX46: B6490:L6500 | AY46: 493 | AZ46: B6840:L6850
AG47: 269 | AH47: B3704:L3714 | AI47: 294 | AJ47: B4054:L4064 | AK47: 319 | AL47: B4404:L4414 | AM47: 344 | AN47: B4754:L4764 | AO47: 369 | AP47: B5104:L5114 | AQ47: 394 | AR47: B5454:L5464 | AS47: 419 | AT47: B5804:L5814 | AU47: 444 | AV47: B6154:L6164 | AW47: 469 | AX47: B6504:L6514 | AY47: 494 | AZ47: B6854:L6864
AG48: 270 | AH48: B3718:L3728 | AI48: 295 | AJ48: B4068:L4078 | AK48: 320 | AL48: B4418:L4428 | AM48: 345 | AN48: B4768:L4778 | AO48: 370 | AP48: B5118:L5128 | AQ48: 395 | AR48: B5468:L5478 | AS48: 420 | AT48: B5818:L5828 | AU48: 445 | AV48: B6168:L6178 | AW48: 470 | AX48: B6518:L6528 | AY48: 495 | AZ48: B6868:L6878
AG49: 271 | AH49: B3732:L3742 | AI49: 296 | AJ49: B4082:L4092 | AK49: 321 | AL49: B4432:L4442 | AM49: 346 | AN49: B4782:L4792 | AO49: 371 | AP49: B5132:L5142 | AQ49: 396 | AR49: B5482:L5492 | AS49: 421 | AT49: B5832:L5842 | AU49: 446 | AV49: B6182:L6192 | AW49: 471 | AX49: B6532:L6542 | AY49: 496 | AZ49: B6882:L6892
AG50: 272 | AH50: B3746:L3756 | AI50: 297 | AJ50: B4096:L4106 | AK50: 322 | AL50: B4446:L4456 | AM50: 347 | AN50: B4796:L4806 | AO50: 372 | AP50: B5146:L5156 | AQ50: 397 | AR50: B5496:L5506 | AS50: 422 | AT50: B5846:L5856 | AU50: 447 | AV50: B6196:L6206 | AW50: 472 | AX50: B6546:L6556 | AY50: 497 | AZ50: B6896:L6906
AG51: 273 | AH51: B3760:L3770 | AI51: 298 | AJ51: B4110:L4120 | AK51: 323 | AL51: B4460:L4470 | AM51: 348 | AN51: B4810:L4820 | AO51: 373 | AP51: B5160:L5170 | AQ51: 398 | AR51: B5510:L5520 | AS51: 423 | AT51: B5860:L5870 | AU51: 448 | AV51: B6210:L6220 | AW51: 473 | AX51: B6560:L6570 | AY51: 498 | AZ51: B6910:L6920
AG52: 274 | AH52: B3774:L3784 | AI52: 299 | AJ52: B4124:L4134 | AK52: 324 | AL52: B4474:L4484 | AM52: 349 | AN52: B4824:L4834 | AO52: 374 | AP52: B5174:L5184 | AQ52: 399 | AR52: B5524:L5534 | AS52: 424 | AT52: B5874:L5884 | AU52: 449 | AV52: B6224:L6234 | AW52: 474 | AX52: B6574:L6584 | AY52: 499 | AZ52: B6924:L6934
AG53: 275 | AH53: B3788:L3798 | AI53: 300 | AJ53: B4138:L4148 | AK53: 325 | AL53: B4488:L4498 | AM53: 350 | AN53: B4838:L4848 | AO53: 375 | AP53: B5188:L5198 | AQ53: 400 | AR53: B5538:L5548 | AS53: 425 | AT53: B5888:L5898 | AU53: 450 | AV53: B6238:L6248 | AW53: 475 | AX53: B6588:L6598 | AY53: 500 | AZ53: B6938:L6948
AG55: Opgave: | AH55: Formule: | AI55: Opgave: | AJ55: Formule: | AK55: Opgave: | AL55: Formule: | AM55: Opgave: | AN55: Formule: | AO55: Opgave: | AP55: Formule: | AQ55: Opgave: | AR55: Formule: | AS55: Opgave: | AT55: Formule: | AU55: Opgave: | AV55: Formule: | AW55: Opgave: | AX55: Formule: | AY55: Opgave: | AZ55: Formule: | BF55: B3788:L3798
AG56: 501 | AH56: B6952:L6962 | AI56: 526 | AJ56: =LEFT(AH56,1)&MID(AH56,2,4)+350&":"&MID(AH56,7,1)&MID(AH56,8,4)+350 -> B7302:L7312 | AK56: 551 | AL56: =LEFT(AJ56,1)&MID(AJ56,2,4)+350&":"&MID(AJ56,7,1)&MID(AJ56,8,4)+350 -> B7652:L7662 | AM56: 576 | AN56: =LEFT(AL56,1)&MID(AL56,2,4)+350&":"&MID(AL56,7,1)&MID(AL56,8,4)+350 -> B8002:L8012 | AO56: 601 | AP56: =LEFT(AN56,1)&MID(AN56,2,4)+350&":"&MID(AN56,7,1)&MID(AN56,8,4)+350 -> B8352:L8362 | AQ56: 626 | AR56: =LEFT(AP56,1)&MID(AP56,2,4)+350&":"&MID(AP56,7,1)&MID(AP56,8,4)+350 -> B8702:L8712 | AS56: 651 | AT56: =LEFT(AR56,1)&MID(AR56,2,4)+350&":"&MID(AR56,7,1)&MID(AR56,8,4)+350 -> B9052:L9062 | AU56: 676 | AV56: =LEFT(AT56,1)&MID(AT56,2,4)+350&":"&MID(AT56,7,1)&MID(AT56,8,4)+350 -> B9402:L9412 | AW56: 701 | AX56: =LEFT(AV56,1)&MID(AV56,2,4)+350&":"&MID(AV56,7,1)&MID(AV56,8,4)+350 -> B9752:L9762 | AY56: 726 | AZ56: =LEFT(AX56,1)&MID(AX56,2,4)+350&":"&MID(AX56,7,1)&MID(AX56,8,4)+350 -> B10102:L10112 | BF56: =LEFT(BF55,1)&MID(BF55,2,4)+350&":"&MID(BF55,7,1)&MID(BF55,8,4)+350 -> B4138:L4148 | BG56: zie formule
AG57: 502 | AH57: B6966:L6976 | AI57: 527 | AJ57: =LEFT(AH57,1)&MID(AH57,2,4)+350&":"&MID(AH57,7,1)&MID(AH57,8,4)+350 -> B7316:L7326 | AK57: 552 | AL57: =LEFT(AJ57,1)&MID(AJ57,2,4)+350&":"&MID(AJ57,7,1)&MID(AJ57,8,4)+350 -> B7666:L7676 | AM57: 577 | AN57: =LEFT(AL57,1)&MID(AL57,2,4)+350&":"&MID(AL57,7,1)&MID(AL57,8,4)+350 -> B8016:L8026 | AO57: 602 | AP57: =LEFT(AN57,1)&MID(AN57,2,4)+350&":"&MID(AN57,7,1)&MID(AN57,8,4)+350 -> B8366:L8376 | AQ57: 627 | AR57: =LEFT(AP57,1)&MID(AP57,2,4)+350&":"&MID(AP57,7,1)&MID(AP57,8,4)+350 -> B8716:L8726 | AS57: 652 | AT57: =LEFT(AR57,1)&MID(AR57,2,4)+350&":"&MID(AR57,7,1)&MID(AR57,8,4)+350 -> B9066:L9076 | AU57: 677 | AV57: =LEFT(AT57,1)&MID(AT57,2,4)+350&":"&MID(AT57,7,1)&MID(AT57,8,4)+350 -> B9416:L9426 | AW57: 702 | AX57: =LEFT(AV57,1)&MID(AV57,2,4)+350&":"&MID(AV57,7,1)&MID(AV57,8,4)+350 -> B9766:L9776 | AY57: 727 | AZ57: =LEFT(AX57,1)&MID(AX57,2,4)+350&":"&MID(AX57,7,1)&MID(AX57,8,4)+350 -> B10116:L10126 | BF57: Nu staat er WAARDE
AG58: 503 | AH58: B6980:L6990 | AI58: 528 | AJ58: B7330:L7340 | AK58: 553 | AL58: B7680:L7690 | AM58: 578 | AN58: B8030:L8040 | AO58: 603 | AP58: B8380:L8390 | AQ58: 628 | AR58: B8730:L8740 | AS58: 653 | AT58: B9080:L9090 | AU58: 678 | AV58: B9430:L9440 | AW58: 703 | AX58: B9780:L9790 | AY58: 728 | AZ58: B10130:L10140 | BF58: kolomletter en rij nr
AG59: 504 | AH59: B6994:L7004 | AI59: 529 | AJ59: B7344:L7354 | AK59: 554 | AL59: B7694:L7704 | AM59: 579 | AN59: B8044:L8054 | AO59: 604 | AP59: B8394:L8404 | AQ59: 629 | AR59: B8744:L8754 | AS59: 654 | AT59: B9094:L9104 | AU59: 679 | AV59: B9444:L9454 | AW59: 704 | AX59: B9794:L9804 | AY59: 729 | AZ59: B10144:L10154 | BF59: aanpassen
AG60: 505 | AH60: B7008:L7018 | AI60: 530 | AJ60: B7358:L7368 | AK60: 555 | AL60: B7708:L7718 | AM60: 580 | AN60: B8058:L8068 | AO60: 605 | AP60: B8408:L8418 | AQ60: 630 | AR60: B8758:L8768 | AS60: 655 | AT60: B9108:L9118 | AU60: 680 | AV60: B9458:L9468 | AW60: 705 | AX60: B9808:L9818 | AY60: 730 | AZ60: B10158:L10168 | BF60: Formule aanpassen(5 cijfers)
AG61: 506 | AH61: B7022:L7032 | AI61: 531 | AJ61: B7372:L7382 | AK61: 556 | AL61: B7722:L7732 | AM61: 581 | AN61: B8072:L8082 | AO61: 606 | AP61: B8422:L8432 | AQ61: 631 | AR61: B8772:L8782 | AS61: 656 | AT61: B9122:L9132 | AU61: 681 | AV61: B9472:L9482 | AW61: 706 | AX61: B9822:L9832 | AY61: 731 | AZ61: B10172:L10182 | BF61: zie kruiswoordraadsel
AG62: 507 | AH62: B7036:L7046 | AI62: 532 | AJ62: B7386:L7396 | AK62: 557 | AL62: B7736:L7746 | AM62: 582 | AN62: B8086:L8096 | AO62: 607 | AP62: B8436:L8446 | AQ62: 632 | AR62: B8786:L8796 | AS62: 657 | AT62: B9136:L9146 | AU62: 682 | AV62: B9486:L9496 | AW62: 707 | AX62: B9836:L9846 | AY62: 732 | AZ62: B10186:L10196
AG63: 508 | AH63: B7050:L7060 | AI63: 533 | AJ63: B7400:L7410 | AK63: 558 | AL63: B7750:L7760 | AM63: 583 | AN63: B8100:L8110 | AO63: 608 | AP63: B8450:L8460 | AQ63: 633 | AR63: B8800:L8810 | AS63: 658 | AT63: B9150:L9160 | AU63: 683 | AV63: B9500:L9510 | AW63: 708 | AX63: B9850:L9860 | AY63: 733 | AZ63: B10200:L10210
AG64: 509 | AH64: B7064:L7074 | AI64: 534 | AJ64: B7414:L7424 | AK64: 559 | AL64: B7764:L7774 | AM64: 584 | AN64: B8114:L8124 | AO64: 609 | AP64: B8464:L8474 | AQ64: 634 | AR64: B8814:L8824 | AS64: 659 | AT64: B9164:L9174 | AU64: 684 | AV64: B9514:L9524 | AW64: 709 | AX64: B9864:L9874 | AY64: 734 | AZ64: B10214:L10224
AG65: 510 | AH65: B7078:L7088 | AI65: 535 | AJ65: B7428:L7438 | AK65: 560 | AL65: B7778:L7788 | AM65: 585 | AN65: B8128:L8138 | AO65: 610 | AP65: B8478:L8488 | AQ65: 635 | AR65: B8828:L8838 | AS65: 660 | AT65: B9178:L9188 | AU65: 685 | AV65: B9528:L9538 | AW65: 710 | AX65: B9878:L9888 | AY65: 735 | AZ65: B10228:L10238
AG66: 511 | AH66: B7092:L7102 | AI66: 536 | AJ66: B7442:L7452 | AK66: 561 | AL66: B7792:L7802 | AM66: 586 | AN66: B8142:L8152 | AO66: 611 | AP66: B8492:L8502 | AQ66: 636 | AR66: B8842:L8852 | AS66: 661 | AT66: B9192:L9202 | AU66: 686 | AV66: B9542:L9552 | AW66: 711 | AX66: B9892:L9902 | AY66: 736 | AZ66: B10242:L10252
AG67: 512 | AH67: B7106:L7116 | AI67: 537 | AJ67: B7456:L7466 | AK67: 562 | AL67: B7806:L7816 | AM67: 587 | AN67: B8156:L8166 | AO67: 612 | AP67: B8506:L8516 | AQ67: 637 | AR67: B8856:L8866 | AS67: 662 | AT67: B9206:L9216 | AU67: 687 | AV67: B9556:L9566 | AW67: 712 | AX67: B9906:L9916 | AY67: 737 | AZ67: B10256:L10266
AG68: 513 | AH68: B7120:L7130 | AI68: 538 | AJ68: B7470:L7480 | AK68: 563 | AL68: B7820:L7830 | AM68: 588 | AN68: B8170:L8180 | AO68: 613 | AP68: B8520:L8530 | AQ68: 638 | AR68: B8870:L8880 | AS68: 663 | AT68: B9220:L9230 | AU68: 688 | AV68: B9570:L9580 | AW68: 713 | AX68: B9920:L9930 | AY68: 738 | AZ68: B10270:L10280
AG69: 514 | AH69: B7134:L7144 | AI69: 539 | AJ69: B7484:L7494 | AK69: 564 | AL69: B7834:L7844 | AM69: 589 | AN69: B8184:L8194 | AO69: 614 | AP69: B8534:L8544 | AQ69: 639 | AR69: B8884:L8894 | AS69: 664 | AT69: B9234:L9244 | AU69: 689 | AV69: B9584:L9594 | AW69: 714 | AX69: B9934:L9944 | AY69: 739 | AZ69: B10284:L10294
AG70: 515 | AH70: B7148:L7158 | AI70: 540 | AJ70: B7498:L7508 | AK70: 565 | AL70: B7848:L7858 | AM70: 590 | AN70: B8198:L8208 | AO70: 615 | AP70: B8548:L8558 | AQ70: 640 | AR70: B8898:L8908 | AS70: 665 | AT70: B9248:L9258 | AU70: 690 | AV70: B9598:L9608 | AW70: 715 | AX70: B9948:L9958 | AY70: 740 | AZ70: B10298:L10308
AG71: 516 | AH71: B7162:L7172 | AI71: 541 | AJ71: B7512:L7522 | AK71: 566 | AL71: B7862:L7872 | AM71: 591 | AN71: B8212:L8222 | AO71: 616 | AP71: B8562:L8572 | AQ71: 641 | AR71: B8912:L8922 | AS71: 666 | AT71: B9262:L9272 | AU71: 691 | AV71: B9612:L9622 | AW71: 716 | AX71: B9962:L9972 | AY71: 741 | AZ71: B10312:L10322
AG72: 517 | AH72: B7176:L7186 | AI72: 542 | AJ72: B7526:L7536 | AK72: 567 | AL72: B7876:L7886 | AM72: 592 | AN72: B8226:L8236 | AO72: 617 | AP72: B8576:L8586 | AQ72: 642 | AR72: B8926:L8936 | AS72: 667 | AT72: B9276:L9286 | AU72: 692 | AV72: B9626:L9636 | AW72: 717 | AX72: B9976:L9986 | AY72: 742 | AZ72: B10326:L10336
AG73: 518 | AH73: B7190:L7200 | AI73: 543 | AJ73: B7540:L7550 | AK73: 568 | AL73: B7890:L7900 | AM73: 593 | AN73: B8240:L8250 | AO73: 618 | AP73: B8590:L8600 | AQ73: 643 | AR73: B8940:L8950 | AS73: 668 | AT73: B9290:L9300 | AU73: 693 | AV73: B9640:L9650 | AW73: 718 | AX73: B9990:L10000 | AY73: 743 | AZ73: =LEFT(AX73,1)&MID(AX73,2,4)+350&":"&MID(AX73,7,1)&MID(AX73,8,5)+350 -> B10340:L10350
AG74: 519 | AH74: B7204:L7214 | AI74: 544 | AJ74: B7554:L7564 | AK74: 569 | AL74: B7904:L7914 | AM74: 594 | AN74: B8254:L8264 | AO74: 619 | AP74: B8604:L8614 | AQ74: 644 | AR74: B8954:L8964 | AS74: 669 | AT74: B9304:L9314 | AU74: 694 | AV74: B9654:L9664 | AW74: 719 | AX74: B10004:L10014 | AY74: 744 | AZ74: =LEFT(AX74,1)&MID(AX74,2,5)+350&":"&MID(AX74,8,1)&MID(AX74,9,5)+350 -> B10354:L10364
AG75: 520 | AH75: B7218:L7228 | AI75: 545 | AJ75: B7568:L7578 | AK75: 570 | AL75: B7918:L7928 | AM75: 595 | AN75: B8268:L8278 | AO75: 620 | AP75: B8618:L8628 | AQ75: 645 | AR75: B8968:L8978 | AS75: 670 | AT75: B9318:L9328 | AU75: 695 | AV75: B9668:L9678 | AW75: 720 | AX75: B10018:L10028 | AY75: 745 | AZ75: =LEFT(AX75,1)&MID(AX75,2,5)+350&":"&MID(AX75,8,1)&MID(AX75,9,5)+350 -> B10368:L10378
AG76: 521 | AH76: B7232:L7242 | AI76: 546 | AJ76: B7582:L7592 | AK76: 571 | AL76: B7932:L7942 | AM76: 596 | AN76: B8282:L8292 | AO76: 621 | AP76: B8632:L8642 | AQ76: 646 | AR76: B8982:L8992 | AS76: 671 | AT76: B9332:L9342 | AU76: 696 | AV76: B9682:L9692 | AW76: 721 | AX76: B10032:L10042 | AY76: 746 | AZ76: B10382:L10392
AG77: 522 | AH77: B7246:L7256 | AI77: 547 | AJ77: B7596:L7606 | AK77: 572 | AL77: B7946:L7956 | AM77: 597 | AN77: B8296:L8306 | AO77: 622 | AP77: B8646:L8656 | AQ77: 647 | AR77: B8996:L9006 | AS77: 672 | AT77: B9346:L9356 | AU77: 697 | AV77: B9696:L9706 | AW77: 722 | AX77: B10046:L10056 | AY77: 747 | AZ77: B10396:L10406
AG78: 523 | AH78: B7260:L7270 | AI78: 548 | AJ78: B7610:L7620 | AK78: 573 | AL78: B7960:L7970 | AM78: 598 | AN78: B8310:L8320 | AO78: 623 | AP78: B8660:L8670 | AQ78: 648 | AR78: B9010:L9020 | AS78: 673 | AT78: B9360:L9370 | AU78: 698 | AV78: B9710:L9720 | AW78: 723 | AX78: B10060:L10070 | AY78: 748 | AZ78: B10410:L10420
AG79: 524 | AH79: B7274:L7284 | AI79: 549 | AJ79: B7624:L7634 | AK79: 574 | AL79: B7974:L7984 | AM79: 599 | AN79: B8324:L8334 | AO79: 624 | AP79: B8674:L8684 | AQ79: 649 | AR79: B9024:L9034 | AS79: 674 | AT79: B9374:L9384 | AU79: 699 | AV79: B9724:L9734 | AW79: 724 | AX79: B10074:L10084 | AY79: 749 | AZ79: B10424:L10434
AG80: 525 | AH80: B7288:L7298 | AI80: 550 | AJ80: B7638:L7648 | AK80: 575 | AL80: B7988:L7998 | AM80: 600 | AN80: B8338:L8348 | AO80: 625 | AP80: B8688:L8698 | AQ80: 650 | AR80: B9038:L9048 | AS80: 675 | AT80: B9388:L9398 | AU80: 700 | AV80: B9738:L9748 | AW80: 725 | AX80: B10088:L10098 | AY80: 750 | AZ80: B10438:L10448
AG82: Opgave: | AH82: Formule: | AI82: Opgave: | AJ82: Formule: | AK82: Opgave: | AL82: Formule: | AM82: Opgave: | AN82: Formule: | AO82: Opgave: | AP82: Formule: | AQ82: Opgave: | AR82: Formule: | AS82: Opgave: | AT82: Formule: | AU82: Opgave: | AV82: Formule: | AW82: Opgave: | AX82: Formule: | AY82: Opgave: | AZ82: Formule:
AG83: 751 | AH83: B10452:L10462 | AI83: 776 | AJ83: =LEFT(AH83,1)&MID(AH83,2,5)+350&":"&MID(AH83,8,1)&MID(AH83,9,5)+350 -> B10802:L10812 | AK83: 801 | AL83: =LEFT(AJ83,1)&MID(AJ83,2,5)+350&":"&MID(AJ83,8,1)&MID(AJ83,9,5)+350 -> B11152:L11162 | AM83: 826 | AN83: =LEFT(AL83,1)&MID(AL83,2,5)+350&":"&MID(AL83,8,1)&MID(AL83,9,5)+350 -> B11502:L11512 | AO83: 851 | AP83: =LEFT(AN83,1)&MID(AN83,2,5)+350&":"&MID(AN83,8,1)&MID(AN83,9,5)+350 -> B11852:L11862 | AQ83: 876 | AR83: =LEFT(AP83,1)&MID(AP83,2,5)+350&":"&MID(AP83,8,1)&MID(AP83,9,5)+350 -> B12202:L12212 | AS83: 901 | AT83: B12552:L12562 | AU83: 926 | AV83: B12902:L12912 | AW83: 951 | AX83: B13252:L13262 | AY83: 976 | AZ83: B13602:L13612
AG84: 752 | AH84: B10466:L10476 | AI84: 777 | AJ84: =LEFT(AH84,1)&MID(AH84,2,5)+350&":"&MID(AH84,8,1)&MID(AH84,9,5)+350 -> B10816:L10826 | AK84: 802 | AL84: =LEFT(AJ84,1)&MID(AJ84,2,5)+350&":"&MID(AJ84,8,1)&MID(AJ84,9,5)+350 -> B11166:L11176 | AM84: 827 | AN84: =LEFT(AL84,1)&MID(AL84,2,5)+350&":"&MID(AL84,8,1)&MID(AL84,9,5)+350 -> B11516:L11526 | AO84: 852 | AP84: B11866:L11876 | AQ84: 877 | AR84: B12216:L12226 | AS84: 902 | AT84: B12566:L12576 | AU84: 927 | AV84: B12916:L12926 | AW84: 952 | AX84: B13266:L13276 | AY84: 977 | AZ84: B13616:L13626
AG85: 753 | AH85: B10480:L10490 | AI85: 778 | AJ85: B10830:L10840 | AK85: 803 | AL85: B11180:L11190 | AM85: 828 | AN85: B11530:L11540 | AO85: 853 | AP85: B11880:L11890 | AQ85: 878 | AR85: B12230:L12240 | AS85: 903 | AT85: B12580:L12590 | AU85: 928 | AV85: B12930:L12940 | AW85: 953 | AX85: B13280:L13290 | AY85: 978 | AZ85: B13630:L13640
AG86: 754 | AH86: B10494:L10504 | AI86: 779 | AJ86: B10844:L10854 | AK86: 804 | AL86: B11194:L11204 | AM86: 829 | AN86: B11544:L11554 | AO86: 854 | AP86: B11894:L11904 | AQ86: 879 | AR86: B12244:L12254 | AS86: 904 | AT86: B12594:L12604 | AU86: 929 | AV86: B12944:L12954 | AW86: 954 | AX86: B13294:L13304 | AY86: 979 | AZ86: B13644:L13654
AG87: 755 | AH87: B10508:L10518 | AI87: 780 | AJ87: B10858:L10868 | AK87: 805 | AL87: B11208:L11218 | AM87: 830 | AN87: B11558:L11568 | AO87: 855 | AP87: B11908:L11918 | AQ87: 880 | AR87: B12258:L12268 | AS87: 905 | AT87: B12608:L12618 | AU87: 930 | AV87: B12958:L12968 | AW87: 955 | AX87: B13308:L13318 | AY87: 980 | AZ87: B13658:L13668
AG88: 756 | AH88: B10522:L10532 | AI88: 781 | AJ88: B10872:L10882 | AK88: 806 | AL88: B11222:L11232 | AM88: 831 | AN88: B11572:L11582 | AO88: 856 | AP88: B11922:L11932 | AQ88: 881 | AR88: B12272:L12282 | AS88: 906 | AT88: B12622:L12632 | AU88: 931 | AV88: B12972:L12982 | AW88: 956 | AX88: B13322:L13332 | AY88: 981 | AZ88: B13672:L13682
AG89: 757 | AH89: B10536:L10546 | AI89: 782 | AJ89: B10886:L10896 | AK89: 807 | AL89: B11236:L11246 | AM89: 832 | AN89: B11586:L11596 | AO89: 857 | AP89: B11936:L11946 | AQ89: 882 | AR89: B12286:L12296 | AS89: 907 | AT89: B12636:L12646 | AU89: 932 | AV89: B12986:L12996 | AW89: 957 | AX89: B13336:L13346 | AY89: 982 | AZ89: B13686:L13696
AG90: 758 | AH90: B10550:L10560 | AI90: 783 | AJ90: B10900:L10910 | AK90: 808 | AL90: B11250:L11260 | AM90: 833 | AN90: B11600:L11610 | AO90: 858 | AP90: B11950:L11960 | AQ90: 883 | AR90: B12300:L12310 | AS90: 908 | AT90: B12650:L12660 | AU90: 933 | AV90: B13000:L13010 | AW90: 958 | AX90: B13350:L13360 | AY90: 983 | AZ90: B13700:L13710
AG91: 759 | AH91: B10564:L10574 | AI91: 784 | AJ91: B10914:L10924 | AK91: 809 | AL91: B11264:L11274 | AM91: 834 | AN91: B11614:L11624 | AO91: 859 | AP91: B11964:L11974 | AQ91: 884 | AR91: B12314:L12324 | AS91: 909 | AT91: B12664:L12674 | AU91: 934 | AV91: B13014:L13024 | AW91: 959 | AX91: B13364:L13374 | AY91: 984 | AZ91: B13714:L13724
AG92: 760 | AH92: B10578:L10588 | AI92: 785 | AJ92: B10928:L10938 | AK92: 810 | AL92: B11278:L11288 | AM92: 835 | AN92: B11628:L11638 | AO92: 860 | AP92: B11978:L11988 | AQ92: 885 | AR92: B12328:L12338 | AS92: 910 | AT92: B12678:L12688 | AU92: 935 | AV92: B13028:L13038 | AW92: 960 | AX92: B13378:L13388 | AY92: 985 | AZ92: B13728:L13738
AG93: 761 | AH93: B10592:L10602 | AI93: 786 | AJ93: B10942:L10952 | AK93: 811 | AL93: B11292:L11302 | AM93: 836 | AN93: B11642:L11652 | AO93: 861 | AP93: B11992:L12002 | AQ93: 886 | AR93: B12342:L12352 | AS93: 911 | AT93: B12692:L12702 | AU93: 936 | AV93: B13042:L13052 | AW93: 961 | AX93: B13392:L13402 | AY93: 986 | AZ93: B13742:L13752
AG94: 762 | AH94: B10606:L10616 | AI94: 787 | AJ94: B10956:L10966 | AK94: 812 | AL94: B11306:L11316 | AM94: 837 | AN94: B11656:L11666 | AO94: 862 | AP94: B12006:L12016 | AQ94: 887 | AR94: B12356:L12366 | AS94: 912 | AT94: B12706:L12716 | AU94: 937 | AV94: B13056:L13066 | AW94: 962 | AX94: B13406:L13416 | AY94: 987 | AZ94: B13756:L13766
AG95: 763 | AH95: B10620:L10630 | AI95: 788 | AJ95: B10970:L10980 | AK95: 813 | AL95: B11320:L11330 | AM95: 838 | AN95: B11670:L11680 | AO95: 863 | AP95: B12020:L12030 | AQ95: 888 | AR95: B12370:L12380 | AS95: 913 | AT95: B12720:L12730 | AU95: 938 | AV95: B13070:L13080 | AW95: 963 | AX95: B13420:L13430 | AY95: 988 | AZ95: B13770:L13780
AG96: 764 | AH96: B10634:L10644 | AI96: 789 | AJ96: B10984:L10994 | AK96: 814 | AL96: B11334:L11344 | AM96: 839 | AN96: B11684:L11694 | AO96: 864 | AP96: B12034:L12044 | AQ96: 889 | AR96: B12384:L12394 | AS96: 914 | AT96: B12734:L12744 | AU96: 939 | AV96: B13084:L13094 | AW96: 964 | AX96: B13434:L13444 | AY96: 989 | AZ96: B13784:L13794
AG97: 765 | AH97: B10648:L10658 | AI97: 790 | AJ97: B10998:L11008 | AK97: 815 | AL97: B11348:L11358 | AM97: 840 | AN97: B11698:L11708 | AO97: 865 | AP97: B12048:L12058 | AQ97: 890 | AR97: B12398:L12408 | AS97: 915 | AT97: B12748:L12758 | AU97: 940 | AV97: B13098:L13108 | AW97: 965 | AX97: B13448:L13458 | AY97: 990 | AZ97: B13798:L13808
AG98: 766 | AH98: B10662:L10672 | AI98: 791 | AJ98: B11012:L11022 | AK98: 816 | AL98: B11362:L11372 | AM98: 841 | AN98: B11712:L11722 | AO98: 866 | AP98: B12062:L12072 | AQ98: 891 | AR98: B12412:L12422 | AS98: 916 | AT98: B12762:L12772 | AU98: 941 | AV98: B13112:L13122 | AW98: 966 | AX98: B13462:L13472 | AY98: 991 | AZ98: B13812:L13822
AG99: 767 | AH99: B10676:L10686 | AI99: 792 | AJ99: B11026:L11036 | AK99: 817 | AL99: B11376:L11386 | AM99: 842 | AN99: B11726:L11736 | AO99: 867 | AP99: B12076:L12086 | AQ99: 892 | AR99: B12426:L12436 | AS99: 917 | AT99: B12776:L12786 | AU99: 942 | AV99: B13126:L13136 | AW99: 967 | AX99: B13476:L13486 | AY99: 992 | AZ99: B13826:L13836
AG100: 768 | AH100: B10690:L10700 | AI100: 793 | AJ100: B11040:L11050 | AK100: 818 | AL100: B11390:L11400 | AM100: 843 | AN100: B11740:L11750 | AO100: 868 | AP100: B12090:L12100 | AQ100: 893 | AR100: B12440:L12450 | AS100: 918 | AT100: B12790:L12800 | AU100: 943 | AV100: B13140:L13150 | AW100: 968 | AX100: B13490:L13500 | AY100: 993 | AZ100: B13840:L13850
AG101: 769 | AH101: B10704:L10714 | AI101: 794 | AJ101: B11054:L11064 | AK101: 819 | AL101: B11404:L11414 | AM101: 844 | AN101: B11754:L11764 | AO101: 869 | AP101: B12104:L12114 | AQ101: 894 | AR101: B12454:L12464 | AS101: 919 | AT101: B12804:L12814 | AU101: 944 | AV101: B13154:L13164 | AW101: 969 | AX101: B13504:L13514 | AY101: 994 | AZ101: B13854:L13864
AG102: 770 | AH102: B10718:L10728 | AI102: 795 | AJ102: B11068:L11078 | AK102: 820 | AL102: B11418:L11428 | AM102: 845 | AN102: B11768:L11778 | AO102: 870 | AP102: B12118:L12128 | AQ102: 895 | AR102: B12468:L12478 | AS102: 920 | AT102: B12818:L12828 | AU102: 945 | AV102: B13168:L13178 | AW102: 970 | AX102: B13518:L13528 | AY102: 995 | AZ102: B13868:L13878
AG103: 771 | AH103: B10732:L10742 | AI103: 796 | AJ103: B11082:L11092 | AK103: 821 | AL103: B11432:L11442 | AM103: 846 | AN103: B11782:L11792 | AO103: 871 | AP103: B12132:L12142 | AQ103: 896 | AR103: B12482:L12492 | AS103: 921 | AT103: B12832:L12842 | AU103: 946 | AV103: B13182:L13192 | AW103: 971 | AX103: B13532:L13542 | AY103: 996 | AZ103: B13882:L13892
AG104: 772 | AH104: B10746:L10756 | AI104: 797 | AJ104: B11096:L11106 | AK104: 822 | AL104: B11446:L11456 | AM104: 847 | AN104: B11796:L11806 | AO104: 872 | AP104: B12146:L12156 | AQ104: 897 | AR104: B12496:L12506 | AS104: 922 | AT104: B12846:L12856 | AU104: 947 | AV104: B13196:L13206 | AW104: 972 | AX104: B13546:L13556 | AY104: 997 | AZ104: B13896:L13906
AG105: 773 | AH105: B10760:L10770 | AI105: 798 | AJ105: B11110:L11120 | AK105: 823 | AL105: B11460:L11470 | AM105: 848 | AN105: B11810:L11820 | AO105: 873 | AP105: B12160:L12170 | AQ105: 898 | AR105: B12510:L12520 | AS105: 923 | AT105: B12860:L12870 | AU105: 948 | AV105: B13210:L13220 | AW105: 973 | AX105: B13560:L13570 | AY105: 998 | AZ105: B13910:L13920
AG106: 774 | AH106: B10774:L10784 | AI106: 799 | AJ106: B11124:L11134 | AK106: 824 | AL106: B11474:L11484 | AM106: 849 | AN106: B11824:L11834 | AO106: 874 | AP106: B12174:L12184 | AQ106: 899 | AR106: B12524:L12534 | AS106: 924 | AT106: B12874:L12884 | AU106: 949 | AV106: B13224:L13234 | AW106: 974 | AX106: B13574:L13584 | AY106: 999 | AZ106: B13924:L13934
AG107: 775 | AH107: B10788:L10798 | AI107: 800 | AJ107: B11138:L11148 | AK107: 825 | AL107: B11488:L11498 | AM107: 850 | AN107: B11838:L11848 | AO107: 875 | AP107: B12188:L12198 | AQ107: 900 | AR107: B12538:L12548 | AS107: 925 | AT107: B12888:L12898 | AU107: 950 | AV107: B13238:L13248 | AW107: 975 | AX107: B13588:L13598 | AY107: 1000 | AZ107: B13938:L13948
AG109: Opgave: | AH109: Formule: | AI109: Opgave: | AJ109: Formule: | AK109: Opgave: | AL109: Formule: | AM109: Opgave: | AN109: Formule: | AO109: Opgave: | AP109: Formule: | AQ109: Opgave: | AR109: Formule: | AS109: Opgave: | AT109: Formule: | AU109: Opgave: | AV109: Formule: | AW109: Opgave: | AX109: Formule: | AY109: Opgave: | AZ109: Formule:
AG110: 1001 | AH110: B13952:L13962 | AI110: 1026 | AJ110: =LEFT(AH110,1)&MID(AH110,2,5)+350&":"&MID(AH110,8,1)&MID(AH110,9,5)+350 -> B14302:L14312 | AK110: 1051 | AL110: B14652:L14662 | AM110: 1076 | AN110: B15002:L15012 | AO110: 1101 | AP110: B15352:L15362 | AQ110: 1126 | AR110: B15702:L15712 | AS110: 1151 | AT110: B16052:L16062 | AU110: 1176 | AV110: B16402:L16412 | AW110: 1201 | AX110: B16752:L16762 | AY110: 1226 | AZ110: B17102:L17112
AG111: 1002 | AH111: B13966:L13976 | AI111: 1027 | AJ111: B14316:L14326 | AK111: 1052 | AL111: B14666:L14676 | AM111: 1077 | AN111: B15016:L15026 | AO111: 1102 | AP111: B15366:L15376 | AQ111: 1127 | AR111: B15716:L15726 | AS111: 1152 | AT111: B16066:L16076 | AU111: 1177 | AV111: B16416:L16426 | AW111: 1202 | AX111: B16766:L16776 | AY111: 1227 | AZ111: B17116:L17126
AG112: 1003 | AH112: B13980:L13990 | AI112: 1028 | AJ112: B14330:L14340 | AK112: 1053 | AL112: B14680:L14690 | AM112: 1078 | AN112: B15030:L15040 | AO112: 1103 | AP112: B15380:L15390 | AQ112: 1128 | AR112: B15730:L15740 | AS112: 1153 | AT112: B16080:L16090 | AU112: 1178 | AV112: B16430:L16440 | AW112: 1203 | AX112: B16780:L16790 | AY112: 1228 | AZ112: B17130:L17140
AG113: 1004 | AH113: B13994:L14004 | AI113: 1029 | AJ113: B14344:L14354 | AK113: 1054 | AL113: B14694:L14704 | AM113: 1079 | AN113: B15044:L15054 | AO113: 1104 | AP113: B15394:L15404 | AQ113: 1129 | AR113: B15744:L15754 | AS113: 1154 | AT113: B16094:L16104 | AU113: 1179 | AV113: B16444:L16454 | AW113: 1204 | AX113: B16794:L16804 | AY113: 1229 | AZ113: B17144:L17154
AG114: 1005 | AH114: B14008:L14018 | AI114: 1030 | AJ114: B14358:L14368 | AK114: 1055 | AL114: B14708:L14718 | AM114: 1080 | AN114: B15058:L15068 | AO114: 1105 | AP114: B15408:L15418 | AQ114: 1130 | AR114: B15758:L15768 | AS114: 1155 | AT114: B16108:L16118 | AU114: 1180 | AV114: B16458:L16468 | AW114: 1205 | AX114: B16808:L16818 | AY114: 1230 | AZ114: B17158:L17168
AG115: 1006 | AH115: B14022:L14032 | AI115: 1031 | AJ115: B14372:L14382 | AK115: 1056 | AL115: B14722:L14732 | AM115: 1081 | AN115: B15072:L15082 | AO115: 1106 | AP115: B15422:L15432 | AQ115: 1131 | AR115: B15772:L15782 | AS115: 1156 | AT115: B16122:L16132 | AU115: 1181 | AV115: B16472:L16482 | AW115: 1206 | AX115: B16822:L16832 | AY115: 1231 | AZ115: B17172:L17182
AG116: 1007 | AH116: B14036:L14046 | AI116: 1032 | AJ116: B14386:L14396 | AK116: 1057 | AL116: B14736:L14746 | AM116: 1082 | AN116: B15086:L15096 | AO116: 1107 | AP116: B15436:L15446 | AQ116: 1132 | AR116: B15786:L15796 | AS116: 1157 | AT116: B16136:L16146 | AU116: 1182 | AV116: B16486:L16496 | AW116: 1207 | AX116: B16836:L16846 | AY116: 1232 | AZ116: B17186:L17196
AG117: 1008 | AH117: B14050:L14060 | AI117: 1033 | AJ117: B14400:L14410 | AK117: 1058 | AL117: B14750:L14760 | AM117: 1083 | AN117: B15100:L15110 | AO117: 1108 | AP117: B15450:L15460 | AQ117: 1133 | AR117: B15800:L15810 | AS117: 1158 | AT117: B16150:L16160 | AU117: 1183 | AV117: B16500:L16510 | AW117: 1208 | AX117: B16850:L16860 | AY117: 1233 | AZ117: B17200:L17210
AG118: 1009 | AH118: B14064:L14074 | AI118: 1034 | AJ118: B14414:L14424 | AK118: 1059 | AL118: B14764:L14774 | AM118: 1084 | AN118: B15114:L15124 | AO118: 1109 | AP118: B15464:L15474 | AQ118: 1134 | AR118: B15814:L15824 | AS118: 1159 | AT118: B16164:L16174 | AU118: 1184 | AV118: B16514:L16524 | AW118: 1209 | AX118: B16864:L16874 | AY118: 1234 | AZ118: B17214:L17224
AG119: 1010 | AH119: B14078:L14088 | AI119: 1035 | AJ119: B14428:L14438 | AK119: 1060 | AL119: B14778:L14788 | AM119: 1085 | AN119: B15128:L15138 | AO119: 1110 | AP119: B15478:L15488 | AQ119: 1135 | AR119: B15828:L15838 | AS119: 1160 | AT119: B16178:L16188 | AU119: 1185 | AV119: B16528:L16538 | AW119: 1210 | AX119: B16878:L16888 | AY119: 1235 | AZ119: B17228:L17238
AG120: 1011 | AH120: B14092:L14102 | AI120: 1036 | AJ120: B14442:L14452 | AK120: 1061 | AL120: B14792:L14802 | AM120: 1086 | AN120: B15142:L15152 | AO120: 1111 | AP120: B15492:L15502 | AQ120: 1136 | AR120: B15842:L15852 | AS120: 1161 | AT120: B16192:L16202 | AU120: 1186 | AV120: B16542:L16552 | AW120: 1211 | AX120: B16892:L16902 | AY120: 1236 | AZ120: B17242:L17252
AG121: 1012 | AH121: B14106:L14116 | AI121: 1037 | AJ121: B14456:L14466 | AK121: 1062 | AL121: B14806:L14816 | AM121: 1087 | AN121: B15156:L15166 | AO121: 1112 | AP121: B15506:L15516 | AQ121: 1137 | AR121: B15856:L15866 | AS121: 1162 | AT121: B16206:L16216 | AU121: 1187 | AV121: B16556:L16566 | AW121: 1212 | AX121: B16906:L16916 | AY121: 1237 | AZ121: B17256:L17266
AG122: 1013 | AH122: B14120:L14130 | AI122: 1038 | AJ122: B14470:L14480 | AK122: 1063 | AL122: B14820:L14830 | AM122: 1088 | AN122: B15170:L15180 | AO122: 1113 | AP122: B15520:L15530 | AQ122: 1138 | AR122: B15870:L15880 | AS122: 1163 | AT122: B16220:L16230 | AU122: 1188 | AV122: B16570:L16580 | AW122: 1213 | AX122: B16920:L16930 | AY122: 1238 | AZ122: B17270:L17280
AG123: 1014 | AH123: B14134:L14144 | AI123: 1039 | AJ123: B14484:L14494 | AK123: 1064 | AL123: B14834:L14844 | AM123: 1089 | AN123: B15184:L15194 | AO123: 1114 | AP123: B15534:L15544 | AQ123: 1139 | AR123: B15884:L15894 | AS123: 1164 | AT123: B16234:L16244 | AU123: 1189 | AV123: B16584:L16594 | AW123: 1214 | AX123: B16934:L16944 | AY123: 1239 | AZ123: B17284:L17294
AG124: 1015 | AH124: B14148:L14158 | AI124: 1040 | AJ124: B14498:L14508 | AK124: 1065 | AL124: B14848:L14858 | AM124: 1090 | AN124: B15198:L15208 | AO124: 1115 | AP124: B15548:L15558 | AQ124: 1140 | AR124: B15898:L15908 | AS124: 1165 | AT124: B16248:L16258 | AU124: 1190 | AV124: B16598:L16608 | AW124: 1215 | AX124: B16948:L16958 | AY124: 1240 | AZ124: B17298:L17308
AG125: 1016 | AH125: B14162:L14172 | AI125: 1041 | AJ125: B14512:L14522 | AK125: 1066 | AL125: B14862:L14872 | AM125: 1091 | AN125: B15212:L15222 | AO125: 1116 | AP125: B15562:L15572 | AQ125: 1141 | AR125: B15912:L15922 | AS125: 1166 | AT125: B16262:L16272 | AU125: 1191 | AV125: B16612:L16622 | AW125: 1216 | AX125: B16962:L16972 | AY125: 1241 | AZ125: B17312:L17322
AG126: 1017 | AH126: B14176:L14186 | AI126: 1042 | AJ126: B14526:L14536 | AK126: 1067 | AL126: B14876:L14886 | AM126: 1092 | AN126: B15226:L15236 | AO126: 1117 | AP126: B15576:L15586 | AQ126: 1142 | AR126: B15926:L15936 | AS126: 1167 | AT126: B16276:L16286 | AU126: 1192 | AV126: B16626:L16636 | AW126: 1217 | AX126: B16976:L16986 | AY126: 1242 | AZ126: B17326:L17336
AG127: 1018 | AH127: B14190:L14200 | AI127: 1043 | AJ127: B14540:L14550 | AK127: 1068 | AL127: B14890:L14900 | AM127: 1093 | AN127: B15240:L15250 | AO127: 1118 | AP127: B15590:L15600 | AQ127: 1143 | AR127: B15940:L15950 | AS127: 1168 | AT127: B16290:L16300 | AU127: 1193 | AV127: B16640:L16650 | AW127: 1218 | AX127: B16990:L17000 | AY127: 1243 | AZ127: B17340:L17350
AG128: 1019 | AH128: B14204:L14214 | AI128: 1044 | AJ128: B14554:L14564 | AK128: 1069 | AL128: B14904:L14914 | AM128: 1094 | AN128: B15254:L15264 | AO128: 1119 | AP128: B15604:L15614 | AQ128: 1144 | AR128: B15954:L15964 | AS128: 1169 | AT128: B16304:L16314 | AU128: 1194 | AV128: B16654:L16664 | AW128: 1219 | AX128: B17004:L17014 | AY128: 1244 | AZ128: B17354:L17364
AG129: 1020 | AH129: B14218:L14228 | AI129: 1045 | AJ129: B14568:L14578 | AK129: 1070 | AL129: B14918:L14928 | AM129: 1095 | AN129: B15268:L15278 | AO129: 1120 | AP129: B15618:L15628 | AQ129: 1145 | AR129: B15968:L15978 | AS129: 1170 | AT129: B16318:L16328 | AU129: 1195 | AV129: B16668:L16678 | AW129: 1220 | AX129: B17018:L17028 | AY129: 1245 | AZ129: B17368:L17378
AG130: 1021 | AH130: B14232:L14242 | AI130: 1046 | AJ130: B14582:L14592 | AK130: 1071 | AL130: B14932:L14942 | AM130: 1096 | AN130: B15282:L15292 | AO130: 1121 | AP130: B15632:L15642 | AQ130: 1146 | AR130: B15982:L15992 | AS130: 1171 | AT130: B16332:L16342 | AU130: 1196 | AV130: B16682:L16692 | AW130: 1221 | AX130: B17032:L17042 | AY130: 1246 | AZ130: B17382:L17392
AG131: 1022 | AH131: B14246:L14256 | AI131: 1047 | AJ131: B14596:L14606 | AK131: 1072 | AL131: B14946:L14956 | AM131: 1097 | AN131: B15296:L15306 | AO131: 1122 | AP131: B15646:L15656 | AQ131: 1147 | AR131: B15996:L16006 | AS131: 1172 | AT131: B16346:L16356 | AU131: 1197 | AV131: B16696:L16706 | AW131: 1222 | AX131: B17046:L17056 | AY131: 1247 | AZ131: B17396:L17406
AG132: 1023 | AH132: B14260:L14270 | AI132: 1048 | AJ132: B14610:L14620 | AK132: 1073 | AL132: B14960:L14970 | AM132: 1098 | AN132: B15310:L15320 | AO132: 1123 | AP132: B15660:L15670 | AQ132: 1148 | AR132: B16010:L16020 | AS132: 1173 | AT132: B16360:L16370 | AU132: 1198 | AV132: B16710:L16720 | AW132: 1223 | AX132: B17060:L17070 | AY132: 1248 | AZ132: B17410:L17420
AG133: 1024 | AH133: B14274:L14284 | AI133: 1049 | AJ133: B14624:L14634 | AK133: 1074 | AL133: B14974:L14984 | AM133: 1099 | AN133: B15324:L15334 | AO133: 1124 | AP133: B15674:L15684 | AQ133: 1149 | AR133: B16024:L16034 | AS133: 1174 | AT133: B16374:L16384 | AU133: 1199 | AV133: B16724:L16734 | AW133: 1224 | AX133: B17074:L17084 | AY133: 1249 | AZ133: B17424:L17434
AG134: 1025 | AH134: B14288:L14298 | AI134: 1050 | AJ134: B14638:L14648 | AK134: 1075 | AL134: B14988:L14998 | AM134: 1100 | AN134: B15338:L15348 | AO134: 1125 | AP134: B15688:L15698 | AQ134: 1150 | AR134: B16038:L16048 | AS134: 1175 | AT134: B16388:L16398 | AU134: 1200 | AV134: B16738:L16748 | AW134: 1225 | AX134: B17088:L17098 | AY134: 1250 | AZ134: B17438:L17448
AG136: Opgave: | AH136: Formule: | AI136: Opgave: | AJ136: Formule: | AK136: Opgave: | AL136: Formule: | AM136: Opgave: | AN136: Formule: | AO136: Opgave: | AP136: Formule: | AQ136: Opgave: | AR136: Formule: | AS136: Opgave: | AT136: Formule: | AU136: Opgave: | AV136: Formule: | AW136: Opgave: | AX136: Formule: | AY136: Opgave: | AZ136: Formule: | BB136: B17438 | BC136: L17448
AG137: 1251 | AH137: B17452:L17462 | AI137: =AG137+25 -> 1276 | AJ137: B17452:L17462 | AK137: =AI137+25 -> 1301 | AL137: B17452:L17462 | AM137: =AK137+25 -> 1326 | AN137: B17452:L17462 | AO137: =AM137+25 -> 1351 | AP137: B17452:L17462 | AQ137: =AO137+25 -> 1376 | AR137: B17452:L17462 | AS137: =AQ137+25 -> 1401 | AT137: B17452:L17462 | AU137: =AS137+25 -> 1426 | AV137: B17452:L17462 | AW137: =AU137+25 -> 1451 | AX137: B17452:L17462 | AY137: =AW137+25 -> 1476 | AZ137: B17452:L17462 | BB137: =LEFT(BB136,1)&RIGHT(BB136,5)+14 -> B17452 | BC137: =LEFT(BC136,1)&RIGHT(BC136,5)+14 -> L17462 | BD137: =CONCATENATE(BB137,":",BC137) -> B17452:L17462
AG138: 1252 | AH138: B17466:L17476 | AI138: =AG138+25 -> 1277 | AJ138: B17452:L17463 | AK138: =AI138+25 -> 1302 | AL138: B17452:L17463 | AM138: =AK138+25 -> 1327 | AN138: B17452:L17463 | AO138: =AM138+25 -> 1352 | AP138: B17452:L17463 | AQ138: =AO138+25 -> 1377 | AR138: B17452:L17463 | AS138: =AQ138+25 -> 1402 | AT138: B17452:L17463 | AU138: =AS138+25 -> 1427 | AV138: B17452:L17463 | AW138: =AU138+25 -> 1452 | AX138: B17452:L17463 | AY138: =AW138+25 -> 1477 | AZ138: B17452:L17463 | BB138: =LEFT(BB137,1)&RIGHT(BB137,5)+14 -> B17466 | BC138: L17476 | BD138: =CONCATENATE(BB138,":",BC138) -> B17466:L17476
AG139: 1253 | AH139: B17480:L17490 | AI139: 1278 | AJ139: B17452:L17464 | AK139: 1303 | AL139: B17452:L17464 | AM139: 1328 | AN139: B17452:L17464 | AO139: 1353 | AP139: B17452:L17464 | AQ139: 1378 | AR139: B17452:L17464 | AS139: 1403 | AT139: B17452:L17464 | AU139: 1428 | AV139: B17452:L17464 | AW139: 1453 | AX139: B17452:L17464 | AY139: 1478 | AZ139: B17452:L17464 | BB139: =LEFT(BB138,1)&RIGHT(BB138,5)+14 -> B17480 | BC139: L17490 | BD139: B17480:L17490
AG140: 1254 | AH140: B17494:L17504 | AI140: 1279 | AJ140: B17452:L17465 | AK140: 1304 | AL140: B17452:L17465 | AM140: 1329 | AN140: B17452:L17465 | AO140: 1354 | AP140: B17452:L17465 | AQ140: 1379 | AR140: B17452:L17465 | AS140: 1404 | AT140: B17452:L17465 | AU140: 1429 | AV140: B17452:L17465 | AW140: 1454 | AX140: B17452:L17465 | AY140: 1479 | AZ140: B17452:L17465 | BB140: =LEFT(BB139,1)&RIGHT(BB139,5)+14 -> B17494 | BC140: L17504 | BD140: B17494:L17504
AG141: 1255 | AH141: B17508:L17518 | AI141: 1280 | AJ141: B17452:L17466 | AK141: 1305 | AL141: B17452:L17466 | AM141: 1330 | AN141: B17452:L17466 | AO141: 1355 | AP141: B17452:L17466 | AQ141: 1380 | AR141: B17452:L17466 | AS141: 1405 | AT141: B17452:L17466 | AU141: 1430 | AV141: B17452:L17466 | AW141: 1455 | AX141: B17452:L17466 | AY141: 1480 | AZ141: B17452:L17466 | BB141: =LEFT(BB140,1)&RIGHT(BB140,5)+14 -> B17508 | BC141: L17518 | BD141: B17508:L17518
AG142: 1256 | AH142: B17522:L17532 | AI142: 1281 | AJ142: B17452:L17467 | AK142: 1306 | AL142: B17452:L17467 | AM142: 1331 | AN142: B17452:L17467 | AO142: 1356 | AP142: B17452:L17467 | AQ142: 1381 | AR142: B17452:L17467 | AS142: 1406 | AT142: B17452:L17467 | AU142: 1431 | AV142: B17452:L17467 | AW142: 1456 | AX142: B17452:L17467 | AY142: 1481 | AZ142: B17452:L17467 | BB142: =LEFT(BB141,1)&RIGHT(BB141,5)+14 -> B17522 | BC142: L17532 | BD142: B17522:L17532
AG143: 1257 | AH143: B17536:L17546 | AI143: 1282 | AJ143: B17452:L17468 | AK143: 1307 | AL143: B17452:L17468 | AM143: 1332 | AN143: B17452:L17468 | AO143: 1357 | AP143: B17452:L17468 | AQ143: 1382 | AR143: B17452:L17468 | AS143: 1407 | AT143: B17452:L17468 | AU143: 1432 | AV143: B17452:L17468 | AW143: 1457 | AX143: B17452:L17468 | AY143: 1482 | AZ143: B17452:L17468 | BB143: =LEFT(BB142,1)&RIGHT(BB142,5)+14 -> B17536 | BC143: L17546 | BD143: B17536:L17546
AG144: 1258 | AH144: B17550:L17560 | AI144: 1283 | AJ144: B17452:L17469 | AK144: 1308 | AL144: B17452:L17469 | AM144: 1333 | AN144: B17452:L17469 | AO144: 1358 | AP144: B17452:L17469 | AQ144: 1383 | AR144: B17452:L17469 | AS144: 1408 | AT144: B17452:L17469 | AU144: 1433 | AV144: B17452:L17469 | AW144: 1458 | AX144: B17452:L17469 | AY144: 1483 | AZ144: B17452:L17469 | BB144: =LEFT(BB143,1)&RIGHT(BB143,5)+14 -> B17550 | BC144: L17560 | BD144: B17550:L17560
AG145: 1259 | AH145: B17564:L17574 | AI145: 1284 | AJ145: B17452:L17470 | AK145: 1309 | AL145: B17452:L17470 | AM145: 1334 | AN145: B17452:L17470 | AO145: 1359 | AP145: B17452:L17470 | AQ145: 1384 | AR145: B17452:L17470 | AS145: 1409 | AT145: B17452:L17470 | AU145: 1434 | AV145: B17452:L17470 | AW145: 1459 | AX145: B17452:L17470 | AY145: 1484 | AZ145: B17452:L17470 | BB145: =LEFT(BB144,1)&RIGHT(BB144,5)+14 -> B17564 | BC145: L17574 | BD145: B17564:L17574
AG146: 1260 | AH146: B17578:L17588 | AI146: 1285 | AJ146: B17452:L17471 | AK146: 1310 | AL146: B17452:L17471 | AM146: 1335 | AN146: B17452:L17471 | AO146: 1360 | AP146: B17452:L17471 | AQ146: 1385 | AR146: B17452:L17471 | AS146: 1410 | AT146: B17452:L17471 | AU146: 1435 | AV146: B17452:L17471 | AW146: 1460 | AX146: B17452:L17471 | AY146: 1485 | AZ146: B17452:L17471 | BB146: =LEFT(BB145,1)&RIGHT(BB145,5)+14 -> B17578 | BC146: L17588 | BD146: B17578:L17588
AG147: 1261 | AH147: B17592:L17602 | AI147: 1286 | AJ147: B17452:L17472 | AK147: 1311 | AL147: B17452:L17472 | AM147: 1336 | AN147: B17452:L17472 | AO147: 1361 | AP147: B17452:L17472 | AQ147: 1386 | AR147: B17452:L17472 | AS147: 1411 | AT147: B17452:L17472 | AU147: 1436 | AV147: B17452:L17472 | AW147: 1461 | AX147: B17452:L17472 | AY147: 1486 | AZ147: B17452:L17472 | BB147: =LEFT(BB146,1)&RIGHT(BB146,5)+14 -> B17592 | BC147: L17602 | BD147: B17592:L17602
AG148: 1262 | AH148: B17606:L17616 | AI148: 1287 | AJ148: B17452:L17473 | AK148: 1312 | AL148: B17452:L17473 | AM148: 1337 | AN148: B17452:L17473 | AO148: 1362 | AP148: B17452:L17473 | AQ148: 1387 | AR148: B17452:L17473 | AS148: 1412 | AT148: B17452:L17473 | AU148: 1437 | AV148: B17452:L17473 | AW148: 1462 | AX148: B17452:L17473 | AY148: 1487 | AZ148: B17452:L17473 | BB148: =LEFT(BB147,1)&RIGHT(BB147,5)+14 -> B17606 | BC148: L17616 | BD148: B17606:L17616
AG149: 1263 | AH149: B17620:L17630 | AI149: 1288 | AJ149: B17452:L17474 | AK149: 1313 | AL149: B17452:L17474 | AM149: 1338 | AN149: B17452:L17474 | AO149: 1363 | AP149: B17452:L17474 | AQ149: 1388 | AR149: B17452:L17474 | AS149: 1413 | AT149: B17452:L17474 | AU149: 1438 | AV149: B17452:L17474 | AW149: 1463 | AX149: B17452:L17474 | AY149: 1488 | AZ149: B17452:L17474 | BB149: =LEFT(BB148,1)&RIGHT(BB148,5)+14 -> B17620 | BC149: L17630 | BD149: B17620:L17630
AG150: 1264 | AH150: B17634:L17644 | AI150: 1289 | AJ150: B17452:L17475 | AK150: 1314 | AL150: B17452:L17475 | AM150: 1339 | AN150: B17452:L17475 | AO150: 1364 | AP150: B17452:L17475 | AQ150: 1389 | AR150: B17452:L17475 | AS150: 1414 | AT150: B17452:L17475 | AU150: 1439 | AV150: B17452:L17475 | AW150: 1464 | AX150: B17452:L17475 | AY150: 1489 | AZ150: B17452:L17475 | BB150: =LEFT(BB149,1)&RIGHT(BB149,5)+14 -> B17634 | BC150: L17644 | BD150: B17634:L17644
AG151: 1265 | AH151: B17648:L17658 | AI151: 1290 | AJ151: B17452:L17476 | AK151: 1315 | AL151: B17452:L17476 | AM151: 1340 | AN151: B17452:L17476 | AO151: 1365 | AP151: B17452:L17476 | AQ151: 1390 | AR151: B17452:L17476 | AS151: 1415 | AT151: B17452:L17476 | AU151: 1440 | AV151: B17452:L17476 | AW151: 1465 | AX151: B17452:L17476 | AY151: 1490 | AZ151: B17452:L17476 | BB151: =LEFT(BB150,1)&RIGHT(BB150,5)+14 -> B17648 | BC151: L17658 | BD151: B17648:L17658
AG152: 1266 | AH152: B17662:L17672 | AI152: 1291 | AJ152: B17452:L17477 | AK152: 1316 | AL152: B17452:L17477 | AM152: 1341 | AN152: B17452:L17477 | AO152: 1366 | AP152: B17452:L17477 | AQ152: 1391 | AR152: B17452:L17477 | AS152: 1416 | AT152: B17452:L17477 | AU152: 1441 | AV152: B17452:L17477 | AW152: 1466 | AX152: B17452:L17477 | AY152: 1491 | AZ152: B17452:L17477 | BB152: =LEFT(BB151,1)&RIGHT(BB151,5)+14 -> B17662 | BC152: L17672 | BD152: B17662:L17672
AG153: 1267 | AH153: B17676:L17686 | AI153: 1292 | AJ153: B17452:L17478 | AK153: 1317 | AL153: B17452:L17478 | AM153: 1342 | AN153: B17452:L17478 | AO153: 1367 | AP153: B17452:L17478 | AQ153: 1392 | AR153: B17452:L17478 | AS153: 1417 | AT153: B17452:L17478 | AU153: 1442 | AV153: B17452:L17478 | AW153: 1467 | AX153: B17452:L17478 | AY153: 1492 | AZ153: B17452:L17478 | BB153: =LEFT(BB152,1)&RIGHT(BB152,5)+14 -> B17676 | BC153: L17686 | BD153: B17676:L17686
AG154: 1268 | AH154: B17690:L17700 | AI154: 1293 | AJ154: B17452:L17479 | AK154: 1318 | AL154: B17452:L17479 | AM154: 1343 | AN154: B17452:L17479 | AO154: 1368 | AP154: B17452:L17479 | AQ154: 1393 | AR154: B17452:L17479 | AS154: 1418 | AT154: B17452:L17479 | AU154: 1443 | AV154: B17452:L17479 | AW154: 1468 | AX154: B17452:L17479 | AY154: 1493 | AZ154: B17452:L17479 | BB154: =LEFT(BB153,1)&RIGHT(BB153,5)+14 -> B17690 | BC154: L17700 | BD154: B17690:L17700
AG155: 1269 | AH155: B17704:L17714 | AI155: 1294 | AJ155: B17452:L17480 | AK155: 1319 | AL155: B17452:L17480 | AM155: 1344 | AN155: B17452:L17480 | AO155: 1369 | AP155: B17452:L17480 | AQ155: 1394 | AR155: B17452:L17480 | AS155: 1419 | AT155: B17452:L17480 | AU155: 1444 | AV155: B17452:L17480 | AW155: 1469 | AX155: B17452:L17480 | AY155: 1494 | AZ155: B17452:L17480 | BB155: =LEFT(BB154,1)&RIGHT(BB154,5)+14 -> B17704 | BC155: L17714 | BD155: B17704:L17714
AG156: 1270 | AH156: B17718:L17728 | AI156: 1295 | AJ156: B17452:L17481 | AK156: 1320 | AL156: B17452:L17481 | AM156: 1345 | AN156: B17452:L17481 | AO156: 1370 | AP156: B17452:L17481 | AQ156: 1395 | AR156: B17452:L17481 | AS156: 1420 | AT156: B17452:L17481 | AU156: 1445 | AV156: B17452:L17481 | AW156: 1470 | AX156: B17452:L17481 | AY156: 1495 | AZ156: B17452:L17481 | BB156: =LEFT(BB155,1)&RIGHT(BB155,5)+14 -> B17718 | BC156: L17728 | BD156: B17718:L17728
AG157: 1271 | AH157: B17732:L17742 | AI157: 1296 | AJ157: B17452:L17482 | AK157: 1321 | AL157: B17452:L17482 | AM157: 1346 | AN157: B17452:L17482 | AO157: 1371 | AP157: B17452:L17482 | AQ157: 1396 | AR157: B17452:L17482 | AS157: 1421 | AT157: B17452:L17482 | AU157: 1446 | AV157: B17452:L17482 | AW157: 1471 | AX157: B17452:L17482 | AY157: 1496 | AZ157: B17452:L17482 | BB157: =LEFT(BB156,1)&RIGHT(BB156,5)+14 -> B17732 | BC157: L17742 | BD157: B17732:L17742
AG158: 1272 | AH158: B17746:L17756 | AI158: 1297 | AJ158: B17452:L17483 | AK158: 1322 | AL158: B17452:L17483 | AM158: 1347 | AN158: B17452:L17483 | AO158: 1372 | AP158: B17452:L17483 | AQ158: 1397 | AR158: B17452:L17483 | AS158: 1422 | AT158: B17452:L17483 | AU158: 1447 | AV158: B17452:L17483 | AW158: 1472 | AX158: B17452:L17483 | AY158: 1497 | AZ158: B17452:L17483 | BB158: =LEFT(BB157,1)&RIGHT(BB157,5)+14 -> B17746 | BC158: L17756 | BD158: B17746:L17756
AG159: 1273 | AH159: B17760:L17770 | AI159: 1298 | AJ159: B17452:L17484 | AK159: 1323 | AL159: B17452:L17484 | AM159: 1348 | AN159: B17452:L17484 | AO159: 1373 | AP159: B17452:L17484 | AQ159: 1398 | AR159: B17452:L17484 | AS159: 1423 | AT159: B17452:L17484 | AU159: 1448 | AV159: B17452:L17484 | AW159: 1473 | AX159: B17452:L17484 | AY159: 1498 | AZ159: B17452:L17484 | BB159: =LEFT(BB158,1)&RIGHT(BB158,5)+14 -> B17760 | BC159: L17770 | BD159: B17760:L17770
AG160: 1274 | AH160: B17774:L17784 | AI160: 1299 | AJ160: B17452:L17485 | AK160: =AI160+25 -> 1324 | AL160: B17452:L17485 | AM160: 1349 | AN160: B17452:L17485 | AO160: 1374 | AP160: B17452:L17485 | AQ160: 1399 | AR160: B17452:L17485 | AS160: 1424 | AT160: B17452:L17485 | AU160: 1449 | AV160: B17452:L17485 | AW160: 1474 | AX160: B17452:L17485 | AY160: 1499 | AZ160: B17452:L17485 | BB160: =LEFT(BB159,1)&RIGHT(BB159,5)+14 -> B17774 | BC160: L17784 | BD160: B17774:L17784
AG161: 1275 | AH161: B17788:L17798 | AI161: 1300 | AJ161: B17452:L17486 | AK161: 1325 | AL161: B17452:L17486 | AM161: 1350 | AN161: B17452:L17486 | AO161: 1375 | AP161: B17452:L17486 | AQ161: 1400 | AR161: B17452:L17486 | AS161: 1425 | AT161: B17452:L17486 | AU161: 1450 | AV161: B17452:L17486 | AW161: 1475 | AX161: B17452:L17486 | AY161: 1500 | AZ161: B17452:L17486 | BB161: =LEFT(BB160,1)&RIGHT(BB160,5)+14 -> B17788 | BC161: L17798 | BD161: B17788:L17798
AG163: Opgave: | AH163: Formule: | AI163: Opgave: | AJ163: Formule: | AK163: Opgave: | AL163: Formule: | AM163: Opgave: | AN163: Formule: | AO163: Opgave: | AP163: Formule: | AQ163: Opgave: | AR163: Formule: | AS163: Opgave: | AT163: Formule: | AU163: Opgave: | AV163: Formule: | AW163: Opgave: | AX163: Formule: | AY163: Opgave: | AZ163: Formule: | BB163: B24088 | BC163: I24098
AG164: 1501 | AH164: B20952:L20962 | AI164: 1526 | AJ164: =LEFT(AH164,1)&MID(AH164,2,5)+350&":"&MID(AH164,8,1)&MID(AH164,9,5)+350 -> B21302:L21312 | AK164: 1551 | AL164: =LEFT(AJ164,1)&MID(AJ164,2,5)+350&":"&MID(AJ164,8,1)&MID(AJ164,9,5)+350 -> B21652:L21662 | AM164: 1576 | AN164: =LEFT(AL164,1)&MID(AL164,2,5)+350&":"&MID(AL164,8,1)&MID(AL164,9,5)+350 -> B22002:L22012 | AO164: 1601 | AP164: =LEFT(AN164,1)&MID(AN164,2,5)+350&":"&MID(AN164,8,1)&MID(AN164,9,5)+350 -> B22352:L22362 | AQ164: 1626 | AR164: =LEFT(AP164,1)&MID(AP164,2,5)+350&":"&MID(AP164,8,1)&MID(AP164,9,5)+350 -> B22702:L22712 | AS164: 1651 | AT164: =LEFT(AR164,1)&MID(AR164,2,5)+350&":"&MID(AR164,8,1)&MID(AR164,9,5)+350 -> B23052:L23062 | AU164: 1676 | AV164: =LEFT(AT164,1)&MID(AT164,2,5)+350&":"&MID(AT164,8,1)&MID(AT164,9,5)+350 -> B23402:L23412 | AW164: 1701 | AX164: =LEFT(AV164,1)&MID(AV164,2,5)+350&":"&MID(AV164,8,1)&MID(AV164,9,5)+350 -> B23752:L23762 | AY164: 1726 | AZ164: =LEFT(AX164,1)&MID(AX164,2,5)+350&":"&MID(AX164,8,1)&MID(AX164,9,5)+350 -> B24102:L24112 | BB164: =LEFT(BB163,1)&RIGHT(BB163,5)+14 -> B24102 | BC164: =LEFT(BC163,1)&RIGHT(BC163,5)+14 -> I24112 | BD164: =CONCATENATE(BB164,":",BC164) -> B24102:I24112
AG165: 1502 | AH165: B20966:L20976 | AI165: 1527 | AJ165: B21316:L21326 | AK165: 1552 | AL165: B21666:L21676 | AM165: 1577 | AN165: B22016:L22026 | AO165: 1602 | AP165: =LEFT(AN165,1)&MID(AN165,2,5)+350&":"&MID(AN165,8,1)&MID(AN165,9,5)+350 -> B22366:L22376 | AQ165: 1627 | AR165: B22716:L22726 | AS165: 1652 | AT165: B23066:L23076 | AU165: 1677 | AV165: B23416:L23426 | AW165: 1702 | AX165: B23766:L23776 | AY165: 1727 | AZ165: B24116:L24126 | BB165: =LEFT(BB164,1)&RIGHT(BB164,5)+14 -> B24116 | BC165: I24126 | BD165: =CONCATENATE(BB165,":",BC165) -> B24116:I24126
AG166: 1503 | AH166: B20980:L20990 | AI166: 1528 | AJ166: B21330:L21340 | AK166: 1553 | AL166: B21680:L21690 | AM166: 1578 | AN166: B22030:L22040 | AO166: 1603 | AP166: B22380:L22390 | AQ166: 1628 | AR166: B22730:L22740 | AS166: 1653 | AT166: B23080:L23090 | AU166: 1678 | AV166: B23430:L23440 | AW166: 1703 | AX166: B23780:L23790 | AY166: 1728 | AZ166: B24130:L24140 | BB166: =LEFT(BB165,1)&RIGHT(BB165,5)+14 -> B24130 | BC166: I24140 | BD166: B24130:I24140
AG167: 1504 | AH167: B20994:L21004 | AI167: 1529 | AJ167: B21344:L21354 | AK167: 1554 | AL167: B21694:L21704 | AM167: 1579 | AN167: B22044:L22054 | AO167: 1604 | AP167: B22394:L22404 | AQ167: 1629 | AR167: B22744:L22754 | AS167: 1654 | AT167: B23094:L23104 | AU167: 1679 | AV167: B23444:L23454 | AW167: 1704 | AX167: B23794:L23804 | AY167: 1729 | AZ167: B24144:L24154 | BB167: =LEFT(BB166,1)&RIGHT(BB166,5)+14 -> B24144 | BC167: I24154 | BD167: B24144:I24154
AG168: 1505 | AH168: B21008:L21018 | AI168: 1530 | AJ168: B21358:L21368 | AK168: 1555 | AL168: B21708:L21718 | AM168: 1580 | AN168: B22058:L22068 | AO168: 1605 | AP168: B22408:L22418 | AQ168: 1630 | AR168: B22758:L22768 | AS168: 1655 | AT168: B23108:L23118 | AU168: 1680 | AV168: B23458:L23468 | AW168: 1705 | AX168: B23808:L23818 | AY168: 1730 | AZ168: B24158:L24168 | BB168: =LEFT(BB167,1)&RIGHT(BB167,5)+14 -> B24158 | BC168: I24168 | BD168: B24158:I24168
AG169: 1506 | AH169: B21022:L21032 | AI169: 1531 | AJ169: B21372:L21382 | AK169: 1556 | AL169: B21722:L21732 | AM169: 1581 | AN169: B22072:L22082 | AO169: 1606 | AP169: B22422:L22432 | AQ169: 1631 | AR169: B22772:L22782 | AS169: 1656 | AT169: B23122:L23132 | AU169: 1681 | AV169: B23472:L23482 | AW169: 1706 | AX169: B23822:L23832 | AY169: 1731 | AZ169: B24172:L24182 | BB169: =LEFT(BB168,1)&RIGHT(BB168,5)+14 -> B24172 | BC169: I24182 | BD169: B24172:I24182
AG170: 1507 | AH170: B21036:L21046 | AI170: 1532 | AJ170: B21386:L21396 | AK170: 1557 | AL170: B21736:L21746 | AM170: 1582 | AN170: B22086:L22096 | AO170: 1607 | AP170: B22436:L22446 | AQ170: 1632 | AR170: B22786:L22796 | AS170: 1657 | AT170: B23136:L23146 | AU170: 1682 | AV170: B23486:L23496 | AW170: 1707 | AX170: B23836:L23846 | AY170: 1732 | AZ170: B24186:L24196 | BB170: =LEFT(BB169,1)&RIGHT(BB169,5)+14 -> B24186 | BC170: I24196 | BD170: B24186:I24196
AG171: 1508 | AH171: B21050:L21060 | AI171: 1533 | AJ171: B21400:L21410 | AK171: 1558 | AL171: B21750:L21760 | AM171: 1583 | AN171: B22100:L22110 | AO171: 1608 | AP171: B22450:L22460 | AQ171: 1633 | AR171: B22800:L22810 | AS171: 1658 | AT171: B23150:L23160 | AU171: 1683 | AV171: B23500:L23510 | AW171: 1708 | AX171: B23850:L23860 | AY171: 1733 | AZ171: B24200:L24210 | BB171: =LEFT(BB170,1)&RIGHT(BB170,5)+14 -> B24200 | BC171: I24210 | BD171: B24200:I24210
AG172: 1509 | AH172: B21064:L21074 | AI172: 1534 | AJ172: B21414:L21424 | AK172: 1559 | AL172: B21764:L21774 | AM172: 1584 | AN172: B22114:L22124 | AO172: 1609 | AP172: B22464:L22474 | AQ172: 1634 | AR172: B22814:L22824 | AS172: 1659 | AT172: B23164:L23174 | AU172: 1684 | AV172: B23514:L23524 | AW172: 1709 | AX172: B23864:L23874 | AY172: 1734 | AZ172: B24214:L24224 | BB172: =LEFT(BB171,1)&RIGHT(BB171,5)+14 -> B24214 | BC172: I24224 | BD172: B24214:I24224
AG173: 1510 | AH173: B21078:L21088 | AI173: 1535 | AJ173: B21428:L21438 | AK173: 1560 | AL173: B21778:L21788 | AM173: 1585 | AN173: B22128:L22138 | AO173: 1610 | AP173: B22478:L22488 | AQ173: 1635 | AR173: B22828:L22838 | AS173: 1660 | AT173: B23178:L23188 | AU173: 1685 | AV173: B23528:L23538 | AW173: 1710 | AX173: B23878:L23888 | AY173: 1735 | AZ173: B24228:L24238 | BB173: =LEFT(BB172,1)&RIGHT(BB172,5)+14 -> B24228 | BC173: I24238 | BD173: B24228:I24238
AG174: 1511 | AH174: B21092:L21102 | AI174: 1536 | AJ174: B21442:L21452 | AK174: 1561 | AL174: B21792:L21802 | AM174: 1586 | AN174: B22142:L22152 | AO174: 1611 | AP174: B22492:L22502 | AQ174: 1636 | AR174: B22842:L22852 | AS174: 1661 | AT174: B23192:L23202 | AU174: 1686 | AV174: B23542:L23552 | AW174: 1711 | AX174: B23892:L23902 | AY174: 1736 | AZ174: B24242:L24252 | BB174: =LEFT(BB173,1)&RIGHT(BB173,5)+14 -> B24242 | BC174: I24252 | BD174: B24242:I24252
AG175: 1512 | AH175: B21106:L21116 | AI175: 1537 | AJ175: B21456:L21466 | AK175: 1562 | AL175: B21806:L21816 | AM175: 1587 | AN175: B22156:L22166 | AO175: 1612 | AP175: B22506:L22516 | AQ175: 1637 | AR175: B22856:L22866 | AS175: 1662 | AT175: B23206:L23216 | AU175: 1687 | AV175: B23556:L23566 | AW175: 1712 | AX175: B23906:L23916 | AY175: 1737 | AZ175: B24256:L24266 | BB175: =LEFT(BB174,1)&RIGHT(BB174,5)+14 -> B24256 | BC175: I24266 | BD175: B24256:I24266
AG176: 1513 | AH176: B21120:L21130 | AI176: 1538 | AJ176: B21470:L21480 | AK176: 1563 | AL176: B21820:L21830 | AM176: 1588 | AN176: B22170:L22180 | AO176: 1613 | AP176: B22520:L22530 | AQ176: 1638 | AR176: B22870:L22880 | AS176: 1663 | AT176: B23220:L23230 | AU176: 1688 | AV176: B23570:L23580 | AW176: 1713 | AX176: B23920:L23930 | AY176: 1738 | AZ176: B24270:L24280 | BB176: =LEFT(BB175,1)&RIGHT(BB175,5)+14 -> B24270 | BC176: I24280 | BD176: B24270:I24280
AG177: 1514 | AH177: B21134:L21144 | AI177: 1539 | AJ177: B21484:L21494 | AK177: 1564 | AL177: B21834:L21844 | AM177: 1589 | AN177: B22184:L22194 | AO177: 1614 | AP177: B22534:L22544 | AQ177: 1639 | AR177: B22884:L22894 | AS177: 1664 | AT177: B23234:L23244 | AU177: 1689 | AV177: B23584:L23594 | AW177: 1714 | AX177: B23934:L23944 | AY177: 1739 | AZ177: B24284:L24294 | BB177: =LEFT(BB176,1)&RIGHT(BB176,5)+14 -> B24284 | BC177: I24294 | BD177: B24284:I24294
AG178: 1515 | AH178: B21148:L21158 | AI178: 1540 | AJ178: B21498:L21508 | AK178: 1565 | AL178: B21848:L21858 | AM178: 1590 | AN178: B22198:L22208 | AO178: 1615 | AP178: B22548:L22558 | AQ178: 1640 | AR178: B22898:L22908 | AS178: 1665 | AT178: B23248:L23258 | AU178: 1690 | AV178: B23598:L23608 | AW178: 1715 | AX178: B23948:L23958 | AY178: 1740 | AZ178: B24298:L24308 | BB178: =LEFT(BB177,1)&RIGHT(BB177,5)+14 -> B24298 | BC178: I24308 | BD178: B24298:I24308
AG179: 1516 | AH179: B21162:L21172 | AI179: 1541 | AJ179: B21512:L21522 | AK179: 1566 | AL179: B21862:L21872 | AM179: 1591 | AN179: B22212:L22222 | AO179: 1616 | AP179: B22562:L22572 | AQ179: 1641 | AR179: B22912:L22922 | AS179: 1666 | AT179: B23262:L23272 | AU179: 1691 | AV179: B23612:L23622 | AW179: 1716 | AX179: B23962:L23972 | AY179: 1741 | AZ179: B24312:L24322 | BB179: =LEFT(BB178,1)&RIGHT(BB178,5)+14 -> B24312 | BC179: I24322 | BD179: B24312:I24322
AG180: 1517 | AH180: B21176:L21186 | AI180: 1542 | AJ180: B21526:L21536 | AK180: 1567 | AL180: B21876:L21886 | AM180: 1592 | AN180: B22226:L22236 | AO180: 1617 | AP180: B22576:L22586 | AQ180: 1642 | AR180: B22926:L22936 | AS180: 1667 | AT180: B23276:L23286 | AU180: 1692 | AV180: B23626:L23636 | AW180: 1717 | AX180: B23976:L23986 | AY180: 1742 | AZ180: B24326:L24336 | BB180: =LEFT(BB179,1)&RIGHT(BB179,5)+14 -> B24326 | BC180: I24336 | BD180: B24326:I24336
AG181: 1518 | AH181: B21190:L21200 | AI181: 1543 | AJ181: B21540:L21550 | AK181: 1568 | AL181: B21890:L21900 | AM181: 1593 | AN181: B22240:L22250 | AO181: 1618 | AP181: B22590:L22600 | AQ181: 1643 | AR181: B22940:L22950 | AS181: 1668 | AT181: B23290:L23300 | AU181: 1693 | AV181: B23640:L23650 | AW181: 1718 | AX181: B23990:L24000 | AY181: 1743 | AZ181: B24340:L24350 | BB181: =LEFT(BB180,1)&RIGHT(BB180,5)+14 -> B24340 | BC181: I24350 | BD181: B24340:I24350
AG182: 1519 | AH182: B21204:L21214 | AI182: 1544 | AJ182: B21554:L21564 | AK182: 1569 | AL182: B21904:L21914 | AM182: 1594 | AN182: B22254:L22264 | AO182: 1619 | AP182: B22604:L22614 | AQ182: 1644 | AR182: B22954:L22964 | AS182: 1669 | AT182: B23304:L23314 | AU182: 1694 | AV182: B23654:L23664 | AW182: 1719 | AX182: B24004:L24014 | AY182: 1744 | AZ182: B24354:L24364 | BB182: =LEFT(BB181,1)&RIGHT(BB181,5)+14 -> B24354 | BC182: I24364 | BD182: B24354:I24364
AG183: 1520 | AH183: B21218:L21228 | AI183: 1545 | AJ183: B21568:L21578 | AK183: 1570 | AL183: B21918:L21928 | AM183: 1595 | AN183: B22268:L22278 | AO183: 1620 | AP183: B22618:L22628 | AQ183: 1645 | AR183: B22968:L22978 | AS183: 1670 | AT183: B23318:L23328 | AU183: 1695 | AV183: B23668:L23678 | AW183: 1720 | AX183: B24018:L24028 | AY183: 1745 | AZ183: B24368:L24378 | BB183: =LEFT(BB182,1)&RIGHT(BB182,5)+14 -> B24368 | BC183: I24378 | BD183: B24368:I24378
AG184: 1521 | AH184: B21232:L21242 | AI184: 1546 | AJ184: B21582:L21592 | AK184: 1571 | AL184: B21932:L21942 | AM184: 1596 | AN184: B22282:L22292 | AO184: 1621 | AP184: B22632:L22642 | AQ184: 1646 | AR184: B22982:L22992 | AS184: 1671 | AT184: B23332:L23342 | AU184: 1696 | AV184: B23682:L23692 | AW184: 1721 | AX184: B24032:L24042 | AY184: 1746 | AZ184: B24382:L24392 | BB184: =LEFT(BB183,1)&RIGHT(BB183,5)+14 -> B24382 | BC184: I24392 | BD184: B24382:I24392
AG185: 1522 | AH185: B21246:L21256 | AI185: 1547 | AJ185: B21596:L21606 | AK185: 1572 | AL185: B21946:L21956 | AM185: 1597 | AN185: B22296:L22306 | AO185: 1622 | AP185: B22646:L22656 | AQ185: 1647 | AR185: B22996:L23006 | AS185: 1672 | AT185: B23346:L23356 | AU185: 1697 | AV185: B23696:L23706 | AW185: 1722 | AX185: B24046:L24056 | AY185: 1747 | AZ185: B24396:L24406 | BB185: =LEFT(BB184,1)&RIGHT(BB184,5)+14 -> B24396 | BC185: I24406 | BD185: B24396:I24406
AG186: 1523 | AH186: B21260:L21270 | AI186: 1548 | AJ186: B21610:L21620 | AK186: 1573 | AL186: B21960:L21970 | AM186: 1598 | AN186: B22310:L22320 | AO186: 1623 | AP186: B22660:L22670 | AQ186: 1648 | AR186: B23010:L23020 | AS186: 1673 | AT186: B23360:L23370 | AU186: 1698 | AV186: B23710:L23720 | AW186: 1723 | AX186: B24060:L24070 | AY186: 1748 | AZ186: B24410:L24420 | BB186: =LEFT(BB185,1)&RIGHT(BB185,5)+14 -> B24410 | BC186: I24420 | BD186: B24410:I24420
AG187: 1524 | AH187: B21274:L21284 | AI187: 1549 | AJ187: B21624:L21634 | AK187: 1574 | AL187: B21974:L21984 | AM187: 1599 | AN187: B22324:L22334 | AO187: 1624 | AP187: B22674:L22684 | AQ187: 1649 | AR187: B23024:L23034 | AS187: 1674 | AT187: B23374:L23384 | AU187: 1699 | AV187: B23724:L23734 | AW187: 1724 | AX187: B24074:L24084 | AY187: 1749 | AZ187: B24424:L24434 | BB187: =LEFT(BB186,1)&RIGHT(BB186,5)+14 -> B24424 | BC187: I24434 | BD187: B24424:I24434
AG188: 1525 | AH188: B21288:L21298 | AI188: 1550 | AJ188: B21638:L21648 | AK188: 1575 | AL188: B21988:L21998 | AM188: 1600 | AN188: B22338:L22348 | AO188: 1625 | AP188: B22688:L22698 | AQ188: 1650 | AR188: B23038:L23048 | AS188: 1675 | AT188: B23388:L23398 | AU188: 1700 | AV188: B23738:L23748 | AW188: 1725 | AX188: B24088:L24098 | AY188: 1750 | AZ188: B24438:L24448 | BB188: =LEFT(BB187,1)&RIGHT(BB187,5)+14 -> B24438 | BC188: I24448 | BD188: B24438:I24448
AG190: Opgave: | AH190: Formule: | AI190: Opgave: | AJ190: Formule: | AK190: Opgave: | AL190: Formule: | AM190: Opgave: | AN190: Formule: | AO190: Opgave: | AP190: Formule: | AQ190: Opgave: | AR190: Formule: | AS190: Opgave: | AT190: Formule: | AU190: Opgave: | AV190: Formule: | AW190: Opgave: | AX190: Formule: | AY190: Opgave: | AZ190: Formule: | BB190: B25488 | BC190: I25498
AG191: 1751 | AH191: B24452:I24462 | AI191: 1776 | AJ191: =LEFT(AH191,1)&MID(AH191,2,5)+350&":"&MID(AH191,8,1)&MID(AH191,9,5)+350 -> B24802:I24812 | AK191: 1801 | AL191: B25152:I25162 | AM191: 1826 | AN191: B25502:I25512 | AO191: 1851 | AP191: B25852:I25862 | AQ191: 1876 | AR191: B26202:I26212 | AS191: 1901 | AT191: B26552:I26562 | AU191: 1926 | AV191: B26902:I26912 | AW191: 1951 | AX191: B27252:I27262 | AY191: 1976 | AZ191: B27602:I27612 | BB191: =LEFT(BB190,1)&RIGHT(BB190,5)+14 -> B25502 | BC191: =LEFT(BC190,1)&RIGHT(BC190,5)+14 -> I25512 | BD191: =CONCATENATE(BB191,":",BC191) -> B25502:I25512
AG192: 1752 | AH192: B24466:I24476 | AI192: 1777 | AJ192: B24816:I24826 | AK192: 1802 | AL192: B25166:I25176 | AM192: 1827 | AN192: B25516:I25526 | AO192: 1852 | AQ192: 1877 | AS192: 1902 | AU192: 1927 | AW192: 1952 | AY192: 1977 | BB192: =LEFT(BB191,1)&RIGHT(BB191,5)+14 -> B25516 | BC192: I25526 | BD192: =CONCATENATE(BB192,":",BC192) -> B25516:I25526
AG193: 1753 | AH193: B24480:I24490 | AI193: 1778 | AJ193: B24830:I24840 | AK193: 1803 | AL193: B25180:I25190 | AM193: 1828 | AN193: B25530:I25540 | AO193: 1853 | AQ193: 1878 | AS193: 1903 | AU193: 1928 | AW193: 1953 | AY193: 1978 | BB193: =LEFT(BB192,1)&RIGHT(BB192,5)+14 -> B25530 | BC193: I25540 | BD193: B25530:I25540
AG194: 1754 | AH194: B24494:I24504 | AI194: 1779 | AJ194: B24844:I24854 | AK194: 1804 | AL194: B25194:I25204 | AM194: 1829 | AN194: B25544:I25554 | AO194: 1854 | AQ194: 1879 | AS194: 1904 | AU194: 1929 | AW194: 1954 | AY194: 1979 | BB194: =LEFT(BB193,1)&RIGHT(BB193,5)+14 -> B25544 | BC194: I25554 | BD194: B25544:I25554
AG195: 1755 | AH195: B24508:I24518 | AI195: 1780 | AJ195: B24858:I24868 | AK195: 1805 | AL195: B25208:I25218 | AM195: 1830 | AN195: B25558:I25568 | AO195: 1855 | AQ195: 1880 | AS195: 1905 | AU195: 1930 | AW195: 1955 | AY195: 1980 | BB195: =LEFT(BB194,1)&RIGHT(BB194,5)+14 -> B25558 | BC195: I25568 | BD195: B25558:I25568
AG196: 1756 | AH196: B24522:I24532 | AI196: 1781 | AJ196: B24872:I24882 | AK196: 1806 | AL196: B25222:I25232 | AM196: 1831 | AN196: B25572:I25582 | AO196: 1856 | AQ196: 1881 | AS196: 1906 | AU196: 1931 | AW196: 1956 | AY196: 1981 | BB196: =LEFT(BB195,1)&RIGHT(BB195,5)+14 -> B25572 | BC196: I25582 | BD196: B25572:I25582
AG197: 1757 | AH197: B24536:I24546 | AI197: 1782 | AJ197: B24886:I24896 | AK197: 1807 | AL197: B25236:I25246 | AM197: 1832 | AN197: B25586:I25596 | AO197: 1857 | AQ197: 1882 | AS197: 1907 | AU197: 1932 | AW197: 1957 | AY197: 1982 | BB197: =LEFT(BB196,1)&RIGHT(BB196,5)+14 -> B25586 | BC197: I25596 | BD197: B25586:I25596
AG198: 1758 | AH198: B24550:I24560 | AI198: 1783 | AJ198: B24900:I24910 | AK198: 1808 | AL198: B25250:I25260 | AM198: 1833 | AN198: B25600:I25610 | AO198: 1858 | AQ198: 1883 | AS198: 1908 | AU198: 1933 | AW198: 1958 | AY198: 1983 | BB198: =LEFT(BB197,1)&RIGHT(BB197,5)+14 -> B25600 | BC198: I25610 | BD198: B25600:I25610
AG199: 1759 | AH199: B24564:I24574 | AI199: 1784 | AJ199: B24914:I24924 | AK199: 1809 | AL199: B25264:I25274 | AM199: 1834 | AN199: B25614:I25624 | AO199: 1859 | AQ199: 1884 | AS199: 1909 | AU199: 1934 | AW199: 1959 | AY199: 1984 | BB199: =LEFT(BB198,1)&RIGHT(BB198,5)+14 -> B25614 | BC199: I25624 | BD199: B25614:I25624
AG200: 1760 | AH200: B24578:I24588 | AI200: 1785 | AJ200: B24928:I24938 | AK200: 1810 | AL200: B25278:I25288 | AM200: 1835 | AN200: B25628:I25638 | AO200: 1860 | AQ200: 1885 | AS200: 1910 | AU200: 1935 | AW200: 1960 | AY200: 1985 | BB200: =LEFT(BB199,1)&RIGHT(BB199,5)+14 -> B25628 | BC200: I25638 | BD200: B25628:I25638
AG201: 1761 | AH201: B24592:I24602 | AI201: 1786 | AJ201: B24942:I24952 | AK201: 1811 | AL201: B25292:I25302 | AM201: 1836 | AN201: B25642:I25652 | AO201: 1861 | AQ201: 1886 | AS201: 1911 | AU201: 1936 | AW201: 1961 | AY201: 1986 | BB201: =LEFT(BB200,1)&RIGHT(BB200,5)+14 -> B25642 | BC201: I25652 | BD201: B25642:I25652
AG202: 1762 | AH202: B24606:I24616 | AI202: 1787 | AJ202: B24956:I24966 | AK202: 1812 | AL202: B25306:I25316 | AM202: 1837 | AN202: B25656:I25666 | AO202: 1862 | AQ202: 1887 | AS202: 1912 | AU202: 1937 | AW202: 1962 | AY202: 1987 | BB202: =LEFT(BB201,1)&RIGHT(BB201,5)+14 -> B25656 | BC202: I25666 | BD202: B25656:I25666
AG203: 1763 | AH203: B24620:I24630 | AI203: 1788 | AJ203: B24970:I24980 | AK203: 1813 | AL203: B25320:I25330 | AM203: 1838 | AN203: B25670:I25680 | AO203: 1863 | AQ203: 1888 | AS203: 1913 | AU203: 1938 | AW203: 1963 | AY203: 1988 | BB203: =LEFT(BB202,1)&RIGHT(BB202,5)+14 -> B25670 | BC203: I25680 | BD203: B25670:I25680
AG204: 1764 | AH204: B24634:I24644 | AI204: 1789 | AJ204: B24984:I24994 | AK204: 1814 | AL204: B25334:I25344 | AM204: 1839 | AN204: B25684:I25694 | AO204: 1864 | AQ204: 1889 | AS204: 1914 | AU204: 1939 | AW204: 1964 | AY204: 1989 | BB204: =LEFT(BB203,1)&RIGHT(BB203,5)+14 -> B25684 | BC204: I25694 | BD204: B25684:I25694
AG205: 1765 | AH205: B24648:I24658 | AI205: 1790 | AJ205: B24998:I25008 | AK205: 1815 | AL205: B25348:I25358 | AM205: 1840 | AN205: B25698:I25708 | AO205: 1865 | AQ205: 1890 | AS205: 1915 | AU205: 1940 | AW205: 1965 | AY205: 1990 | BB205: =LEFT(BB204,1)&RIGHT(BB204,5)+14 -> B25698 | BC205: I25708 | BD205: B25698:I25708
AG206: 1766 | AH206: B24662:I24672 | AI206: 1791 | AJ206: B25012:I25022 | AK206: 1816 | AL206: B25362:I25372 | AM206: 1841 | AN206: B25712:I25722 | AO206: 1866 | AQ206: 1891 | AS206: 1916 | AU206: 1941 | AW206: 1966 | AY206: 1991 | BB206: =LEFT(BB205,1)&RIGHT(BB205,5)+14 -> B25712 | BC206: I25722 | BD206: B25712:I25722
AG207: 1767 | AH207: B24676:I24686 | AI207: 1792 | AJ207: =LEFT(AH207,1)&MID(AH207,2,5)+350&":"&MID(AH207,8,1)&MID(AH207,9,5)+350 -> B25026:I25036 | AK207: 1817 | AL207: =LEFT(AJ207,1)&MID(AJ207,2,5)+350&":"&MID(AJ207,8,1)&MID(AJ207,9,5)+350 -> B25376:I25386 | AM207: 1842 | AN207: =LEFT(AL207,1)&MID(AL207,2,5)+350&":"&MID(AL207,8,1)&MID(AL207,9,5)+350 -> B25726:I25736 | AO207: 1867 | AQ207: 1892 | AS207: 1917 | AU207: 1942 | AW207: 1967 | AY207: 1992 | BB207: =LEFT(BB206,1)&RIGHT(BB206,5)+14 -> B25726 | BC207: I25736 | BD207: B25726:I25736
... 9 more rows

Sheet Opgaven
B1: Opgave: | D1: 1
S2: Horizontaal:
A3: 1 | B3: # | D3: # | E3: # | G3: # | I3: # | K3: # | M3: 1 | S3: 1
A4: 2 | G4: # | M4: 2 | S4: 2 | T4: Reep - Piepschuim
A5: 3 | B5: # | M5: 3 | S5: 3 | T5: Zetel van riet
A6: 4 | B6: # | F6: # | L6: # | M6: 4 | S6: 4 | T6: Onvoltooid Tegenwoordige Tijd - Rijwiel
A7: 5 | E7: # | J7: # | M7: 5 | S7: 5 | T7: Kunstproduct - Halte - Economische zaken
A8: 6 | B8: # | C8: # | I8: # | M8: 6 | S8: 6 | T8: Doetje - Onheilsgodin
A9: 7 | B9: # | F9: # | M9: 7 | S9: 7 | T9: Half-om-Half - Kraaiachtige vogel
A10: 8 | B10: # | H10: # | M10: 8 | S10: 8 | T10: Belgische auteur - Rivier in Spanje
S11: Verticaal:
M12: A | S12: A
M13: B | S13: B
M14: C | S14: C | T14: Keel - Hoofd Commissaris
M15: D | S15: D | T15: Isolatie materiaal
M16: E | S16: E | T16: In tegenstelling tot - Uitroep
M17: F | S17: F | T17: Kuuroord - Sint
M18: G | S18: G | T18: Keurig
M19: H | S19: H | T19: Missaal
M20: I | S20: I | T20: Punt - Selenium
M21: J | S21: J | T21: Kachelijzer - Rijwiel
M22: K | S22: K | T22: Puistje
M23: L | S23: L | T23: Graskluit - Nul
B24: Opgave: | D24: 2
M25: Horizontaal: | S25: Horizontaal:
A26: 1 | B26: # | D26: # | F26: # | H26: # | J26: # | L26: # | M26: 1 | S26: 1
A27: 2 | F27: # | M27: 2 | S27: 2 | T27: Tiende deel(voorvoegsel) - Plaats in Wallonië
A28: 3 | B28: # | H28: # | M28: 3 | S28: 3 | T28: Deel van een muziekinstrument - Balletrokje
A29: 4 | B29: # | I29: # | M29: 4 | S29: 4 | T29: Schrijver - Eenheid van luchtdruk
A30: 5 | E30: # | J30: # | L30: # | M30: 5 | S30: 5 | T30: Berg - Nuk
A31: 6 | B31: # | C31: # | I31: # | M31: 6 | S31: 6 | T31: Keet - Met behulp van
A32: 7 | B32: # | G32: # | M32: 7 | S32: 7 | T32: Familielid - Figuursoort in kaartspel
A33: 8 | B33: # | H33: # | M33: 8 | S33: 8 | T33: Stedelijk - Uitvinder van de telefoon
M34: Verticaal: | S34: Verticaal:
M35: A | S35: A
M36: B | S36: B
M37: C | S37: C | T37: Rockgenre - Post scriptum
M38: D | S38: D | T38: Strofe
M39: E | S39: E | T39: Hecht pennetje - Grootvader
M40: F | S40: F | T40: Vordering
M41: G | S41: G | T41: Belachelijk
M42: H | S42: H | T42: Bordspel
M43: I | S43: I | T43: Buiten de lijn - Loco burgemeester
M44: J | S44: J | T44: Onder(Latijn) - In iemands voordeel
M45: K | S45: K | T45: Plaats in Turkije
M46: L | S46: L | T46: Deel van de dag - Vrouwelijk
B47: Opgave: | D47: 3
M48: Horizontaal: | S48: Horizontaal:
A49: 1 | B49: # | D49: # | F49: # | H49: # | J49: # | L49: # | M49: 1 | S49: 1
A50: 2 | H50: # | M50: 2 | S50: 2 | T50: Capsule(Frans) - Middag
A51: 3 | B51: # | F51: # | J51: # | M51: 3 | S51: 3 | T51: Klein vertrek - Deel van het hoofd - Griekse letter
A52: 4 | I52: # | M52: 4 | S52: 4 | T52: Woordvoerder - Notaris
A53: 5 | B53: # | E53: # | L53: # | M53: 5 | S53: 5 | T53: Pluralis - Samenscholing
A54: 6 | H54: # | M54: 6 | S54: 6 | T54: Label - Drugs
A55: 7 | B55: # | G55: # | M55: 7 | S55: 7 | T55: Egyptische godin - Van bepaalde steensoort
A56: 8 | F56: # | M56: 8 | S56: 8 | T56: Leren lap - Franse filosoof
M57: Verticaal: | S57: Verticaal:
M58: A | S58: A
M59: B | S59: B
M60: C | S60: C | T60: Ontvangstbalie
M61: D | S61: D | T61: Plaats in Wallonië
M62: E | S62: E | T62: Koker - Horizon
M63: F | S63: F | T63: Puree
M64: G | S64: G | T64: Omgehakt
M65: H | S65: H | T65: Inleiding - Noot
M66: I | S66: I | T66: Rivier in Zwitserland - Rivier in Polen
M67: J | S67: J | T67: Nimmer
M68: K | S68: K | T68: Uiting van ontevredenheid
M69: L | S69: L | T69: Voordeel - Een zekere
B70: Opgave: | D70: 4
S71: Horizontaal:
A72: 1 | B72: # | D72: # | F72: # | G72: # | I72: # | K72: # | M72: 1 | S72: 1
A73: 2 | G73: # | M73: 2 | S73: 2 | T73: Engelse dichter - Uiterst(voorvoegsel)
A74: 3 | B74: # | I74: # | M74: 3 | S74: 3 | T74: Schoon - Water(Frans)
A75: 4 | B75: # | D75: # | G75: # | K75: # | M75: 4 | S75: 4 | T75: Mama - Europeaan
A76: 5 | E76: # | I76: # | L76: # | M76: 5 | S76: 5 | T76: Vrolijk - Groet - Namelijk
A77: 6 | B77: # | C77: # | H77: # | J77: # | M77: 6 | S77: 6 | T77: Onwel - En omgeving
A78: 7 | F78: # | M78: 7 | S78: 7 | T78: Opening in een vestingsmuur - Goed verkopende plaat
A79: 8 | B79: # | H79: # | M79: 8 | S79: 8 | T79: Met het bedoelde - Plezier
S80: Verticaal:
M81: A | S81: A
M82: B | S82: B
M83: C | S83: C | T83: Bestek - Noot
M84: D | S84: D | T84: Slee - Stroom in België
M85: E | S85: E | T85: Dom - In samenwerking met
M86: F | S86: F | T86: Spitwerktuig
M87: G | S87: G | T87: Getuigschrift
M88: H | S88: H | T88: Rins
M89: I | S89: I | T89: Oppervlakte
M90: J | S90: J | T90: Zeezwaluw - Heer
M91: K | S91: K | T91: Zonnegod - Water in België
M92: L | S92: L | T92: Eng - Onvoltooid Tegenwoordige Tijd
B93: Opgave: | D93: 5
S94: Horizontaal:
A95: 1 | B95: # | D95: # | F95: # | G95: # | I95: # | J95: # | L95: # | M95: 1 | S95: 1
A96: 2 | F96: # | M96: 2 | S96: 2 | T96: Verbond - Na
A97: 3 | B97: # | G97: # | M97: 3 | S97: 3 | T97: Soort kabeljauw - Hofstede
A98: 4 | B98: # | I98: R | M98: 4 | S98: 4 | T98: Senior - Comite
A99: 5 | E99: # | J99: # | L99: # | M99: 5 | S99: 5 | T99: Eenheid van tijd - Hoogte
A100: 6 | B100: # | C100: # | I100: # | M100: 6 | S100: 6 | T100: Huidkleur - Boom
A101: 7 | B101: # | G101: # | M101: 7 | S101: 7 | T101: Optreden als diskjockey - Strook
A102: 8 | B102: # | H102: # | M102: 8 | S102: 8 | T102: Engelse dichter - Miljoen(in samenstellingen)
S103: Verticaal:
M104: A | S104: A
M105: B | S105: B
M106: C | S106: C | T106: Schurk - Denemarken
M107: D | S107: D | T107: Parfum
M108: E | S108: E | T108: Grondsoort - Een en ander
M109: F | S109: F | T109: Kapwerk van een dak
M110: G | S110: G | T110: Kippenhok
M111: H | S111: H | T111: Grap
M112: I | S112: I | T112: Uitroep - Tot en met
M113: J | S113: J | T113: Transport en Communicatie - Roem
M114: K | S114: K | T114: Teder
M115: L | S115: L | T115: Vertragingsmiddel - Kuuroord
B116: Opgave: | D116: 6
S117: Horizontaal:
A118: 1 | B118: # | D118: # | E118: # | G118: # | I118: # | K118: # | M118: 1 | S118: 1
A119: 2 | G119: # | M119: 2 | S119: 2 | T119: Japans gerecht - Europees volk
A120: 3 | B120: # | M120: 3 | S120: 3 | T120: Sportterm
A121: 4 | B121: # | F121: # | L121: # | M121: 4 | S121: 4 | T121: Stier - Knoflooksaus
A122: 5 | E122: # | J122: # | M122: 5 | S122: 5 | T122: Reisdocument - Dupe - Bijwoord
A123: 6 | B123: # | C123: # | I123: # | M123: 6 | S123: 6 | T123: Vochtige kou - Artikel
A124: 7 | B124: # | F124: # | M124: 7 | S124: 7 | T124: Boogbal - Toegangsprijs
A125: 8 | B125: # | H125: # | M125: 8 | S125: 8 | T125: Ondersteboven - Juist
S126: Verticaal:
M127: A | S127: A
M128: B | S128: B
M129: C | S129: C | T129: Zuid-Amerikaanse dans - Plaats in West-Vlaanderen
M130: D | S130: D | T130: Jusschaal
M131: E | S131: E | T131: Hoge snelheids lijn - In bezit van
M132: F | S132: F | T132: Muurholte - Kiloliter
M133: G | S133: G | T133: Plaats in België
M134: H | S134: H | T134: Boven natuurlijke verschijning
M135: I | S135: I | T135: Heldendicht - Te weten
M136: J | S136: J | T136: Lok - Papegaai
M137: K | S137: K | T137: Land in Afrika
M138: L | S138: L | T138: Tak - Gast
B139: Opgave: | D139: 7
S140: Horizontaal:
A141: 1 | B141: # | D141: # | F141: # | H141: # | J141: # | L141: # | M141: 1 | S141: 1
A142: 2 | F142: # | M142: 2 | S142: 2 | T142: Ho! - Jachtluipaard
A143: 3 | B143: # | H143: # | M143: 3 | S143: 3 | T143: Teambegeleider - Plankenkoorts
A144: 4 | B144: # | I144: # | M144: 4 | S144: 4 | T144: Afgezant van een koning - Fulltime-equivalent
A145: 5 | E145: # | J145: # | L145: # | M145: 5 | S145: 5 | T145: Deel van een fiets - Ierland
A146: 6 | B146: # | C146: # | I146: # | M146: 6 | S146: 6 | T146: Italiaanse basilicumsaus - Balt
A147: 7 | B147: # | G147: # | M147: 7 | S147: 7 | T147: Gevierde actrice of zangeres - Tekortkoming
A148: 8 | B148: # | H148: # | M148: 8 | S148: 8 | T148: Jonge koe - Kledingstuk
S149: Verticaal:
M150: A | S150: A
M151: B | S151: B
M152: C | S152: C | T152: Dekzeil(Frans) - Deo Volente
M153: D | S153: D | T153: Oosters gerecht
M154: E | S154: E | T154: Stijf - Eerste vrouw
M155: F | S155: F | T155: Keizer(Latijn)
M156: G | S156: G | T156: Vaartuig
M157: H | S157: H | T157: Instrument
M158: I | S158: I | T158: Hoofddeksel - Als boven
M159: J | S159: J | T159: Grondbezit - Onbepaald voornaamwoord
M160: K | S160: K | T160: Onbeweeglijk
M161: L | S161: L | T161: Onhoudbare service bij tennis - Technisch onderwijs assistent
B162: Opgave: | D162: 8
S163: Horizontaal:
A164: 1 | B164: # | D164: # | F164: # | G164: # | I164: # | K164: # | M164: 1 | S164: 1
A165: 2 | G165: # | M165: 2 | S165: 2 | T165: Kwaal - Speelgeld
A166: 3 | B166: # | I166: # | M166: 3 | S166: 3 | T166: Wapenschouw - Vogel
A167: 4 | B167: # | D167: # | G167: # | K167: # | M167: 4 | S167: 4 | T167: Operatiekamer - Niet van toepassing
A168: 5 | E168: # | I168: # | L168: # | M168: 5 | S168: 5 | T168: Kielwater - Boom - Onzes inziens
A169: 6 | B169: # | C169: # | H169: # | J169: # | M169: 6 | S169: 6 | T169: Bond - Europees Parlement
A170: 7 | F170: # | M170: 7 | S170: 7 | T170: Trommel - Bovendien
A171: 8 | B171: # | H171: # | M171: 8 | S171: 8 | T171: Gebrek - Oosters voedsel
S172: Verticaal:
M173: A | S173: A
M174: B | S174: B
M175: C | S175: C | T175: Zetpil - Zonnegod
M176: D | S176: D | T176: Vanaf - Schraal
M177: E | S177: E | T177: Nul - Naar mijn mening
M178: F | S178: F | T178: Huisbediende in livrei
M179: G | S179: G | T179: Uitroep
M180: H | S180: H | T180: Tussenwerpsel
M181: I | S181: I | T181: Insectenwerend scherm
M182: J | S182: J | T182: Dwergplaneet - File
M183: K | S183: K | T183: Kiem - Enig ding
M184: L | S184: L | T184: Sneeuwhut - Geluid om de aandacht te trekken
B185: Opgave: | D185: 9
S186: Horizontaal:
A187: 1 | B187: # | D187: # | F187: # | G187: # | I187: # | J187: # | L187: # | M187: 1 | S187: 1
A188: 2 | F188: # | M188: 2 | S188: 2 | T188: Kegelvormig - Huisvesting
A189: 3 | B189: # | G189: # | M189: 3 | S189: 3 | T189: Doorzichtig weefsel met fijne mazen - Engels broodje
A190: 4 | B190: # | I190: # | M190: 4 | S190: 4 | T190: Overeenkomen - Chinese staatsman
A191: 5 | E191: # | J191: # | L191: # | M191: 5 | S191: 5 | T191: Steen - Maal
A192: 6 | B192: # | C192: # | I192: # | M192: 6 | S192: 6 | T192: Tendens - Korte kous
A193: 7 | B193: # | G193: # | M193: 7 | S193: 7 | T193: Grondsoort - Plaats in Vlaanderen
A194: 8 | B194: # | H194: # | M194: 8 | S194: 8 | T194: Toestand van rust - Larve
S195: Verticaal:
M196: A | S196: A
M197: B | S197: B
M198: C | S198: C | T198: Joods Paasbrood - Vice Versa
M199: D | S199: D | T199: Lessenaar
M200: E | S200: E | T200: Europese hoofdstad - Hert
... 4300 more rows

Sheet Oplossingen
A1: Opgave: | B1: Anagram: | C1: Oplossing: | D1: Namen: | E1: Hoofdletter: | H1: A-Z | J1: Vijfletter
A2: 1 | B2: MONITOR | C2: Monitor | D2: Aambeeld | E2: =UPPER(D2) -> AAMBEELD | H2: Aambeeld | I2: 1 | J2: Aarde | M2: =_xlfn._xlws.SORT( _xlfn.TOCOL( J2:J1250, 1 ) ) -> Aarde | N2: =_xlfn._xlws.SORT( _xlfn._xlws.FILTER( J2:J1250, J2:J1250<>"" )) -> Aarde
A3: 2 | B3: AURAPPL | C3: Paraplu | D3: Aambeeld | E3: AAMBEELD | H3: Aankomst | I3: 2 | J3: Aarde | M3: Aarde | N3: Aarde
A4: 3 | B4: GNINPNE | C4: Penning | D4: Aambeeld | E4: AAMBEELD | F4: 1 | G4: =IF(F4="1","",D4) -> Aambeeld | H4: Aannemer | I4: 3 | J4: Abeel | M4: Abeel | N4: Abeel
A5: 4 | B5: SERMETM | C5: Stemmer | D5: Aankomst | E5: AANKOMST | H5: Aanschaf | I5: 4 | J5: Actie | M5: Actie | N5: Actie
A6: 5 | B6: IHUBSRA | C6: Huisbar | D6: Aankomst | E6: AANKOMST | F6: 1 | G6: =IF(F6="1","",D6) -> Aankomst | H6: Aanvraag | I6: 5 | J6: Actie | M6: Actie | N6: Actie
A7: 6 | B7: RTOPTRE | C7: Portret | D7: Aannemer | E7: AANNEMER | H7: Aardolie | I7: 6 | J7: Adres | M7: Adres | N7: Adres
A8: 7 | B8: HAEMDNR | C8: Handrem | D8: Aannemer | E8: AANNEMER | F8: 1 | G8: =IF(F8="1","",D8) -> Aannemer | H8: Aardpeer | I8: 7 | J8: Afrit | M8: Afrit | N8: Afrit
A9: 8 | B9: PANESAM | C9: Mensaap | D9: Aanschaf | E9: AANSCHAF | F9: 1 | G9: =IF(F9="1","",D9) -> Aanschaf | H9: Acrobaat | I9: 8 | J9: Afrit | M9: Afrit | N9: Afrit
A10: 9 | B10: ANLSGEA | C10: Lasagne | D10: Aanvraag | E10: AANVRAAG | F10: 1 | G10: =IF(F10="1","",D10) -> Aanvraag | H10: Admiraal | I10: 9 | J10: Agaat | M10: Agaat | N10: Agaat
A11: 10 | B11: CIDMUES | C11: Medicus | D11: Aardolie | E11: AARDOLIE | H11: Adviseur | I11: 10 | J11: Agaat | M11: Agaat | N11: Agaat
A12: 11 | B12: IKWAKLT | C12: Witkalk | D12: Aardolie | E12: AARDOLIE | F12: 1 | G12: =IF(F12="1","",D12) -> Aardolie | H12: Aerobics | I12: 11 | J12: Agave | M12: Agave | N12: Agave
A13: 12 | B13: CNAIGPM | C13: Camping | D13: Aardpeer | E13: AARDPEER | H13: Afmeting | I13: 12 | J13: Agave | M13: Agave | N13: Agave
A14: 13 | B14: ATMTLES | C14: Altstem | D14: Aardpeer | E14: AARDPEER | F14: 1 | G14: =IF(F14="1","",D14) -> Aardpeer | H14: Afspraak | I14: 13 | J14: Agent | M14: Agent | N14: Agent
A15: 14 | B15: RPIKAET | C15: Parkiet | D15: Acrobaat | E15: ACROBAAT | H15: Albatros | I15: 14 | J15: Ahorn | M15: Ahorn | N15: Ahorn
A16: 15 | B16: OOVNTER | C16: Vertoon | D16: Acrobaat | E16: ACROBAAT | F16: 1 | G16: =IF(F16="1","",D16) -> Acrobaat | H16: Alpenhut | I16: 15 | J16: Ahorn | M16: Ahorn | N16: Ahorn
A17: 16 | B17: BABARRA | C17: Barbaar | D17: Admiraal | E17: ADMIRAAL | H17: Alpinist | I17: 16 | J17: Airco | M17: Airco | N17: Airco
A18: 17 | B18: BSSAMTE | C18: Basstem | D18: Admiraal | E18: ADMIRAAL | F18: 1 | G18: =IF(F18="1","",D18) -> Admiraal | H18: Altstem | I18: 17 | J18: Akker | M18: Akker | N18: Akker
A19: 18 | B19: AOEIHMRN | C19: Harmonie | D19: Adviseur | E19: ADVISEUR | H19: Alttoets | I19: 18 | J19: Album | M19: Album | N19: Album
A20: 19 | B20: KHUTTAEO | C20: Teakhout | D20: Adviseur | E20: ADVISEUR | H20: Altviool | I20: 19 | J20: Alias | M20: Alias | N20: Alias
A21: 20 | B21: BREOTMON | C21: Trombone | D21: Adviseur | E21: ADVISEUR | F21: 1 | G21: =IF(F21="1","",D21) -> Adviseur | H21: Amnestie | I21: 20 | J21: Alias | M21: Alias | N21: Alias
A22: 21 | B22: ORNEEDRE | C22: Ereronde | D22: Aerobics | E22: AEROBICS | F22: 1 | G22: Aerobics | H22: Anaconda | I22: 21 | J22: Aloha | M22: Aloha | N22: Aloha
A23: 22 | B23: TTRIOLLA | C23: Tortilla | D23: Afmeting | E23: AFMETING | F23: 1 | G23: Afmeting | H23: Animatie | I23: 22 | J23: Aloha | M23: Aloha | N23: Aloha
A24: 23 | B24: WOGTNKIL | C24: Knotwilg | D24: Afspraak | E24: AFSPRAAK | F24: 1 | G24: Afspraak | H24: Anjelier | I24: 23 | J24: Amigo | M24: Amigo | N24: Amigo
A25: 24 | B25: OAEKPTOK | C25: Koopakte | D25: Albatros | E25: ALBATROS | H25: Antilope | I25: 24 | J25: Amigo | M25: Amigo | N25: Amigo
A26: 25 | B26: COCUOSNR | C26: Concours | D26: Albatros | E26: ALBATROS | F26: 1 | G26: Albatros | H26: Antwoord | I26: 25 | J26: Amour | M26: Amour | N26: Amour
A27: 26 | B27: PARUTTWE | C27: Waterput | D27: Alpenhut | E27: ALPENHUT | F27: 1 | G27: Alpenhut | H27: Apennoot | I27: 26 | J27: Amour | M27: Amour | N27: Amour
A28: 27 | B28: PHTROSAL | C28: Sporthal | D28: Alpinist | E28: ALPINIST | H28: Apenrots | I28: 27 | J28: Amuse | M28: Amuse | N28: Amuse
A29: 28 | B29: OULPPIRE | C29: Populier | D29: Alpinist | E29: ALPINIST | H29: Apparaat | I29: 28 | J29: Animo | M29: Animo | N29: Animo
A30: 29 | B30: KDULIEIR | C30: Drieluik | D30: Alpinist | E30: ALPINIST | H30: Appelsap | I30: 29 | J30: Anjer | M30: Anjer | N30: Anjer
A31: 30 | B31: BURDMNAD | C31: Drumband | D31: Alpinist | E31: ALPINIST | F31: 1 | G31: Alpinist | H31: Arcering | I31: 30 | J31: Anker | M31: Anker | N31: Anker
A32: 31 | B32: OEOBRGIH | C32: Hooiberg | D32: Altstem | E32: ALTSTEM | F32: 1 | G32: Altstem | H32: Archipel | I32: 31 | J32: Appel | M32: Appel | N32: Appel
A33: 32 | B33: SEKOERIN | C33: Kerosine | D33: Alttoets | E33: ALTTOETS | F33: 1 | G33: Alttoets | H33: Argument | I33: 32 | J33: April | M33: April | N33: April
A34: 33 | B34: IPAELOSN | C34: Pianoles | D34: Altviool | E34: ALTVIOOL | H34: Atalanta | I34: 33 | J34: Arena | M34: Arena | N34: Arena
A35: 34 | B35: ZEITREFU | C35: Zeefruit | D35: Altviool | E35: ALTVIOOL | F35: 1 | G35: Altviool | H35: Atletiek | I35: 34 | J35: Aroma | M35: Aroma | N35: Aroma
A36: 35 | B36: EOIIVPSR | C36: Provisie | D36: Amnestie | E36: AMNESTIE | F36: 1 | G36: Amnestie | H36: Attentie | I36: 35 | J36: Aroma | M36: Aroma | N36: Aroma
A37: 36 | B37: KUSREIBS | C37: Kruisbes | D37: Anaconda | E37: ANACONDA | F37: 1 | G37: Anaconda | H37: Autoband | I37: 36 | J37: Aster | M37: Aster | N37: Aster
A38: 37 | B38: ARNELOAM | C38: Molenaar | D38: Animatie | E38: ANIMATIE | H38: Autobank | I38: 37 | J38: Atlas | M38: Atlas | N38: Atlas
A39: 38 | B39: DNAUTOBA | C39: Autoband | D39: Animatie | E39: ANIMATIE | F39: 1 | G39: Animatie | H39: Autoblad | I39: 38 | J39: Atlas | M39: Atlas | N39: Atlas
A40: 39 | B40: OROSPTPT | C40: Topsport | D40: Anjelier | E40: ANJELIER | F40: 1 | G40: Anjelier | H40: Automerk | I40: 39 | J40: Atoom | M40: Atoom | N40: Atoom
A41: 40 | B41: EIAOTPLN | C41: Antilope | D41: Antilope | E41: ANTILOPE | H41: Autorace | I41: 40 | J41: Avond | M41: Avond | N41: Avond
A42: 41 | B42: RAIDVEUS | C42: Adviseur | D42: Antilope | E42: ANTILOPE | H42: Autoreis | I42: 41 | J42: Bacon | M42: Bacon | N42: Bacon
A43: 42 | B43: TELEAOVS | C43: Loveseat | D43: Antilope | E43: ANTILOPE | F43: 1 | G43: Antilope | H43: Avonduur | I43: 42 | J43: Badge | M43: Badge | N43: Badge
A44: 43 | B44: TIUEEVOL | C44: Evolutie | D44: Antwoord | E44: ANTWOORD | F44: 1 | G44: Antwoord | H44: Backhand | I44: 43 | J44: Baret | M44: Baret | N44: Baret
A45: 44 | B45: MANORIHE | C45: Harmonie | D45: Apennoot | E45: APENNOOT | F45: 1 | G45: Apennoot | H45: Badkamer | I45: 44 | J45: Barok | M45: Barok | N45: Barok
A46: 45 | B46: KRABNKAP | C46: Parkbank | D46: Apenrots | E46: APENROTS | H46: Badlaken | I46: 45 | J46: Baron | M46: Baron | N46: Baron
A47: 46 | B47: TSPORETP | C47: Sportpet | D47: Apenrots | E47: APENROTS | F47: 1 | G47: Apenrots | H47: Balsport | I47: 46 | J47: Batik | M47: Batik | N47: Batik
A48: 47 | B48: SRDAUVIE | C48: Adviseur | D48: Apparaat | E48: APPARAAT | H48: Barbaar | I48: 47 | J48: Batik | M48: Batik | N48: Batik
A49: 48 | B49: EAPTENAD | C49: Tapenade | D49: Apparaat | E49: APPARAAT | H49: Basiliek | I49: 48 | J49: Beeld | M49: Beeld | N49: Beeld
A50: 49 | B50: RUTEKEPN | C50: Keerpunt | D50: Apparaat | E50: APPARAAT | F50: 1 | G50: Apparaat | H50: Basstem | I50: 49 | J50: Beits | M50: Beits | N50: Beits
A51: 50 | B51: BGIAENLT | C51: Betaling | D51: Appelsap | E51: APPELSAP | F51: 1 | G51: Appelsap | H51: Bastille | I51: 50 | J51: Beker | M51: Beker | N51: Beker
A52: 51 | B52: EIKBISLA | C52: Basiliek | D52: Arcering | E52: ARCERING | F52: 1 | G52: Arcering | H52: Bavarois | I52: 51 | J52: Beker | M52: Beker | N52: Beker
A53: 52 | B53: FILNTAIS | C53: Finalist | D53: Archipel | E53: ARCHIPEL | F53: 1 | G53: Archipel | H53: Beleving | I53: 52 | J53: Beleg | M53: Beleg | N53: Beleg
A54: 53 | B54: VOOTOENT | C54: Voetnoot | D54: Argument | E54: ARGUMENT | F54: 1 | G54: Argument | H54: Berenbos | I54: 53 | J54: Besef | M54: Besef | N54: Besef
A55: 54 | B55: KZOTURUS | C55: Zuurstok | D55: Atalanta | E55: ATALANTA | H55: Bergdorp | I55: 54 | J55: Beurs | M55: Beurs | N55: Beurs
A56: 55 | B56: AAPADNSR | C56: Danspaar | D56: Atalanta | E56: ATALANTA | F56: 1 | G56: Atalanta | H56: Berggeit | I56: 55 | J56: Beurs | M56: Beurs | N56: Beurs
A57: 56 | B57: NMEGOTRE | C57: Motregen | D57: Atletiek | E57: ATLETIEK | H57: Berggids | I57: 56 | J57: Beverµ | M57: Beverµ | N57: Beverµ
A58: 57 | B58: TBOKNANO | C58: Toonbank | D58: Atletiek | E58: ATLETIEK | H58: Bergland | I58: 57 | J58: Bidet | M58: Bidet | N58: Bidet
A59: 58 | B59: DANEMETS | C59: Damsteen | D59: Atletiek | E59: ATLETIEK | H59: Bergmeer | I59: 58 | J59: Bidet | M59: Bidet | N59: Bidet
A60: 59 | B60: DLMUESVI | C60: Veldmuis | D60: Atletiek | E60: ATLETIEK | F60: 1 | G60: Atletiek | H60: Betaling | I60: 59 | J60: Bidon | M60: Bidon | N60: Bidon
A61: 60 | B61: TTCNNISI | C61: Instinct | D61: Attentie | E61: ATTENTIE | F61: 1 | G61: Attentie | H61: Bierfles | I61: 60 | J61: Bingo | M61: Bingo | N61: Bingo
A62: 61 | B62: MOODESRB | C62: Broodmes | D62: Autoband | E62: AUTOBAND | F62: 1 | G62: Autoband | H62: Biergist | I62: 61 | J62: Bizon | M62: Bizon | N62: Bizon
A63: 62 | B63: MRKELAAA | C63: Makelaar | D63: Autobank | E63: AUTOBANK | H63: Bierglas | I63: 62 | J63: Blini | M63: Blini | N63: Blini
A64: 63 | B64: ECTMIMOO | C64: Commotie | D64: Autobank | E64: AUTOBANK | F64: 1 | G64: Autobank | H64: Bierkrat | I64: 63 | J64: Bloei | M64: Bloei | N64: Bloei
A65: 64 | B65: RAGSATDA | C65: Draagtas | D65: Autoblad | E65: AUTOBLAD | H65: Bierlied | I65: 64 | J65: Bloem | M65: Bloem | N65: Bloem
A66: 65 | B66: BOSATOUT | C66: Botsauto | D66: Autoblad | E66: =UPPER(D66) -> AUTOBLAD | H66: Biermerk | I66: 65 | J66: Bloem | M66: Bloem | N66: Bloem
A67: 66 | B67: PMRNSATO | C67: Sportman | D67: Autoblad | E67: AUTOBLAD | H67: Biologie | I67: 66 | J67: Blues | M67: Blues | N67: Blues
A68: 67 | B68: IGRDBEGS | C68: Berggids | D68: Autoblad | E68: AUTOBLAD | F68: 1 | G68: Autoblad | H68: Bioritme | I68: 67 | J68: Bodem | M68: Bodem | N68: Bodem
A69: 68 | B69: AOODLBFT | C69: Fotoblad | D69: Automerk | E69: AUTOMERK | H69: Bladader | I69: 68 | J69: Bodem | M69: Bodem | N69: Bodem
A70: 69 | B70: IEOPDIOL | C70: Pleidooi | D70: Automerk | E70: AUTOMERK | H70: Bladgoud | I70: 69 | J70: Bonus | M70: Bonus | N70: Bonus
A71: 70 | B71: POOGALEP | C71: Oogappel | D71: Automerk | E71: AUTOMERK | H71: Blikveld | I71: 70 | J71: Boord | M71: Boord | N71: Boord
A72: 71 | B72: RAELDOAI | C72: Aardolie | D72: Automerk | E72: AUTOMERK | F72: 1 | G72: Automerk | H72: Bloembak | I72: 71 | J72: Bosui | M72: Bosui | N72: Bosui
A73: 72 | B73: BLOEENAT | C73: Notabele | D73: Autorace | E73: AUTORACE | F73: 1 | G73: Autorace | H73: Bloembol | I73: 72 | J73: Botel | M73: Botel | N73: Botel
A74: 73 | B74: WDAKIMNL | C74: Klimwand | D74: Autoreis | E74: AUTOREIS | H74: Bloempot | I74: 73 | J74: Boter | M74: Boter | N74: Boter
A75: 74 | B75: PDAOTSRI | C75: Parodist | D75: Autoreis | E75: AUTOREIS | H75: Boekweit | I75: 74 | J75: Braam | M75: Braam | N75: Braam
A76: 75 | B76: ESLEETNT | C76: Telelens | D76: Autoreis | E76: AUTOREIS | F76: 1 | G76: Autoreis | H76: Boekwerk | I76: 75 | J76: Braam | M76: Braam | N76: Braam
A77: 76 | B77: PLLEITAS | C77: Pastille | D77: Avonduur | E77: AVONDUUR | H77: Boothuis | I77: 76 | J77: Bravo | M77: Bravo | N77: Bravo
A78: 77 | B78: KKEEROIE | C78: Eierkoek | D78: Avonduur | E78: AVONDUUR | H78: Bootreis | I78: 77 | J78: Bravo | M78: Bravo | N78: Bravo
A79: 78 | B79: TEHBDLAE | C79: Theeblad | D79: Avonduur | E79: AVONDUUR | F79: 1 | G79: Avonduur | H79: Bordspel | I79: 78 | J79: Brief | M79: Brief | N79: Brief
A80: 79 | B80: ATAALATN | C80: Atalanta | D80: Backhand | E80: BACKHAND | F80: 1 | G80: Backhand | H80: Botsauto | I80: 79 | J80: Brons | M80: Brons | N80: Brons
A81: 80 | B81: LUPUTNSP | C81: Pluspunt | D81: Badkamer | E81: BADKAMER | F81: 1 | G81: Badkamer | H81: Bouillon | I81: 80 | J81: Brood | M81: Brood | N81: Brood
A82: 81 | B82: DAMALAIR | C82: Admiraal | D82: Badlaken | E82: BADLAKEN | F82: 1 | G82: Badlaken | H82: Bouwland | I82: 81 | J82: bruid | M82: bruid | N82: bruid
A83: 82 | B83: TLBKOROS | C83: Rotsblok | D83: Balsport | E83: BALSPORT | H83: Braderie | I83: 82 | J83: Cadet | M83: Cadet | N83: Cadet
A84: 83 | B84: SAODNATT | C84: Toestand | D84: Balsport | E84: BALSPORT | F84: 1 | G84: Balsport | H84: Branding | I84: 83 | J84: Cadet | M84: Cadet | N84: Cadet
A85: 84 | B85: MARDKAAE | C85: Kameraad | D85: Barbaar | E85: BARBAAR | F85: 1 | G85: =IF(F85="1","",D85) -> Barbaar | H85: Brilbeer | I85: 84 | J85: Cavia | M85: Cavia | N85: Cavia
A86: 85 | B86: ANORTPSE | C86: Apenrots | D86: Basiliek | E86: BASILIEK | H86: Briljant | I86: 85 | J86: Ceder | M86: Ceder | N86: Ceder
A87: 86 | B87: DAETEPNA | C87: Tapenade | D87: Basiliek | E87: BASILIEK | H87: Broodmes | I87: 86 | J87: Cello | M87: Cello | N87: Cello
A88: 87 | B88: VTLWERAA | C88: Welvaart | D88: Basiliek | E88: BASILIEK | F88: 1 | G88: Basiliek | H88: Bruiloft | I88: 87 | J88: Cider | M88: Cider | N88: Cider
A89: 88 | B89: RDBWETAE | C89: Waterbed | D89: Basstem | E89: BASSTEM | F89: 1 | G89: Basstem | H89: Bulletin | I89: 88 | J89: Citer | M89: Citer | N89: Citer
A90: 89 | B90: KTUNRATI | C90: Uitkrant | D90: Bastille | E90: BASTILLE | H90: Camping | I90: 89 | J90: Clown | M90: Clown | N90: Clown
A91: 90 | B91: VATERNOA | C91: Tovenaar | D91: Bastille | E91: BASTILLE | F91: 1 | G91: Bastille | H91: Cassette | I91: 90 | J91: Cobra | M91: Cobra | N91: Cobra
A92: 91 | B92: NITKEENG | C92: Tekening | D92: Bavarois | E92: BAVAROIS | H92: Charisma | I92: 91 | J92: Conga | M92: Conga | N92: Conga
A93: 92 | B93: ATJAKSEN | C93: Kastanje | D93: Bavarois | E93: BAVAROIS | F93: 1 | G93: Bavarois | H93: Ciabatta | I93: 92 | J93: Corso | M93: Corso | N93: Corso
A94: 93 | B94: AOPELPOG | C94: Oogappel | D94: Beleving | E94: BELEVING | H94: Cilinder | I94: 93 | J94: Curry | M94: Curry | N94: Curry
A95: 94 | B95: EGERUNBI | C95: Regenbui | D95: Beleving | E95: BELEVING | H95: Civetkat | I95: 94 | J95: Dadel | M95: Dadel | N95: Dadel
A96: 95 | B96: EWTURMES | C96: Stuwmeer | D96: Beleving | E96: BELEVING | F96: 1 | G96: Beleving | H96: Collecte | I96: 95 | J96: Darts | M96: Darts | N96: Darts
A97: 96 | B97: HEROONNE | C97: Eenhoorn | D97: Berenbos | E97: BERENBOS | F97: 1 | G97: Berenbos | H97: Comeback | I97: 96 | J97: Darts | M97: Darts | N97: Darts
A98: 97 | B98: MPAIEKNT | C98: Tienkamp | D98: Bergdorp | E98: BERGDORP | H98: Commotie | I98: 97 | J98: Datum | M98: Datum | N98: Datum
A99: 98 | B99: FRTESURS | C99: Surfster | D99: Bergdorp | E99: BERGDORP | H99: Concours | I99: 98 | J99: Datum | M99: Datum | N99: Datum
A100: 99 | B100: REPORBDG | C100: Bergdorp | D100: Bergdorp | E100: BERGDORP | F100: 1 | G100: Bergdorp | H100: Conifeer | I100: 99 | J100: Debat | M100: Debat | N100: Debat
A101: 100 | B101: IDAERNTD | C101: Drietand | D101: Berggeit | E101: BERGGEIT | H101: Controle | I101: 100 | J101: Debat | M101: Debat | N101: Debat
A102: 101 | B102: VLDSGAER | C102: Grasveld | D102: Berggeit | E102: BERGGEIT | H102: Dagdroom | I102: 101 | J102: Debet | M102: Debet | N102: Debet
A103: 102 | B103: TIGEEVUR | C103: Uitgever | D103: Berggeit | E103: BERGGEIT | F103: 1 | G103: Berggeit | H103: Dagkaart | I103: 102 | J103: Decor | M103: Decor | N103: Decor
A104: 103 | B104: LEKIRIOB | C104: Kolibrie | D104: Berggids | E104: BERGGIDS | F104: 1 | G104: Berggids | H104: Dagkrant | I104: 103 | J104: Deken | M104: Deken | N104: Deken
A105: 104 | B105: EEETNMEG | C105: Gemeente | D105: Bergland | E105: BERGLAND | H105: Daglelie | I105: 104 | J105: Deken | M105: Deken | N105: Deken
A106: 105 | B106: LABIEKIS | C106: Basiliek | D106: Bergland | E106: BERGLAND | H106: Dakkapel | I106: 105 | J106: Delta | M106: Delta | N106: Delta
A107: 106 | B107: VGLEOEZE | C107: Zeevogel | D107: Bergland | E107: BERGLAND | F107: 1 | G107: Bergland | H107: Damsteen | I107: 106 | J107: Delta | M107: Delta | N107: Delta
A108: 107 | B108: OBNOOWOT | C108: Woonboot | D108: Bergmeer | E108: BERGMEER | F108: 1 | G108: Bergmeer | H108: Dansclub | I108: 107 | J108: Denim | M108: Denim | N108: Denim
A109: 108 | B109: FTOBRLIU | C109: Bruiloft | D109: Betaling | E109: BETALING | F109: 1 | G109: Betaling | H109: Danspaar | I109: 108 | J109: Depot | M109: Depot | N109: Depot
A110: 109 | B110: GIRVUAAT | C110: Vaartuig | D110: Bierfles | E110: BIERFLES | H110: Danstent | I110: 109 | J110: Desem | M110: Desem | N110: Desem
A111: 110 | B111: PEOIILKT | C111: Politiek | D111: Bierfles | E111: BIERFLES | F111: 1 | G111: Bierfles | H111: Databank | I111: 110 | J111: Desem | M111: Desem | N111: Desem
A112: 111 | B112: GBEUNREI | C112: Regenbui | D112: Biergist | E112: BIERGIST | H112: Debutant | I112: 111 | J112: Deugd | M112: Deugd | N112: Deugd
A113: 112 | B113: ROEINLEN | C113: Oneliner | D113: Biergist | E113: BIERGIST | F113: 1 | G113: Biergist | H113: Deelname | I113: 112 | J113: Dieet | M113: Dieet | N113: Dieet
A114: 113 | B114: BUDTAAOL | C114: Autoblad | D114: Bierglas | E114: BIERGLAS | F114: 1 | G114: Bierglas | H114: Deeltaak | I114: 113 | J114: Dieet | M114: Dieet | N114: Dieet
A115: 114 | B115: DGRIOZOE | C115: Zoogdier | D115: Bierkrat | E115: BIERKRAT | F115: 1 | G115: Bierkrat | H115: Diameter | I115: 114 | J115: Dille | M115: Dille | N115: Dille
A116: 115 | B116: MDEMOERK | C116: Modemerk | D116: Bierlied | E116: BIERLIED | H116: Dienblad | I116: 115 | J116: Dille | M116: Dille | N116: Dille
A117: 116 | B117: ESIMEDLD | C117: Edelsmid | D117: Bierlied | E117: BIERLIED | F117: 1 | G117: Bierlied | H117: Diepgang | I117: 116 | J117: Diner | M117: Diner | N117: Diner
A118: 117 | B118: REBGETEG | C118: Gebergte | D118: Biermerk | E118: BIERMERK | H118: Dimensie | I118: 117 | J118: Dingo | M118: Dingo | N118: Dingo
A119: 118 | B119: JNNEIKSE | C119: Kennisje | D119: Biermerk | E119: BIERMERK | H119: Dirigent | I119: 118 | J119: Disco | M119: Disco | N119: Disco
A120: 119 | B120: ISLERVBE | C120: Vlierbes | D120: Biermerk | E120: BIERMERK | F120: 1 | G120: Biermerk | H120: Divanbed | I120: 119 | J120: Disco | M120: Disco | N120: Disco
A121: 120 | B121: MUEOMNNT | C121: Monument | D121: Biologie | E121: BIOLOGIE | F121: 1 | G121: Biologie | H121: Doelpunt | I121: 120 | J121: Donut | M121: Donut | N121: Donut
A122: 121 | B122: ZBDEEOME | C122: Zeebodem | D122: Bioritme | E122: BIORITME | H122: Dopheide | I122: 121 | J122: Dosis | M122: Dosis | N122: Dosis
A123: 122 | B123: KMABBLOE | C123: Bloembak | D123: Bioritme | E123: BIORITME | H123: Douanier | I123: 122 | J123: Dosis | M123: Dosis | N123: Dosis
A124: 123 | B124: BOEKMACC | C124: Comeback | D124: Bioritme | E124: BIORITME | F124: 1 | G124: Bioritme | H124: Draagtas | I124: 123 | J124: Draad | M124: Draad | N124: Draad
A125: 124 | B125: CRAINOMA | C125: Macaroni | D125: Bladader | E125: BLADADER | H125: Dressing | I125: 124 | J125: Draai | M125: Draai | N125: Draai
A126: 125 | B126: MAEANRIL | C126: Mineraal | D126: Bladader | E126: BLADADER | F126: 1 | G126: Bladader | H126: Dressoir | I126: 125 | J126: Draak | M126: Draak | N126: Draak
A127: 126 | B127: ASWNDLTE | C127: Welstand | D127: Bladgoud | E127: BLADGOUD | F127: 1 | G127: Bladgoud | H127: Driehoek | I127: 126 | J127: Draak | M127: Draak | N127: Draak
A128: 127 | B128: RIHOEENV | C128: Hovenier | D128: Blikveld | E128: BLIKVELD | H128: Drieling | I128: 127 | J128: Droom | M128: Droom | N128: Droom
A129: 128 | B129: LBASPELE | C129: Speelbal | D129: Blikveld | E129: BLIKVELD | F129: 1 | G129: Blikveld | H129: Drieluik | I129: 128 | J129: Droom | M129: Droom | N129: Droom
A130: 129 | B130: BIRIDLEE | C130: Bierlied | D130: Bloembak | E130: =UPPER(D130) -> BLOEMBAK | F130: 1 | G130: Bloembak | H130: Drietand | I130: 129 | J130: Druif | M130: Druif | N130: Druif
A131: 130 | B131: LRIKEUID | C131: Drieluik | D131: Bloembol | E131: BLOEMBOL | H131: Dropshot | I131: 130 | J131: Dwerg | M131: Dwerg | N131: Dwerg
A132: 131 | B132: ADAKRMAE | C132: Kameraad | D132: Bloembol | E132: BLOEMBOL | F132: 1 | G132: Bloembol | H132: Drukpers | I132: 131 | J132: Edict | M132: Edict | N132: Edict
A133: 132 | B133: BNCALDHA | C133: Lachband | D133: Bloempot | E133: BLOEMPOT | F133: 1 | G133: Bloempot | H133: Drumband | I133: 132 | J133: Eikel | M133: Eikel | N133: Eikel
A134: 133 | B134: ALRIAMDU | C134: Laadruim | D134: Boekweit | E134: BOEKWEIT | H134: Drumstel | I134: 133 | J134: Einde | M134: Einde | N134: Einde
A135: 134 | B135: ALPKKADE | C135: Dakkapel | D135: Boekweit | E135: BOEKWEIT | F135: 1 | G135: Boekweit | H135: Duikbril | I135: 134 | J135: Einde | M135: Einde | N135: Einde
A136: 135 | B136: LZKAOAOD | C136: Koolzaad | D136: Boekwerk | E136: BOEKWERK | H136: Duimelot | I136: 135 | J136: Eland | M136: Eland | N136: Eland
A137: 136 | B137: CSELIETE | C137: Selectie | D137: Boekwerk | E137: BOEKWERK | F137: 1 | G137: Boekwerk | H137: Duinkust | I137: 136 | J137: Elect | M137: Elect | N137: Elect
A138: 137 | B138: BERPOOEL | C138: Poolbeer | D138: Boothuis | E138: BOOTHUIS | F138: 1 | G138: Boothuis | H138: Duinroos | I138: 137 | J138: Elite | M138: Elite | N138: Elite
A139: 138 | B139: JEALRNIE | C139: Anjelier | D139: Bootreis | E139: BOOTREIS | H139: Economie | I139: 138 | J139: Emmer | M139: Emmer | N139: Emmer
A140: 139 | B140: LTVRRAEE | C140: Vertaler | D140: Bootreis | E140: BOOTREIS | F140: 1 | G140: Bootreis | H140: Edelhert | I140: 139 | J140: Emmer | M140: Emmer | N140: Emmer
A141: 140 | B141: DOLVGEOR | C141: Volgorde | D141: Bordspel | E141: BORDSPEL | H141: Eekhoorn | I141: 140 | J141: Engel | M141: Engel | N141: Engel
A142: 141 | B142: RLDBPOES | C142: Bordspel | D142: Bordspel | E142: BORDSPEL | H142: Eetgerei | I142: 141 | J142: Enkel | M142: Enkel | N142: Enkel
A143: 142 | B143: OEGTTRAS | C143: Stratego | D143: Bordspel | E143: BORDSPEL | H143: Eierkoek | I143: 142 | J143: Epiek | M143: Epiek | N143: Epiek
A144: 143 | B144: SNROIEDR | C144: Rondreis | D144: Bordspel | E144: BORDSPEL | F144: 1 | G144: Bordspel | H144: Eikenbos | I144: 143 | J144: Epiek | M144: Epiek | N144: Epiek
A145: 144 | B145: CHAPIREL | C145: Archipel | D145: Botsauto | E145: BOTSAUTO | H145: Elastiek | I145: 144 | J145: Erica | M145: Erica | N145: Erica
A146: 145 | B146: KISGNRUI | C146: Kruising | D146: Botsauto | E146: BOTSAUTO | H146: Elektron | I146: 145 | J146: Erker | M146: Erker | N146: Erker
A147: 146 | B147: AEWRTSKI | C147: Waterski | D147: Botsauto | E147: BOTSAUTO | F147: 1 | G147: Botsauto | H147: Emigrant | I147: 146 | J147: Ether | M147: Ether | N147: Ether
A148: 147 | B148: UVEASIRD | C148: Adviseur | D148: Bouillon | E148: BOUILLON | H148: Empathie | I148: 147 | J148: Etude | M148: Etude | N148: Etude
A149: 148 | B149: DABOLVOR | C149: Voorblad | D149: Bouillon | E149: BOUILLON | H149: Ensemble | I149: 148 | J149: Fabel | M149: Fabel | N149: Fabel
A150: 149 | B150: SUBRAPDN | C150: Rupsblad | D150: Bouillon | E150: BOUILLON | F150: 1 | G150: =IF(F150="1","",D150) -> Bouillon | H150: Ereronde | I150: 149 | J150: Farao | M150: Farao | N150: Farao
A151: 150 | B151: KRINAUTT | C151: Uitkrant | D151: Bouwland | E151: BOUWLAND | F151: 1 | G151: Bouwland | H151: Ereteken | I151: 150 | J151: Fauna | M151: Fauna | N151: Fauna
A152: 151 | B152: EVNIAKAT | C152: Vakantie | D152: Braderie | E152: BRADERIE | F152: 1 | G152: Braderie | H152: Erewoord | I152: 151 | J152: Feest | M152: Feest | N152: Feest
A153: 152 | B153: BIKSESRU | C153: Kruisbes | D153: Branding | E153: BRANDING | H153: Essentie | I153: 152 | J153: Fiets | M153: Fiets | N153: Fiets
A154: 153 | B154: RAIDTEDN | C154: Drietand | D154: Branding | E154: BRANDING | F154: 1 | G154: Branding | H154: Evolutie | I154: 153 | J154: Firma | M154: Firma | N154: Firma
A155: 154 | B155: CMUETDON | C155: Document | D155: Briefing | E155: BRIEFING | H155: Fantasie | I155: 154 | J155: Flits | M155: Flits | N155: Flits
A156: 155 | B156: LOKIKROD | C156: Krokodil | D156: Brilbeer | E156: BRILBEER | H156: Favoriet | I156: 155 | J156: Flora | M156: Flora | N156: Flora
A157: 156 | B157: EIKOTERS | C157: Koetsier | D157: Brilbeer | E157: BRILBEER | F157: 1 | G157: Brilbeer | H157: Fenomeen | I157: 156 | J157: Fluit | M157: Fluit | N157: Fluit
A158: 157 | B158: MAAHNTRO | C158: Marathon | D158: Brilbeer | E158: BRILBEER | H158: Fietsbel | I158: 157 | J158: Focus | M158: Focus | N158: Focus
A159: 158 | B159: ITESIAUT | C159: Situatie | D159: Briljant | E159: BRILJANT | F159: 1 | G159: Briljant | H159: Fietsbus | I159: 158 | J159: Folie | M159: Folie | N159: Folie
A160: 159 | B160: IDAMLKWN | C160: Klimwand | D160: Briljant | E160: BRILJANT | H160: Fietspad | I160: 159 | J160: Fonds | M160: Fonds | N160: Fonds
A161: 160 | B161: SNABRDEI | C161: Sierband | D161: Broodmes | E161: BROODMES | H161: Filmdoek | I161: 160 | J161: Forel | M161: Forel | N161: Forel
A162: 161 | B162: EGONOWTE | C162: Gewoonte | D162: Broodmes | E162: BROODMES | H162: Filmheld | I162: 161 | J162: Forel | M162: Forel | N162: Forel
A163: 162 | B163: EDGNMION | C163: Minnegod | D163: Broodmes | E163: BROODMES | F163: 1 | G163: Broodmes | H163: Finalist | I163: 162 | J163: Forum | M163: Forum | N163: Forum
A164: 163 | B164: PSILTNIA | C164: Alpinist | D164: Broodmes | E164: BROODMES | H164: Flamingo | I164: 163 | J164: Frase | M164: Frase | N164: Frase
A165: 164 | B165: TTMUPUNS | C165: Puntmuts | D165: Bruiloft | E165: BRUILOFT | H165: Folklore | I165: 164 | J165: Friet | M165: Friet | N165: Friet
A166: 165 | B166: RLHOSEOP | C166: Hoorspel | D166: Bruiloft | E166: BRUILOFT | H166: Fotoblad | I166: 165 | J166: Front | M166: Front | N166: Front
A167: 166 | B167: IUSEBTFS | C167: Fietsbus | D167: Bruiloft | E167: BRUILOFT | F167: 1 | G167: Bruiloft | H167: Fotoboek | I167: 166 | J167: Fruit | M167: Fruit | N167: Fruit
A168: 167 | B168: DISMINEE | C168: Dimensie | D168: Bulletin | E168: BULLETIN | F168: 1 | G168: Bulletin | H168: Gangdeur | I168: 167 | J168: Fusie | M168: Fusie | N168: Fusie
A169: 168 | B169: MGVIENOG | C169: Omgeving | D169: Camping | E169: CAMPING | F169: 1 | G169: Camping | H169: Gebergte | I169: 168 | J169: Galop | M169: Galop | N169: Galop
A170: 169 | B170: EZFRKEIW | C170: Zwerfkei | D170: Carillon | E170: CARILLON | H170: Gedeelte | I170: 169 | J170: Gamba | M170: Gamba | N170: Gamba
A171: 170 | B171: AOOEIVAR | C171: Ooievaar | D171: Cassette | E171: CASSETTE | H171: Gegiebel | I171: 170 | J171: Garde | M171: Garde | N171: Garde
A172: 171 | B172: NAESSTIE | C172: Sensatie | D172: Cassette | E172: CASSETTE | F172: 1 | G172: Cassette | H172: Gelatine | I172: 171 | J172: Garde | M172: Garde | N172: Garde
A173: 172 | B173: MDNIROOE | C173: Meidoorn | D173: Charisma | E173: CHARISMA | F173: 1 | G173: Charisma | H173: Geleerde | I173: 172 | J173: Gazon | M173: Gazon | N173: Gazon
A174: 173 | B174: BAERERDI | C174: Braderie | D174: Ciabatta | E174: CIABATTA | F174: 1 | G174: Ciabatta | H174: Gemeente | I174: 173 | J174: Gazon | M174: Gazon | N174: Gazon
A175: 174 | B175: OUEMNNMT | C175: Monument | D175: Cilinder | E175: CILINDER | F175: 1 | G175: Cilinder | H175: Geograaf | I175: 174 | J175: Gebak | M175: Gebak | N175: Gebak
A176: 175 | B176: SAOALBDN | C176: Naaldbos | D176: Civetkat | E176: CIVETKAT | F176: 1 | G176: Civetkat | H176: Gewoonte | I176: 175 | J176: Gekko | M176: Gekko | N176: Gekko
A177: 176 | B177: BIKSSRUE | C177: Kruisbes | D177: Collecte | E177: COLLECTE | F177: 1 | G177: Collecte | H177: Gitarist | I177: 176 | J177: Geluk | M177: Geluk | N177: Geluk
A178: 177 | B178: TBANKSMI | C178: Mistbank | D178: Comeback | E178: COMEBACK | F178: 1 | G178: Comeback | H178: Gladiool | I178: 177 | J178: Genie | M178: Genie | N178: Genie
A179: 178 | B179: BEILEBRR | C179: Brilbeer | D179: Commotie | E179: COMMOTIE | F179: 1 | G179: Commotie | H179: Glansrol | I179: 178 | J179: Genre | M179: Genre | N179: Genre
A180: 179 | B180: SKOTRLOB | C180: Rotsblok | D180: Concours | E180: CONCOURS | F180: 1 | G180: Concours | H180: Glasdeur | I180: 179 | J180: Gerei | M180: Gerei | N180: Gerei
A181: 180 | B181: HOKKBEAN | C181: Hoekbank | D181: Conifeer | E181: CONIFEER | F181: 1 | G181: Conifeer | H181: Gouderts | I181: 180 | J181: Gerei | M181: Gerei | N181: Gerei
A182: 181 | B182: BUIOTNON | C182: Tuinboon | D182: Contract | E182: CONTRACT | H182: Goudgeld | I182: 181 | J182: Gerst | M182: Gerst | N182: Gerst
A183: 182 | B183: PGHMAOEE | C183: Homepage | D183: Controle | E183: CONTROLE | H183: Goudland | I183: 182 | J183: Getal | M183: Getal | N183: Getal
A184: 183 | B184: KBOIROAL | C184: Koolrabi | D184: Controle | E184: CONTROLE | F184: 1 | G184: Controle | H184: Goudsmid | I184: 183 | J184: Gevel | M184: Gevel | N184: Gevel
A185: 184 | B185: NDUVOAUR | C185: Avonduur | D185: Dagdroom | E185: DAGDROOM | F185: 1 | G185: Dagdroom | H185: Goudstuk | I185: 184 | J185: Gezin | M185: Gezin | N185: Gezin
A186: 185 | B186: KOPLEPOR | C186: Koploper | D186: Dageraad | E186: DAGERAAD | H186: Goudvink | I186: 185 | J186: Gezin | M186: Gezin | N186: Gezin
A187: 186 | B187: EFOOTLEN | C187: Telefoon | D187: Dagkaart | E187: DAGKAART | H187: Grasland | I187: 186 | J187: Gilde | M187: Gilde | N187: Gilde
A188: 187 | B188: WATKRREI | C188: Kwartier | D188: Dagkaart | E188: DAGKAART | F188: 1 | G188: Dagkaart | H188: Grasveld | I188: 187 | J188: Gilde | M188: Gilde | N188: Gilde
A189: 188 | B189: GNUDAGER | C189: Gangdeur | D189: Dagkoers | E189: DAGKOERS | H189: Greep | I189: 188 | J189: Gilet | M189: Gilet | N189: Gilet
A190: 189 | B190: EEWNOSTL | C190: Steenwol | D190: Dagkrant | E190: DAGKRANT | F190: 1 | G190: Dagkrant | H190: Grensbal | I190: 189 | J190: Gilet | M190: Gilet | N190: Gilet
A191: 190 | B191: RTIERGES | C191: Register | D191: Dagkrant | E191: DAGKRANT | H191: Groen | I191: 190 | J191: Giraf | M191: Giraf | N191: Giraf
A192: 191 | B192: SREENECI | C192: Recensie | D192: Daglelie | E192: DAGLELIE | H192: Grondwet | I192: 191 | J192: Glans | M192: Glans | N192: Glans
A193: 192 | B193: RMONOIVO | C193: Omnivoor | D193: Daglelie | E193: DAGLELIE | F193: 1 | G193: Daglelie | H193: Gummibal | I193: 192 | J193: Glimp | M193: Glimp | N193: Glimp
A194: 193 | B194: TDETUABN | C194: Debutant | D194: Dagmarkt | E194: =UPPER(D194) -> DAGMARKT | H194: Haarband | I194: 193 | J194: Glimp | M194: Glimp | N194: Glimp
A195: 194 | B195: HTOROSPD | C195: Dropshot | D195: Dakkapel | E195: DAKKAPEL | F195: 1 | G195: Dakkapel | H195: haarmode | I195: 194 | J195: Globe | M195: Globe | N195: Globe
A196: 195 | B196: RESEAMIL | C196: Realisme | D196: Dakkapel | E196: DAKKAPEL | H196: Haarverf | I196: 195 | J196: Gloed | M196: Gloed | N196: Gloed
A197: 196 | B197: SATMTGSA | C197: Stamgast | D197: Damsteen | E197: DAMSTEEN | H197: Handboek | I197: 196 | J197: Graad | M197: Graad | N197: Graad
A198: 197 | B198: RERTMVOS | C198: Stervorm | D198: Damsteen | E198: DAMSTEEN | F198: 1 | G198: Damsteen | H198: Handrem | I198: 197 | J198: Graan | M198: Graan | N198: Graan
A199: 198 | B199: ATLEKEGN | C199: Kengetal | D199: Dansclub | E199: DANSCLUB | F199: 1 | G199: Dansclub | H199: Harmonie | I199: 198 | J199: Greep | M199: Greep | N199: Greep
A200: 199 | B200: SALEIBTL | C200: Bastille | D200: Danseres | E200: DANSERES | H200: Hazelaar | I200: 199 | J200: Greep | M200: Greep | N200: Greep
... 1666 more rows

Sheet Oplos Kruis
B1: Opgave | D1: 1
B3: # | C3: S | D3: # | E3: # | F3: S | G3: # | H3: M | I3: # | J3: P | K3: # | L3: P
B4: S | C4: T | D4: R | E4: I | F4: P | G4: # | H4: I | I4: S | J4: O | K4: M | L4: O
B5: # | C5: R | D5: O | E5: T | F5: A | G5: N | H5: S | I5: T | J5: O | K5: E | L5: L
B6: # | C6: O | D6: T | E6: T | F6: # | G6: E | H6: B | I6: I | J6: K | K6: E | L6: #
B7: E | C7: T | D7: S | E7: # | F7: S | G7: T | H7: O | I7: P | J7: # | K7: E | L7: Z
B8: # | C8: # | D8: W | E8: A | F8: T | G8: J | H8: E | I8: # | J8: A | K8: T | L8: E
B9: # | C9: H | D9: O | E9: H | F9: # | G9: E | H9: K | I9: S | J9: T | K9: E | L9: R
B10: # | C10: C | D10: L | E10: A | F10: U | G10: S | H10: # | I10: E | J10: B | K10: R | L10: O
B12: Opgave: | D12: 2
B14: # | C14: M | D14: # | E14: N | F14: # | G14: A | H14: # | I14: O | J14: # | K14: I | L14: #
B15: D | C15: E | D15: C | E15: I | F15: # | G15: B | H15: O | I15: U | J15: S | K15: S | L15: U
B16: # | C16: T | D16: O | E16: E | F16: T | G16: S | H16: # | I16: T | J16: U | K16: T | L16: U
B17: # | C17: A | D17: U | E17: T | F17: E | G17: U | H17: R | I17: # | J17: B | K17: A | L17: R
B18: A | C18: L | D18: P | E18: # | F18: G | G18: R | H18: I | I18: L | J18: # | K18: M | L18: #
B19: # | C19: # | D19: L | E19: O | F19: O | G19: D | H19: S | I19: # | J19: M | K19: B | L19: V
B20: # | C20: P | D20: E | E20: P | F20: E | G20: # | H20: K | I20: L | J20: E | K20: U | L20: R
B21: # | C21: S | D21: T | E21: A | F21: D | G21: S | H21: # | I21: B | J21: E | K21: L | L21: L
B23: Opgave: | D23: 3
B25: # | C25: R | D25: # | E25: H | F25: # | G25: G | H25: # | I25: I | J25: # | K25: G | L25: #
B26: G | C26: E | D26: L | E26: U | F26: L | G26: E | H26: # | I26: N | J26: O | K26: E | L26: N
B27: # | C27: C | D27: E | E27: L | F27: # | G27: K | H27: I | I27: N | J27: # | K27: M | L27: U
B28: Z | C28: E | D28: G | E28: S | F28: M | G28: A | H28: N | I28: # | J28: N | K28: O | L28: T
B29: # | C29: P | D29: L | E29: # | F29: O | G29: P | H29: L | I29: O | J29: O | K29: P | L29: #
B30: E | C30: T | D30: I | E30: K | F30: E | G30: T | H30: # | I30: D | J30: O | K30: P | L30: E
B31: # | C31: I | D31: S | E31: I | F31: S | G31: # | H31: L | I31: E | J31: I | K31: E | L31: N
B32: Z | C32: E | D32: E | E32: M | F32: # | G32: S | H32: A | I32: R | J32: T | K32: R | L32: E
B34: Opgave: | D34: 4
B36: # | C36: L | D36: # | E36: S | F36: # | G36: # | H36: Z | I36: # | J36: S | K36: # | L36: N
B37: K | C37: E | D37: A | E37: T | F37: S | G37: # | H37: U | I37: L | J37: T | K37: R | L37: A
B38: # | C38: P | D38: R | E38: O | F38: P | G38: E | H38: R | I38: # | J38: E | K38: A | L38: U
B39: # | C39: E | D39: # | E39: M | F39: A | G39: # | H39: I | I39: E | J39: R | K39: # | L39: W
B40: B | C40: L | D40: IJ | E40: # | F40: D | G40: A | H40: G | I40: # | J40: N | K40: L | L40: #
B41: # | C41: # | D41: Z | E41: I | F41: E | G41: K | H41: # | I41: O | J41: # | K41: E | L41: O
B42: B | C42: R | D42: E | E42: S | F42: # | G42: T | H42: O | I42: P | J42: H | K42: I | L42: T
B43: # | C43: E | D43: R | E43: M | F43: E | G43: E | H43: # | I43: P | J43: R | K43: E | L43: T
B45: Opgave: | D45: 5
B47: # | C47: F | D47: # | E47: Z | F47: # | G47: # | H47: S | I47: # | J47: # | K47: G | L47: #
B48: L | C48: I | D48: G | E48: A | F48: # | G48: A | H48: C | I48: H | J48: T | K48: E | L48: R
B49: # | C49: L | D49: E | E49: N | F49: G | G49: # | H49: H | I49: O | J49: E | K49: V | L49: E
B50: # | C50: O | D50: U | E50: D | F50: E | G50: R | H50: E | I50: R | J50: C | K50: O | L50: M
B51: U | C51: U | D51: R | E51: # | F51: B | G51: E | H51: R | I51: G | J51: # | K51: E | L51: #
B52: # | C52: # | D52: T | E52: E | F52: I | G52: N | H52: T | I52: # | J52: E | K52: L | L52: S
B53: # | C53: D | D53: J | E53: E | F53: N | G53: # | H53: S | I53: T | J53: R | K53: I | L53: P
B54: # | C54: K | D54: E | E54: A | F54: T | G54: S | H54: # | I54: M | J54: E | K54: G | L54: A
B56: Opgave: | D56: 6
B58: # | C58: R | D58: # | E58: # | F58: N | G58: # | H58: V | I58: # | J58: K | K58: # | L58: E
B59: S | C59: U | D59: S | E59: H | F59: I | G59: # | H59: I | I59: E | J59: R | K59: E | L59: N
B60: # | C60: M | D60: A | E60: S | F60: S | G60: A | H60: S | I60: P | J60: U | K60: R | L60: T
B61: # | C61: B | D61: U | E61: L | F61: # | G61: A | H61: I | I61: O | J61: L | K61: I | L61: #
B62: P | C62: A | D62: S | E62: # | F62: K | G62: L | H62: O | I62: S | J62: # | K62: T | L62: E
B63: # | C63: # | D63: K | E63: I | F63: L | G63: T | H63: E | I63: # | J63: A | K63: R | L63: T
B64: # | C64: L | D64: O | E64: B | F64: # | G64: E | H64: N | I64: T | J64: R | K64: E | L64: E
B65: # | C65: O | D65: M | E65: V | F65: E | G65: R | H65: # | I65: W | J65: A | K65: A | L65: R
B67: Opgave: | D67: 7
B69: # | C69: B | D69: # | E69: S | F69: # | G69: S | H69: # | I69: P | J69: # | K69: S | L69: #
B70: H | C70: A | D70: L | E70: T | F70: # | G70: C | H70: H | I70: E | J70: E | K70: T | L70: A
B71: # | C71: C | D71: O | E71: A | F71: C | G71: H | H71: # | I71: T | J71: R | K71: A | L71: C
B72: # | C72: H | D72: E | E72: R | F72: A | G72: U | H72: T | I72: # | J72: F | K72: T | L72: E
B73: R | C73: E | D73: M | E73: # | F73: E | G73: I | H73: R | I73: E | J73: # | K73: I | L73: #
B74: # | C74: # | D74: P | E74: E | F74: S | G74: T | H74: O | I74: # | J74: E | K74: S | L74: T
B75: # | C75: D | D75: I | E75: V | F75: A | G75: # | H75: M | I75: A | J75: N | K75: C | L75: O
B76: # | C76: V | D76: A | E76: A | F76: R | G76: S | H76: # | I76: B | J76: E | K76: H | L76: A
B78: Opgave: | D78: 8
B80: # | C80: S | D80: # | E80: Z | F80: # | G80: # | H80: T | I80: # | J80: P | K80: # | L80: I
B81: E | C81: U | D81: V | E81: E | F81: L | G81: # | H81: I | I81: N | J81: L | K81: E | L81: G
B82: # | C82: P | D82: A | E82: R | F82: A | G82: D | H82: E | I82: # | J82: U | K82: I | L82: L
B83: # | C83: P | D83: # | E83: O | F83: K | G83: # | H83: N | I83: V | J83: T | K83: # | L83: O
B84: Z | C84: O | D84: G | E84: # | F84: E | G84: L | H84: S | I84: # | J84: O | K84: I | L84: #
B85: # | C85: # | D85: U | E85: N | F85: I | G85: E | H85: # | I85: H | J85: # | K85: E | L85: P
B86: D | C86: R | D86: U | E86: M | F86: # | G86: V | H86: O | I86: O | J86: R | K86: T | L86: S
B87: # | C87: A | D87: R | E87: M | F87: O | G87: E | H87: # | I87: R | J87: IJ | K87: S | L87: T
B89: Opgave: | D89: 9
B91: # | C91: M | D91: # | E91: O | F91: # | G91: # | H91: I | I91: # | J91: # | K91: J | L91: #
B92: T | C92: A | D92: P | E92: S | F92: # | G92: I | H92: N | I92: W | J92: O | K92: O | L92: N
B93: # | C93: T | D93: U | E93: L | F93: E | G93: # | H93: S | I93: C | J93: O | K93: N | L93: E
B94: # | C94: S | D94: P | E94: O | F94: R | G94: E | H94: N | I94: # | J94: M | K94: A | L94: O
B95: K | C95: E | D95: I | E95: # | F95: K | G95: E | H95: E | I95: R | J95: # | K95: G | L95: #
B96: # | C96: # | D96: T | E96: R | F96: E | G96: N | H96: D | I96: # | J96: S | K96: O | L96: K
B97: # | C97: V | D97: E | E97: E | F97: N | G97: # | H97: E | I97: E | J97: K | K97: L | L97: O
B98: # | C98: V | D98: R | E98: E | F98: D | G98: E | H98: # | I98: M | J98: A | K98: D | L98: E
B100: Opgave: | D100: 10
B102: # | C102: C | D102: # | E102: F | F102: # | G102: R | H102: # | I102: V | J102: # | K102: G | L102: #
B103: R | C103: A | D103: V | E103: A | F103: G | G103: E | H103: # | I103: IJ | J103: Z | K103: E | L103: R
B104: # | C104: K | D104: E | E104: I | F104: # | G104: T | H104: A | I104: F | J104: # | K104: N | L104: I
B105: G | C105: E | D105: D | E105: R | F105: A | G105: A | H105: F | I105: # | J105: O | K105: E | L105: F
B106: # | C106: M | D106: E | E106: # | F106: M | G106: I | H106: L | I106: I | J106: E | K106: U | L106: #
B107: V | C107: E | D107: T | E107: B | F107: O | G107: L | H107: # | I107: E | J107: R | K107: G | L107: O
B108: # | C108: E | D108: T | E108: E | F108: R | G108: # | H108: G | I108: R | J108: O | K108: T | L108: E
B109: O | C109: L | D109: E | E109: N | F109: # | G109: K | H109: A | I109: S | J109: S | K109: E | L109: I
B111: Opgave: | D111: 11
B113: # | C113: IJ | D113: # | E113: H | F113: # | G113: # | H113: C | I113: # | J113: J | K113: # | L113: O
B114: S | C114: N | D114: O | E114: E | F114: K | G114: # | H114: H | I114: O | J114: E | K114: Z | L114: O
B115: # | C115: B | D115: I | E115: K | F115: I | G115: N | H115: I | I115: # | J115: U | K115: N | L115: I
B116: # | C116: L | D116: # | E116: S | F116: O | G116: # | H116: N | I116: IJ | J116: G | K116: # | L116: T
B117: W | C117: IJ | D117: S | E117: # | F117: S | G117: T | H117: A | I117: # | J117: D | K117: G | L117: #
B118: # | C118: # | D118: O | E118: R | F118: K | G118: A | H118: # | I118: T | J118: # | K118: A | L118: L
B119: A | C119: R | D119: M | E119: E | F119: # | G119: N | H119: I | I119: N | J119: O | K119: V | L119: E
B120: # | C120: IJ | D120: S | E120: D | F120: E | G120: K | H120: # | I120: T | J120: R | K120: E | L120: F
B122: Opgave: | D122: 12
B124: # | C124: V | D124: # | E124: R | F124: # | G124: # | H124: A | I124: # | J124: C | K124: # | L124: E
B125: E | C125: I | D125: S | E125: E | F125: N | G125: # | H125: F | I125: R | J125: A | K125: S | L125: E
B126: # | C126: S | D126: L | E126: I | F126: E | G126: R | H126: T | I126: # | J126: K | K126: E | L126: R
B127: # | C127: O | D127: O | E127: S | F127: T | G127: # | H127: A | I127: D | J127: E | K127: R | L127: #
B128: E | C128: N | D128: E | E128: # | F128: J | G128: O | H128: N | I128: K | J128: # | K128: I | L128: K
B129: # | C129: # | D129: B | E129: E | F129: E | G129: L | H129: D | I129: # | J129: K | K129: E | L129: I
B130: V | C130: E | D130: E | E130: G | F130: # | G130: IJ | H130: S | I130: K | J130: O | K130: U | L130: D
B131: # | C131: P | D131: R | E131: O | F131: E | G131: F | H131: # | I131: M | J131: E | K131: S | L131: S
B133: Opgave: | D133: 13
B135: # | C135: K | D135: # | E135: F | F135: # | G135: # | H135: S | I135: # | J135: # | K135: B | L135: #
B136: N | C136: A | D136: S | E136: I | F136: # | G136: R | H136: E | I136: V | J136: E | K136: R | L136: S
B137: # | C137: R | D137: T | E137: B | F137: F | G137: # | H137: G | I137: R | J137: A | K137: A | L137: T
B138: # | C138: W | D138: E | E138: E | F138: R | G138: O | H138: M | I138: # | J138: U | K138: S | L138: A
B139: T | C139: IJ | D139: K | E139: # | F139: E | G139: D | H139: E | I139: L | J139: # | K139: I | L139: #
B140: # | C140: # | D140: E | E140: N | F140: T | G140: E | H140: N | I140: # | J140: O | K140: L | L140: V
B141: # | C141: E | D141: N | E141: E | F141: # | G141: U | H141: T | I141: O | J141: P | K141: I | L141: E
B142: # | C142: Z | D142: E | E142: K | F142: E | G142: R | H142: # | I142: S | J142: P | K142: A | L142: T
B144: Opgave: | D144: 14
B146: # | C146: V | D146: # | E146: R | F146: # | G146: # | H146: W | I146: # | J146: # | K146: P | L146: #
B147: P | C147: E | D147: S | E147: O | F147: # | G147: B | H147: E | I147: N | J147: A | K147: R | L147: D
B148: # | C148: R | D148: T | E148: B | F148: F | G148: # | H148: L | I148: I | J148: B | K148: I | L148: E
B149: # | C149: D | D149: E | E149: E | F149: R | G149: N | H149: E | I149: # | J149: T | K149: K | L149: O
B150: E | C150: I | D150: K | E150: # | F150: I | G150: A | H150: E | I150: N | J150: # | K150: S | L150: #
B151: # | C151: # | D151: E | E151: S | F151: S | G151: E | H151: N | I151: # | J151: O | K151: L | L151: M
B152: # | C152: O | D152: N | E152: G | F152: # | G152: E | H152: S | I152: T | J152: H | K152: E | L152: R
B153: # | C153: K | D153: E | E153: T | F153: E | G153: N | H153: # | I153: S | J153: M | K153: E | L153: T
B155: Opgave: | D155: 15
B157: # | C157: O | D157: # | E157: P | F157: # | G157: O | H157: # | I157: D | J157: # | K157: R | L157: #
B158: S | C158: P | D158: U | E158: L | F158: # | G158: D | H158: W | I158: A | J158: L | K158: E | L158: R
B159: # | C159: L | D159: I | E159: E | F159: V | G159: E | H159: R | I159: D | J159: # | K159: I | L159: O
B160: P | C160: A | D160: T | E160: I | F160: O | G160: # | H160: A | I160: A | J160: L | K160: S | L160: T
B161: # | C161: W | D161: # | E161: N | F161: O | G161: G | H161: A | I161: # | J161: E | K161: D | L161: #
B162: G | C162: A | D162: S | E162: # | F162: R | G162: E | H162: K | I162: R | J162: U | K162: U | L162: T
B163: # | C163: A | D163: G | E163: E | F163: N | G163: T | H163: # | I163: E | J163: T | K163: U | L163: I
B164: D | C164: I | D164: S | E164: K | F164: # | G164: IJ | H164: K | I164: M | J164: E | K164: R | L164: K
B166: Opgave: | D166: 16
B168: # | C168: O | D168: # | E168: E | F168: # | G168: P | H168: # | I168: B | J168: # | K168: C | L168: #
B169: A | C169: P | D169: O | E169: L | F169: L | G169: O | H169: # | I169: E | J169: C | K169: H | L169: T
B170: # | C170: T | D170: N | E170: B | F170: # | G170: D | H170: O | I170: F | J170: # | K170: A | L170: W
B171: M | C171: A | D171: T | E171: E | F171: R | G171: I | H171: E | I171: # | J171: T | K171: T | L171: V
B172: # | C172: S | D172: E | E172: # | F172: O | G172: U | H172: R | I172: T | J172: H | K172: E | L172: #
B173: IJ | C173: S | D173: R | E173: O | F173: O | G173: M | H173: # | I173: H | J173: E | K173: L | L173: A
B174: # | C174: E | D174: E | E174: N | F174: D | G174: # | H174: G | I174: E | J174: S | K174: E | L174: L
B175: A | C175: N | D175: N | E175: O | F175: # | G175: C | H175: H | I175: E | J175: E | K175: T | L175: A
B177: Opgave: | D177: 17
B179: # | C179: B | D179: # | E179: B | F179: # | G179: # | H179: C | I179: # | J179: F | K179: # | L179: S
B180: J | C180: U | D180: D | E180: A | F180: S | G180: # | H180: R | I180: IJ | J180: R | K180: O | L180: K
B181: # | C181: C | D181: I | E181: C | F181: E | G181: R | H181: O | I181: # | J181: A | K181: H | L181: A
B182: # | C182: H | D182: # | E182: H | F182: R | G182: # | H182: O | I182: L | J182: M | K182: # | L182: I
B183: I | C183: E | D183: R | E183: # | F183: I | G183: C | H183: M | I183: # | J183: E | K183: A | L183: #
B184: # | C184: # | D184: T | E184: O | F184: E | G184: R | H184: # | I184: A | J184: # | K184: C | L184: D
B185: L | C185: A | D185: B | E185: O | F185: # | G185: U | H185: I | I185: T | J185: I | K185: N | L185: G
B186: # | C186: S | D186: F | E186: I | F186: N | G186: X | H186: # | I186: E | J186: D | K186: E | L186: L
B188: Opgave: | D188: 18
B190: # | C190: T | D190: # | E190: V | F190: # | G190: P | H190: # | I190: Z | J190: # | K190: W | L190: #
B191: L | C191: A | D191: D | E191: E | F191: # | G191: O | H191: N | I191: G | J191: A | K191: A | L191: R
B192: # | C192: F | D192: A | E192: R | F192: A | G192: O | H192: # | I192: A | J192: N | K192: T | L192: I
B193: Z | C193: E | D193: T | E193: # | F193: D | G193: R | H193: O | I193: N | J193: K | K193: # | L193: E
B194: # | C194: R | D194: # | E194: R | F194: I | G194: T | H194: E | I194: # | J194: A | K194: B | L194: T
B195: G | C195: E | D195: N | E195: I | F195: E | G195: # | H195: R | I195: A | J195: R | K195: E | L195: #
B196: # | C196: E | D196: # | E196: N | F196: U | G196: T | H196: # | I196: H | J196: A | K196: A | L196: R
B197: # | C197: L | D197: O | E197: S | F197: # | G197: A | H197: R | I197: A | J197: # | K197: M | L197: A
B198: # | C198: # | D198: R | E198: # | F198: O | G198: K | H198: E | I198: # | J198: B | K198: B | L198: C
B199: D | C199: E | D199: K | E199: E | F199: N | G199: # | H199: E | I199: L | J199: I | K199: T | L199: E
B200: # | C200: L | D200: A | E200: S | F200: S | G200: O | H200: # | I200: E | J200: T | K200: E | L200: N
B202: Opgave: | D202: 19
B204: # | C204: A | D204: # | E204: K | F204: # | G204: O | H204: # | I204: H | J204: # | K204: R | L204: #
B205: S | C205: C | D205: H | E205: O | F205: O | G205: N | H205: M | I205: A | J205: K | K205: E | L205: N
B206: # | C206: T | D206: A | E206: L | F206: U | G206: D | H206: # | I206: L | J206: A | K206: M | L206: A
B207: T | C207: I | D207: L | E207: # | F207: D | G207: E | H207: C | I207: O | J207: R | K207: # | L207: A
B208: # | C208: E | D208: # | E208: Z | F208: E | G208: R | H208: O | I208: # | J208: P | K208: A | L208: D
B209: S | C209: F | D209: E | E209: E | F209: R | G209: # | H209: L | I209: E | J209: E | K209: R | L209: #
B210: # | C210: # | D210: V | E210: E | F210: E | G210: L | H210: # | I210: S | J210: T | K210: A | L210: R
B211: O | C211: B | D211: E | E211: R | F211: # | G211: A | H211: L | I211: P | J211: # | K211: B | L211: E
B212: # | C212: E | D212: N | E212: # | F212: O | G212: M | H212: A | I212: # | J212: D | K212: I | L212: S
B213: R | C213: A | D213: Z | E213: E | F213: N | G213: # | H213: P | I213: U | J213: R | K213: E | L213: E
B214: # | C214: T | D214: O | E214: R | F214: S | G214: O | H214: # | I214: W | J214: A | K214: R | L214: M
B216: Opgave: | D216: 20
B218: # | C218: B | D218: # | E218: A | F218: # | G218: F | H218: # | I218: Z | J218: # | K218: O | L218: #
B219: C | C219: O | D219: O | E219: R | F219: D | G219: I | H219: N | I219: A | J219: T | K219: O | L219: R
B220: # | C220: K | D220: L | E220: E | F220: U | G220: R | H220: # | I220: A | J220: R | K220: I | L220: A
B221: R | C221: A | D221: M | E221: # | F221: I | G221: M | H221: A | I221: G | J221: O | K221: # | L221: N
B222: # | C222: A | D222: # | E222: S | F222: M | G222: A | H222: L | I222: # | J222: F | K222: I | L222: K
B223: E | C223: L | D223: I | E223: T | F223: E | G223: # | H223: T | I223: O | J223: E | K223: N | L223: #
B224: # | C224: # | D224: D | E224: I | F224: N | G224: O | H224: # | I224: K | J224: E | K224: L | L224: K
B225: S | C225: P | D225: E | E225: L | F225: # | G225: M | H225: O | I225: E | J225: # | K225: E | L225: R
B226: # | C226: L | D226: A | E226: # | F226: M | G226: A | H226: C | I226: # | J226: E | K226: V | L226: A
B227: Q | C227: U | D227: A | E227: S | F227: I | G227: # | H227: H | I227: O | J227: R | K227: E | L227: N
B228: # | C228: K | D228: L | E228: I | F228: E | G228: K | H228: # | I228: P | J228: E | K228: N | L228: S
B230: Opgave: | D230: 21
B232: # | C232: T | D232: # | E232: A | F232: # | G232: O | H232: # | I232: I | J232: # | K232: M | L232: #
B233: V | C233: O | D233: O | E233: R | F233: W | G233: E | H233: N | I233: D | J233: S | K233: E | L233: L
B234: # | C234: I | D234: M | E234: M | F234: E | G234: R | H234: # | I234: E | J234: T | K234: N | L234: A
B235: S | C235: L | D235: A | E235: # | F235: N | G235: A | H235: D | I235: E | J235: R | K235: # | L235: B
B236: # | C236: E | D236: # | E236: A | F236: S | G236: L | H236: A | I236: # | J236: E | K236: G | L236: O
B237: E | C237: T | D237: U | E237: D | F237: E | G237: # | H237: S | I237: N | J237: E | K237: L | L237: #
B238: # | C238: T | D238: # | E238: E | F238: N | G238: T | H238: # | I238: E | J238: P | K238: O | L238: S
B239: D | C239: A | D239: R | E239: M | F239: # | G239: O | H239: D | I239: E | J239: # | K239: B | L239: E
B240: # | C240: F | D240: A | E240: # | F240: E | G240: N | H240: E | I240: # | J240: B | K240: A | L240: R
B241: V | C241: E | D241: G | E241: E | F241: R | G241: # | H241: K | I241: L | J241: A | K241: A | L241: R
... 3550 more rows

Sheet Code
A1: Private Sub Worksheet_Change(ByVal Target As Range)
A2: If Target.Column = 10 Then
A3: Cells(1, 10).Resize(2000).Sort Key1:=Cells(1, 10), Order1:=xlAscending, Header:=xlYes
A4: End If
A5: End Sub
A8: Private Sub Worksheet_Change(ByVal Target As Range)
A9: If Target.Column = 4 Then
A10: Cells(1, 10).Resize(2000).Sort Key1:=Cells(1, 10), Order1:=xlAscending, Header:=xlYes
A11: End If
A12: End Sub
A15: Private Sub Worksheet_Change(ByVal Target As Range)
A17: If Target.Column = 4 Then
A18: Cells(1, 4).Resize(2000).Sort Key1:=Cells(1, 4), Order1:=xlAscending, Header:=xlYes
A20: ElseIf Target.Column = 10 Then
A21: Cells(1, 10).Resize(2000).Sort Key1:=Cells(1, 10), Order1:=xlAscending, Header:=xlYes
A23: End If
A25: End Sub
A27: Eerst de vorige verwijderen.
